Workbook

Sheet INGRESO DE DATOS
O2: 24 years | P2: FALSE
O4: Descuento 24 años (por edad)
O5: age | P5: Discount (%) | Q5: Parameter | S5: Type | T5: Nuevo Negocio | V5: Zonas | W5: Guayas/Santa Elena
O6: 24 | P6: 35 | Q6: =1-P6/100 -> 0.65 | T6: Renovación | W6: El Resto de Ecuador
O7: 25 | P7: 30 | Q7: =1-P7/100 -> 0.7
O8: 26 | P8: 25 | Q8: 0.75
O9: 27 | P9: 20 | Q9: 0.8
O10: 28 | P10: 15 | Q10: 0.85
O11: 29 | P11: 6 | Q11: 0.94
O12: All ages | P12: 0 | Q12: 1
S13: Type selected | T13: 2 | V13: Selección | W13: 2
V14: Región | W14: =IF(W13=1,"Guayas/Santa Elena","Resto de Ecuador") -> Resto de Ecuador
O19: Descuento de 24 años: | P19: =IF(P2,IF(C40=O6,Q6,IF(C40=O7,Q7,IF(C40=O8,Q8,IF(C40=O9,Q9,IF(C40=O10,Q10,IF(C40=O11,Q11,Q12)))))),Q12) -> 1
O24: Descuento por variante de coaseguro | P24: N/A
O30: Descuento si es nuevo negocio (ENTRADA MANUAL)
O32: New business discount
O33: Critical | P33: Diamond | Q33: Complete | R33: Advantage | S33: Secure | T33: Essential
O34: 0 | P34: 0.15 | Q34: 0.15 | R34: 0.15 | S34: 0.15 | T34: 0.15
A36: Nombre del Asegurado principal: | C36: John Doe
O37: Descuento combinado 24 años + Nuevo Negocio o Roneovaciones
A38: Número de adultos en la póliza: | C38: 1 | E38: Número de hijos en la póliza: | G38: 1
A40: Edad del titular: | C40: 36 | E40: Edad de cónyuge: | G40: 32 | O40: New business discount
O41: Critical | P41: Diamond | Q41: Complete | R41: Advantage | S41: Secure | T41: Essential
O42: =1*$P$19 -> 1 | P42: =IF($T$13=1,IF($W$14="PERU2020", (1-O51)*$P$19,(1-P34)*$P$19),1*$P$19) -> 1 | Q42: =IF($T$13=1,IF($W$14="PERU2020", (1-O54)*$P$19,(1-Q34)*$P$19),1*$P$19) -> 1 | R42: =IF($T$13=1,IF($W$14="PERU2020", (1-O57)*$P$19,(1-R34)*$P$19),1*$P$19) -> 1 | S42: =IF($T$13=1,IF($W$14="PERU2020", (1-O60)*$P$19,(1-S34)*$P$19),1*$P$19) -> 1 | T42: =IF($T$13=1,IF($W$14="PERU2020", (1-O63)*$P$19,(1-T34)*$P$19),1*$P$19) -> 1
A44: Nombre de la Agencia : | C44: Agencia
A47: Tarifas en US$ | Validas: 1 de enero de 2025
O48: DISCOUNT PERU 2020
O50: EXCLUSIVE CARE
O51: 0.51
O53: PRIVILEGE CARE
O54: 0.51
O56: ADVANTAGE CARE
O57: 0.47
O59: SECURE CARE
O60: 0.54
O62: ESSENTIAL CARE
O63: 0.54

Sheet Bupa Diamond Care (Mundial)
N1: RESUMEN DE BENEFICIOS | AA1: RESUMEN DE BENEFICIOS
G2: TRUE | H2: FALSE
A5: Cotización de Seguro Médico Internacional Bupa Diamond Care (Mundial) Tarifas en US$ | Validas: 1 de enero de 2025 | L5: REGIÓN
L7: ='INGRESO DE DATOS'!W14 -> Resto de Ecuador
A13: Nombre del asegurado principal: | G13: =+'INGRESO DE DATOS'!$C$36 -> John Doe
A15: Broker/Agente | G15: =+'INGRESO DE DATOS'!$C$44 -> Agencia
B17: Número de Adultos en la Póliza | G17: =+'INGRESO DE DATOS'!$C$38 -> 1 | I17: Dependientes (menores de 24 años) | L17: =+'INGRESO DE DATOS'!$G$38 -> 1
J18: =IF('INGRESO DE DATOS'!$P$2=TRUE, "Cotización para dependiente de 24 años","") -> 
B19: Edad del Titular | G19: =+'INGRESO DE DATOS'!$C$40 -> 36 | J19: Edad del Cónyuge | L19: =+'INGRESO DE DATOS'!$G$40 -> 32
J21: Fecha de Cotización: | K21: =NOW() -> 2025-04-10T15:01:19.660
F29: DEDUCIBLES | G29: PLAN 1 | H29: PLAN 2 | I29: PLAN 3 | J29: PLAN 4 | K29: PLAN 5 | L29: PLAN 6
F30: Dentro del pais de residencia | G30: 0 | H30: 1000 | I30: 2000 | J30: 5000 | K30: 10000 | L30: 20000
F31: Fuera del pais de residencia | G31: 1000 | H31: 2000 | I31: 3000 | J31: 5000 | K31: 10000 | L31: 20000
F34: TARIFAS ANUALES
F35: Prima de Titular | G35: =VLOOKUP($G$19,Tablas!$A$9:$H$32,3,TRUE)+75 -> 38527 | H35: =VLOOKUP($G$19,Tablas!$A$9:$H$32,4,TRUE)+75 -> 24011 | I35: =VLOOKUP($G$19,Tablas!$A$9:$H$32,5,TRUE)+75 -> 17281 | J35: =VLOOKUP($G$19,Tablas!$A$9:$H$32,6,TRUE)+75 -> 12370 | K35: =VLOOKUP($G$19,Tablas!$A$9:$H$32,7,TRUE)+75 -> 8489 | L35: =VLOOKUP($G$19,Tablas!$A$9:$H$32,8,TRUE)+75 -> 6736
F36: Prima de Cónyuge | G36: =IF($G$17=1,0,(VLOOKUP($L$19,Tablas!$A$9:$H$32,3,TRUE))) -> 0 | H36: =IF($G$17=1,0,(VLOOKUP($L$19,Tablas!$A$9:$H$32,4,TRUE))) -> 0 | I36: =IF($G$17=1,0,(VLOOKUP($L$19,Tablas!$A$9:$H$32,5,TRUE))) -> 0 | J36: =IF($G$17=1,0,(VLOOKUP($L$19,Tablas!$A$9:$H$32,6,TRUE))) -> 0 | K36: =IF($G$17=1,0,(VLOOKUP($L$19,Tablas!$A$9:$H$32,7,TRUE))) -> 0 | L36: =IF($G$17=1,0,(VLOOKUP($L$19,Tablas!$A$9:$H$32,8,TRUE))) -> 0
F37: Primas Hijos | G37: =IF($L$17=0,0,(VLOOKUP($L$17,Tablas!$A$33:$H$35,3,TRUE))) -> 6954 | H37: =IF($L$17=0,0,(VLOOKUP($L$17,Tablas!$A$33:$H$35,4,TRUE))) -> 4549 | I37: =IF($L$17=0,0,(VLOOKUP($L$17,Tablas!$A$33:$H$35,5,TRUE))) -> 3111 | J37: =IF($L$17=0,0,(VLOOKUP($L$17,Tablas!$A$33:$H$35,6,TRUE))) -> 2376 | K37: =IF($L$17=0,0,(VLOOKUP($L$17,Tablas!$A$33:$H$35,7,TRUE))) -> 2304 | L37: =IF($L$17=0,0,(VLOOKUP($L$17,Tablas!$A$33:$H$35,8,TRUE))) -> 2005
F38: Rider: Complicación de Maternidad | G38: =+IF($G$2=FALSE,0,Tablas!C$36) -> 0 | H38: =+IF($G$2=FALSE,0,Tablas!D$36) -> 0 | I38: =+IF($G$2=FALSE,0,Tablas!E$36) -> 0 | J38: =+IF($G$2=FALSE,0,Tablas!F$36) -> 225 | K38: =+IF($G$2=FALSE,0,Tablas!G$36) -> 225 | L38: =+IF($G$2=FALSE,0,Tablas!H$36) -> 225
F39: TOTAL PRIMA NETA | G39: =SUM(G35:G38) -> 45481 | H39: 28560 | I39: 20392 | J39: 14971 | K39: 11018 | L39: 8966
F40: Contrib. 3.5% Super. Bancos : | G40: =G39*3.5% -> 1591.835 | H40: =H39*3.5% -> 999.6 | I40: 713.72 | J40: 523.985 | K40: 385.63 | L40: 313.81
F41: Contrib 0.5% Seg.Soc.Campes: | G41: =G39*0.5% -> 227.405 | H41: =H39*0.5% -> 142.8 | I41: 101.96 | J41: 74.855 | K41: 55.09 | L41: 44.83
F42: GRAN TOTAL: | G42: =SUM(G39:G41) -> 47300.24 | H42: =SUM(H39:H41) -> 29702.4 | I42: 21207.68 | J42: 15569.84 | K42: 11458.72 | L42: =SUM(L39:L41) -> 9324.64
F45: TARIFAS SEMESTRALES
F46: Prima de Titular | G46: =VLOOKUP($G$19,Tablas!$A$44:$H$67,3,TRUE)+75 -> 20454.56 | H46: =VLOOKUP($G$19,Tablas!$A$44:$H$67,4,TRUE)+75 -> 12761.08 | I46: =VLOOKUP($G$19,Tablas!$A$44:$H$67,5,TRUE)+75 -> 9194.18 | J46: =VLOOKUP($G$19,Tablas!$A$44:$H$67,6,TRUE)+75 -> 6591.35 | K46: =VLOOKUP($G$19,Tablas!$A$44:$H$67,7,TRUE)+75 -> 4534.42 | L46: =VLOOKUP($G$19,Tablas!$A$44:$H$67,8,TRUE)+75 -> 3605.33
F47: Prima de Cónyuge | G47: =IF($G$17=1,0,(VLOOKUP($L$19,Tablas!$A$44:$H$67,3,TRUE))) -> 0 | H47: =IF($G$17=1,0,(VLOOKUP($L$19,Tablas!$A$44:$H$67,4,TRUE))) -> 0 | I47: =IF($G$17=1,0,(VLOOKUP($L$19,Tablas!$A$44:$H$67,5,TRUE))) -> 0 | J47: =IF($G$17=1,0,(VLOOKUP($L$19,Tablas!$A$44:$H$67,6,TRUE))) -> 0 | K47: =IF($G$17=1,0,(VLOOKUP($L$19,Tablas!$A$44:$H$67,7,TRUE))) -> 0 | L47: =IF($G$17=1,0,(VLOOKUP($L$19,Tablas!$A$44:$H$67,8,TRUE))) -> 0
F48: Primas Hijos | G48: =IF($L$17=0,0,(VLOOKUP($L$17,Tablas!$A$68:$H$70,3,TRUE))) -> 3685.62 | H48: =IF($L$17=0,0,(VLOOKUP($L$17,Tablas!$A$68:$H$70,4,TRUE))) -> 2410.97 | I48: =IF($L$17=0,0,(VLOOKUP($L$17,Tablas!$A$68:$H$70,5,TRUE))) -> 1648.83 | J48: =IF($L$17=0,0,(VLOOKUP($L$17,Tablas!$A$68:$H$70,6,TRUE))) -> 1259.28 | K48: =IF($L$17=0,0,(VLOOKUP($L$17,Tablas!$A$68:$H$70,7,TRUE))) -> 1221.12 | L48: =IF($L$17=0,0,(VLOOKUP($L$17,Tablas!$A$68:$H$70,8,TRUE))) -> 1062.65
F49: Rider: Complicación de Maternidad | G49: =+IF($G$2=FALSE,0,Tablas!C$71) -> 0 | H49: =+IF($G$2=FALSE,0,Tablas!D$71) -> 0 | I49: =+IF($G$2=FALSE,0,Tablas!E$71) -> 0 | J49: =+IF($G$2=FALSE,0,Tablas!F$71) -> 119.25 | K49: =+IF($G$2=FALSE,0,Tablas!G$71) -> 119.25 | L49: =+IF($G$2=FALSE,0,Tablas!H$71) -> 119.25
F50: TOTAL PRIMA NETA | G50: =SUM(G46:G49) -> 24140.18 | H50: 15172.05 | I50: 10843.01 | J50: 7969.88 | K50: 5874.79 | L50: 4787.23
F51: Contrib. 3.5% Super. Bancos : | G51: =G50*3.5% -> 844.9063 | H51: =H50*3.5% -> 531.02175 | I51: 379.50535 | J51: 278.9458 | K51: 205.61765 | L51: 167.55305
F52: Contrib 0.5% Seg.Soc.Campes: | G52: =G50*0.5% -> 120.7009 | H52: =H50*0.5% -> 75.86025 | I52: 54.21505 | J52: 39.8494 | K52: 29.37395 | L52: 23.93615
F53: GRAN TOTAL (1ra Cuota) | G53: =SUM(G50:G52) -> 25105.7872 | H53: =SUM(H50:H52) -> 15778.932 | I53: 11276.7304 | J53: 8288.6752 | K53: 6109.7816 | L53: =SUM(L50:L52) -> 4978.7192
F54: GRAN TOTAL (2da Cuota) | G54: =(G50+G51+G52)*1-78 -> 25027.7872 | H54: =(H50+H51+H52)*1-78 -> 15700.932 | I54: 11198.7304 | J54: 8210.6752 | K54: 6031.7816 | L54: 4900.7192
F56: Este presupuesto solamente tiene carácter informativo y en ningún momento expresa compromiso legal para suministrarle cobertura de seguro. La emisión de una póliza de seguro Bupa está sujeta a todas las evaluaciones de riesgo por parte de Bupa y a la recepción de todos los pagos de prima requeridos.

Sheet Bupa Diamond Care (LA)
N1: RESUMEN DE BENEFICIOS | AA1: RESUMEN DE BENEFICIOS
G2: FALSE | H2: FALSE
A5: Cotización de Seguro Médico Internacional Bupa Diamond Care (Latinoamérica) Tarifas en US$ | Validas: 1 de enero de 2025 | L5: REGIÓN
L7: ='INGRESO DE DATOS'!W14 -> Resto de Ecuador
A13: Nombre del asegurado principal: | G13: =+'INGRESO DE DATOS'!$C$36 -> John Doe
A15: Broker/Agente | G15: =+'INGRESO DE DATOS'!$C$44 -> Agencia
B17: Número de Adultos en la Póliza | G17: =+'INGRESO DE DATOS'!$C$38 -> 1 | J17: Dependientes (menores de 24 años) | L17: =+'INGRESO DE DATOS'!$G$38 -> 1
J18: =IF('INGRESO DE DATOS'!$P$2=TRUE, "Cotización para dependiente de 24 años","") -> 
B19: Edad del Titular | G19: =+'INGRESO DE DATOS'!$C$40 -> 36 | J19: Edad del Cónyuge | L19: =+'INGRESO DE DATOS'!$G$40 -> 32
J21: Fecha de Cotización: | K21: =NOW() -> 2025-04-10T15:01:19.660
F29: DEDUCIBLES | G29: PLAN 1 | H29: PLAN 2 | I29: PLAN 3 | J29: PLAN 4 | K29: PLAN 5 | L29: PLAN 6
F30: Dentro del pais de residencia | G30: 0 | H30: 1000 | I30: 2000 | J30: 5000 | K30: 10000 | L30: 20000
F31: Fuera del pais de residencia | G31: 1000 | H31: 2000 | I31: 3000 | J31: 5000 | K31: 10000 | L31: 20000
F34: TARIFAS ANUALES
F35: Prima de Titular | G35: =VLOOKUP($G$19,Tablas!$A$82:$H$105,3,TRUE)+75 -> 30396 | H35: =VLOOKUP($G$19,Tablas!$A$82:$H$105,4,TRUE)+75 -> 18896 | I35: =VLOOKUP($G$19,Tablas!$A$82:$H$105,5,TRUE)+75 -> 13585 | J35: =VLOOKUP($G$19,Tablas!$A$82:$H$105,6,TRUE)+75 -> 9687 | K35: =VLOOKUP($G$19,Tablas!$A$82:$H$105,7,TRUE)+75 -> 6620 | L35: =VLOOKUP($G$19,Tablas!$A$82:$H$105,8,TRUE)+75 -> 5229
F36: Prima de Cónyuge | G36: =IF($G$17=1,0,(VLOOKUP($L$19,Tablas!$A$82:$H$105,3,TRUE))) -> 0 | H36: =IF($G$17=1,0,(VLOOKUP($L$19,Tablas!$A$82:$H$105,4,TRUE))) -> 0 | I36: =IF($G$17=1,0,(VLOOKUP($L$19,Tablas!$A$82:$H$105,5,TRUE))) -> 0 | J36: =IF($G$17=1,0,(VLOOKUP($L$19,Tablas!$A$82:$H$105,6,TRUE))) -> 0 | K36: =IF($G$17=1,0,(VLOOKUP($L$19,Tablas!$A$82:$H$105,7,TRUE))) -> 0 | L36: =IF($G$17=1,0,(VLOOKUP($L$19,Tablas!$A$82:$H$105,8,TRUE))) -> 0
F37: Primas Hijos | G37: =IF($L$17=0,0,(VLOOKUP($L$17,Tablas!$A$106:$H$108,3,TRUE))) -> 8667 | H37: =IF($L$17=0,0,(VLOOKUP($L$17,Tablas!$A$106:$H$108,4,TRUE))) -> 5361 | I37: =IF($L$17=0,0,(VLOOKUP($L$17,Tablas!$A$106:$H$108,5,TRUE))) -> 3957 | J37: =IF($L$17=0,0,(VLOOKUP($L$17,Tablas!$A$106:$H$108,6,TRUE))) -> 3097 | K37: =IF($L$17=0,0,(VLOOKUP($L$17,Tablas!$A$106:$H$108,7,TRUE))) -> 2327 | L37: =IF($L$17=0,0,(VLOOKUP($L$17,Tablas!$A$106:$H$108,8,TRUE))) -> 1829
F38: Rider: Complicación de Maternidad | G38: =+IF($G$2=FALSE,0,Tablas!C$109) -> 0 | H38: =+IF($G$2=FALSE,0,Tablas!D$109) -> 0 | I38: =+IF($G$2=FALSE,0,Tablas!E$109) -> 0 | J38: =+IF($G$2=FALSE,0,Tablas!F$109) -> 0 | K38: =+IF($G$2=FALSE,0,Tablas!G$109) -> 0 | L38: =+IF($G$2=FALSE,0,Tablas!H$109) -> 0
F39: TOTAL PRIMA NETA | G39: =SUM(G35:G38) -> 39063 | H39: 24257 | I39: 17542 | J39: 12784 | K39: 8947 | L39: 7058
F40: Contrib. 3.5% Super. Bancos : | G40: =G39*3.5% -> 1367.205 | H40: =H39*3.5% -> 848.995 | I40: 613.97 | J40: 447.44 | K40: 313.145 | L40: 247.03
F41: Contrib 0.5% Seg.Soc.Campes: | G41: =G39*0.5% -> 195.315 | H41: =H39*0.5% -> 121.285 | I41: 87.71 | J41: 63.92 | K41: 44.735 | L41: 35.29
F42: GRAN TOTAL: | G42: =SUM(G39:G41) -> 40625.52 | H42: =SUM(H39:H41) -> 25227.28 | I42: 18243.68 | J42: 13295.36 | K42: 9304.88 | L42: =SUM(L39:L41) -> 7340.32
F45: TARIFAS SEMESTRALES
F46: Prima de Titular | G46: =VLOOKUP($G$19,Tablas!$A$117:$H$140,3,TRUE)+75 -> 16145.13 | H46: =VLOOKUP($G$19,Tablas!$A$117:$H$140,4,TRUE)+75 -> 10050.13 | I46: =VLOOKUP($G$19,Tablas!$A$117:$H$140,5,TRUE)+75 -> 7235.3 | J46: =VLOOKUP($G$19,Tablas!$A$117:$H$140,6,TRUE)+75 -> 5169.36 | K46: =VLOOKUP($G$19,Tablas!$A$117:$H$140,7,TRUE)+75 -> 3543.85 | L46: =VLOOKUP($G$19,Tablas!$A$117:$H$140,8,TRUE)+75 -> 2806.62
F47: Prima de Cónyuge | G47: =IF($G$17=1,0,(VLOOKUP($L$19,Tablas!$A$117:$H$140,3,TRUE))) -> 0 | H47: =IF($G$17=1,0,(VLOOKUP($L$19,Tablas!$A$117:$H$140,4,TRUE))) -> 0 | I47: =IF($G$17=1,0,(VLOOKUP($L$19,Tablas!$A$117:$H$140,5,TRUE))) -> 0 | J47: =IF($G$17=1,0,(VLOOKUP($L$19,Tablas!$A$117:$H$140,6,TRUE))) -> 0 | K47: =IF($G$17=1,0,(VLOOKUP($L$19,Tablas!$A$117:$H$140,7,TRUE))) -> 0 | L47: =IF($G$17=1,0,(VLOOKUP($L$19,Tablas!$A$117:$H$140,8,TRUE))) -> 0
F48: Primas Hijos | G48: =IF($L$17=0,0,(VLOOKUP($L$17,Tablas!$A$141:$H$143,3,TRUE))) -> 4593.51 | H48: =IF($L$17=0,0,(VLOOKUP($L$17,Tablas!$A$141:$H$143,4,TRUE))) -> 2841.33 | I48: =IF($L$17=0,0,(VLOOKUP($L$17,Tablas!$A$141:$H$143,5,TRUE))) -> 2097.21 | J48: =IF($L$17=0,0,(VLOOKUP($L$17,Tablas!$A$141:$H$143,6,TRUE))) -> 1641.41 | K48: =IF($L$17=0,0,(VLOOKUP($L$17,Tablas!$A$141:$H$143,7,TRUE))) -> 1233.31 | L48: =IF($L$17=0,0,(VLOOKUP($L$17,Tablas!$A$141:$H$143,8,TRUE))) -> 969.37
F49: Rider: Complicación de Maternidad | G49: =+IF($G$2=FALSE,0,Tablas!C$144) -> 0 | H49: =+IF($G$2=FALSE,0,Tablas!D$144) -> 0 | I49: =+IF($G$2=FALSE,0,Tablas!E$144) -> 0 | J49: =+IF($G$2=FALSE,0,Tablas!F$144) -> 0 | K49: =+IF($G$2=FALSE,0,Tablas!G$144) -> 0 | L49: =+IF($G$2=FALSE,0,Tablas!H$144) -> 0
F50: TOTAL PRIMA NETA | G50: =SUM(G46:G49) -> 20738.64 | H50: 12891.46 | I50: 9332.51 | J50: 6810.77 | K50: 4777.16 | L50: 3775.99
F51: Contrib. 3.5% Super. Bancos : | G51: =G50*5% -> 1036.932 | H51: =H50*5% -> 644.573 | I51: 466.6255 | J51: 340.5385 | K51: 238.858 | L51: 188.7995
F52: Contrib 0.5% Seg.Soc.Campes: | G52: =G50*0.5% -> 103.6932 | H52: =H50*0.5% -> 64.4573 | I52: 46.66255 | J52: 34.05385 | K52: 23.8858 | L52: 18.87995
F53: GRAN TOTAL (1ra Cuota) | G53: =SUM(G50:G52) -> 21879.2652 | H53: =SUM(H50:H52) -> 13600.4903 | I53: 9845.79805 | J53: 7185.36235 | K53: 5039.9038 | L53: =SUM(L50:L52) -> 3983.66945
F54: GRAN TOTAL (2da Cuota) | G54: =(G50+G51+G52)*1-78 -> 21801.2652 | H54: =(H50+H51+H52)*1-78 -> 13522.4903 | I54: 9767.79805 | J54: 7107.36235 | K54: 4961.9038 | L54: =(L50+L51+L52)*1-78 -> 3905.66945
F56: Este presupuesto solamente tiene carácter informativo y en ningún momento expresa compromiso legal para suministrarle cobertura de seguro. La emisión de una póliza de seguro Bupa está sujeta a todas las evaluaciones de riesgo por parte de Bupa y a la recepción de todos los pagos de prima requeridos.

Sheet Bupa Complete Care (Mundial)
N1: RESUMEN DE BENEFICIOS | AA1: RESUMEN DE BENEFICIOS
G2: FALSE | H2: FALSE
A5: Cotización de Seguro Médico Internacional Bupa Complete Care (Mundial) Tarifas en US$ | Validas: 1 de enero de 2025 | L5: REGIÓN
L7: ='INGRESO DE DATOS'!W14 -> Resto de Ecuador
A13: Nombre del asegurado principal: | G13: =+'INGRESO DE DATOS'!$C$36 -> John Doe
A15: Broker/Agente | G15: =+'INGRESO DE DATOS'!$C$44 -> Agencia
B17: Número de Adultos en la Póliza | G17: =+'INGRESO DE DATOS'!$C$38 -> 1 | J17: Dependientes (menores de 24 años) | L17: =+'INGRESO DE DATOS'!$G$38 -> 1
J18: =IF('INGRESO DE DATOS'!$P$2=TRUE, "Cotización para dependiente de 24 años","") -> 
B19: Edad del Titular | G19: =+'INGRESO DE DATOS'!$C$40 -> 36 | J19: Edad del Cónyuge | L19: =+'INGRESO DE DATOS'!$G$40 -> 32
J21: Fecha de Cotización: | K21: =NOW() -> 2025-04-10T15:01:19.660
F29: DEDUCIBLES | G29: PLAN 1 | H29: PLAN 2 | I29: PLAN 3 | J29: PLAN 4 | K29: PLAN 5 | L29: PLAN 6
F30: Dentro del pais de residencia | G30: 0 | H30: 1000 | I30: 2000 | J30: 5000 | K30: 10000 | L30: 20000
F31: Fuera del pais de residencia | G31: 1000 | H31: 2000 | I31: 3000 | J31: 5000 | K31: 10000 | L31: 20000
F34: TARIFAS ANUALES
F35: Prima de Titular | G35: =VLOOKUP($G$19,Tablas!$A$225:$H$248,3,TRUE)+75 -> 33219 | H35: =VLOOKUP($G$19,Tablas!$A$225:$H$248,4,TRUE)+75 -> 20174 | I35: =VLOOKUP($G$19,Tablas!$A$225:$H$248,5,TRUE)+75 -> 14964 | J35: =VLOOKUP($G$19,Tablas!$A$225:$H$248,6,TRUE)+75 -> 10022 | K35: =VLOOKUP($G$19,Tablas!$A$225:$H$248,7,TRUE)+75 -> 7451 | L35: =VLOOKUP($G$19,Tablas!$A$225:$H$248,8,TRUE)+75 -> 5726
F36: Prima de Cónyuge | G36: =IF($G$17=1,0,(VLOOKUP($L$19,Tablas!$A$225:$H$248,3,TRUE))) -> 0 | H36: =IF($G$17=1,0,(VLOOKUP($L$19,Tablas!$A$225:$H$248,4,TRUE))) -> 0 | I36: =IF($G$17=1,0,(VLOOKUP($L$19,Tablas!$A$225:$H$248,5,TRUE))) -> 0 | J36: =IF($G$17=1,0,(VLOOKUP($L$19,Tablas!$A$225:$H$248,6,TRUE))) -> 0 | K36: =IF($G$17=1,0,(VLOOKUP($L$19,Tablas!$A$225:$H$248,7,TRUE))) -> 0 | L36: =IF($G$17=1,0,(VLOOKUP($L$19,Tablas!$A$225:$H$248,8,TRUE))) -> 0
F37: Primas Hijos | G37: =IF($L$17=0,0,(VLOOKUP($L$17,Tablas!$A$249:$H$251,3,TRUE))) -> 9151 | H37: =IF($L$17=0,0,(VLOOKUP($L$17,Tablas!$A$249:$H$251,4,TRUE))) -> 5694 | I37: =IF($L$17=0,0,(VLOOKUP($L$17,Tablas!$A$249:$H$251,5,TRUE))) -> 4163 | J37: =IF($L$17=0,0,(VLOOKUP($L$17,Tablas!$A$249:$H$251,6,TRUE))) -> 2926 | K37: =IF($L$17=0,0,(VLOOKUP($L$17,Tablas!$A$249:$H$251,7,TRUE))) -> 2341 | L37: =IF($L$17=0,0,(VLOOKUP($L$17,Tablas!$A$249:$H$251,8,TRUE))) -> 1730
F38: Rider: Complicación de Maternidad | G38: =+IF($G$2=FALSE,0,Tablas!C$252) -> 0 | H38: =+IF($G$2=FALSE,0,Tablas!D$252) -> 0 | I38: =+IF($G$2=FALSE,0,Tablas!E$252) -> 0 | J38: =+IF($G$2=FALSE,0,Tablas!F$252) -> 0 | K38: =+IF($G$2=FALSE,0,Tablas!G$252) -> 0 | L38: =+IF($G$2=FALSE,0,Tablas!H$252) -> 0
F39: TOTAL PRIMA NETA | G39: =SUM(G35:G38) -> 42370 | H39: 25868 | I39: 19127 | J39: 12948 | K39: 9792 | L39: 7456
F40: Contrib. 3.5% Super. Bancos : | G40: =G39*3.5% -> 1482.95 | H40: =H39*3.5% -> 905.38 | I40: 669.445 | J40: 453.18 | K40: 342.72 | L40: 260.96
F41: Contrib 0.5% Seg.Soc.Campes: | G41: =G39*0.5% -> 211.85 | H41: =H39*0.5% -> 129.34 | I41: 95.635 | J41: 64.74 | K41: 48.96 | L41: 37.28
F42: GRAN TOTAL: | G42: =SUM(G39:G41) -> 44064.8 | H42: =SUM(H39:H41) -> 26902.72 | I42: 19892.08 | J42: 13465.92 | K42: 10183.68 | L42: =SUM(L39:L41) -> 7754.24
F45: TARIFAS SEMESTRALES
F46: Prima de Titular | G46: =VLOOKUP($G$19,Tablas!$A$260:$H$283,3,TRUE)+75 -> 17641.32 | H46: =VLOOKUP($G$19,Tablas!$A$260:$H$283,4,TRUE)+75 -> 10727.47 | I46: =VLOOKUP($G$19,Tablas!$A$260:$H$283,5,TRUE)+75 -> 7966.17 | J46: =VLOOKUP($G$19,Tablas!$A$260:$H$283,6,TRUE)+75 -> 5346.91 | K46: =VLOOKUP($G$19,Tablas!$A$260:$H$283,7,TRUE)+75 -> 3984.28 | L46: =VLOOKUP($G$19,Tablas!$A$260:$H$283,8,TRUE)+75 -> 3070.03
F47: Prima de Cónyuge | G47: =IF($G$17=1,0,(VLOOKUP($L$19,Tablas!$A$260:$H$283,3,TRUE))) -> 0 | H47: =IF($G$17=1,0,(VLOOKUP($L$19,Tablas!$A$260:$H$283,4,TRUE))) -> 0 | I47: =IF($G$17=1,0,(VLOOKUP($L$19,Tablas!$A$260:$H$283,5,TRUE))) -> 0 | J47: =IF($G$17=1,0,(VLOOKUP($L$19,Tablas!$A$260:$H$283,6,TRUE))) -> 0 | K47: =IF($G$17=1,0,(VLOOKUP($L$19,Tablas!$A$260:$H$283,7,TRUE))) -> 0 | L47: =IF($G$17=1,0,(VLOOKUP($L$19,Tablas!$A$260:$H$283,8,TRUE))) -> 0
F48: Primas Hijos | G48: =IF($L$17=0,0,(VLOOKUP($L$17,Tablas!$A$284:$H$286,3,TRUE))) -> 4850.03 | H48: =IF($L$17=0,0,(VLOOKUP($L$17,Tablas!$A$284:$H$286,4,TRUE))) -> 3017.82 | I48: =IF($L$17=0,0,(VLOOKUP($L$17,Tablas!$A$284:$H$286,5,TRUE))) -> 2206.39 | J48: =IF($L$17=0,0,(VLOOKUP($L$17,Tablas!$A$284:$H$286,6,TRUE))) -> 1550.78 | K48: =IF($L$17=0,0,(VLOOKUP($L$17,Tablas!$A$284:$H$286,7,TRUE))) -> 1240.73 | L48: =IF($L$17=0,0,(VLOOKUP($L$17,Tablas!$A$284:$H$286,8,TRUE))) -> 916.9
F49: Rider: Complicación de Maternidad | G49: =+IF($G$2=FALSE,0,Tablas!C$287) -> 0 | H49: =+IF($G$2=FALSE,0,Tablas!D$287) -> 0 | I49: =+IF($G$2=FALSE,0,Tablas!E$287) -> 0 | J49: =+IF($G$2=FALSE,0,Tablas!F$287) -> 0 | K49: =+IF($G$2=FALSE,0,Tablas!G$287) -> 0 | L49: =+IF($G$2=FALSE,0,Tablas!H$287) -> 0
F50: TOTAL PRIMA NETA | G50: =SUM(G46:G49) -> 22491.35 | H50: 13745.29 | I50: 10172.56 | J50: 6897.69 | K50: 5225.01 | L50: 3986.93
F51: Contrib. 3.5% Super. Bancos : | G51: =G50*3.5% -> 787.19725 | H51: =H50*3.5% -> 481.08515 | I51: 356.0396 | J51: 241.41915 | K51: 182.87535 | L51: 139.54255
F52: Contrib 0.5% Seg.Soc.Campes: | G52: =G50*0.5% -> 112.45675 | H52: =H50*0.5% -> 68.72645 | I52: 50.8628 | J52: 34.48845 | K52: 26.12505 | L52: 19.93465
F53: GRAN TOTAL (1ra Cuota) | G53: =SUM(G50:G52) -> 23391.004 | H53: =SUM(H50:H52) -> 14295.1016 | I53: 10579.4624 | J53: 7173.5976 | K53: 5434.0104 | L53: =SUM(L50:L52) -> 4146.4072
F54: GRAN TOTAL (2da Cuota) | G54: =(G50+G51+G52)*1-78 -> 23313.004 | H54: =(H50+H51+H52)*1-78 -> 14217.1016 | I54: 10501.4624 | J54: 7095.5976 | K54: 5356.0104 | L54: =(L50+L51+L52)*1-78 -> 4068.4072
F56: Este presupuesto solamente tiene carácter informativo y en ningún momento expresa compromiso legal para suministrarle cobertura de seguro. La emisión de una póliza de seguro Bupa está sujeta a todas las evaluaciones de riesgo por parte de Bupa y a la recepción de todos los pagos de prima requeridos.

Sheet Bupa Complete Care (LA)
N1: RESUMEN DE BENEFICIOS | AA1: RESUMEN DE BENEFICIOS
G2: FALSE | H2: FALSE
A5: Cotización de Seguro Médico Internacional Bupa Complete Care (Latinoamérica) Tarifas en US$ | Validas: 1 de enero de 2025 | L5: REGIÓN
L7: ='INGRESO DE DATOS'!W14 -> Resto de Ecuador
A13: Nombre del asegurado principal: | G13: =+'INGRESO DE DATOS'!$C$36 -> John Doe
A15: Broker/Agente | G15: =+'INGRESO DE DATOS'!$C$44 -> Agencia
B17: Número de Adultos en la Póliza | G17: =+'INGRESO DE DATOS'!$C$38 -> 1 | J17: Dependientes (menores de 24 años) | L17: =+'INGRESO DE DATOS'!$G$38 -> 1
J18: =IF('INGRESO DE DATOS'!$P$2=TRUE, "Cotización para dependiente de 24 años","") -> 
B19: Edad del Titular | G19: =+'INGRESO DE DATOS'!$C$40 -> 36 | J19: Edad del Cónyuge | L19: =+'INGRESO DE DATOS'!$G$40 -> 32
J21: Fecha de Cotización: | K21: =NOW() -> 2025-04-10T15:01:19.660
F29: DEDUCIBLES | G29: PLAN 1 | H29: PLAN 2 | I29: PLAN 3 | J29: PLAN 4 | K29: PLAN 5 | L29: PLAN 6
F30: Dentro del pais de residencia | G30: 0 | H30: 1000 | I30: 2000 | J30: 5000 | K30: 10000 | L30: 20000
F31: Fuera del pais de residencia | G31: 1000 | H31: 2000 | I31: 3000 | J31: 5000 | K31: 10000 | L31: 20000
F34: TARIFAS ANUALES
F35: Prima de Titular | G35: =VLOOKUP($G$19,Tablas!$A$296:$H$319,3,TRUE)+75 -> 26191 | H35: =VLOOKUP($G$19,Tablas!$A$296:$H$319,4,TRUE)+75 -> 15958 | I35: =VLOOKUP($G$19,Tablas!$A$296:$H$319,5,TRUE)+75 -> 11870 | J35: =VLOOKUP($G$19,Tablas!$A$296:$H$319,6,TRUE)+75 -> 8440 | K35: =VLOOKUP($G$19,Tablas!$A$296:$H$319,7,TRUE)+75 -> 5809 | L35: =VLOOKUP($G$19,Tablas!$A$296:$H$319,8,TRUE)+75 -> 4437
F36: Prima de Cónyuge | G36: =IF($G$17=1,0,(VLOOKUP($L$19,Tablas!$A$296:$H$319,3,TRUE))) -> 0 | H36: =IF($G$17=1,0,(VLOOKUP($L$19,Tablas!$A$296:$H$319,4,TRUE))) -> 0 | I36: =IF($G$17=1,0,(VLOOKUP($L$19,Tablas!$A$296:$H$319,5,TRUE))) -> 0 | J36: =IF($G$17=1,0,(VLOOKUP($L$19,Tablas!$A$296:$H$319,6,TRUE))) -> 0 | K36: =IF($G$17=1,0,(VLOOKUP($L$19,Tablas!$A$296:$H$319,7,TRUE))) -> 0 | L36: =IF($G$17=1,0,(VLOOKUP($L$19,Tablas!$A$296:$H$319,8,TRUE))) -> 0
F37: Primas Hijos | G37: =IF($L$17=0,0,(VLOOKUP($L$17,Tablas!$A$320:$H$322,3,TRUE))) -> 7245 | H37: =IF($L$17=0,0,(VLOOKUP($L$17,Tablas!$A$320:$H$322,4,TRUE))) -> 4509 | I37: =IF($L$17=0,0,(VLOOKUP($L$17,Tablas!$A$320:$H$322,5,TRUE))) -> 3279 | J37: =IF($L$17=0,0,(VLOOKUP($L$17,Tablas!$A$320:$H$322,6,TRUE))) -> 2452 | K37: =IF($L$17=0,0,(VLOOKUP($L$17,Tablas!$A$320:$H$322,7,TRUE))) -> 1858 | L37: =IF($L$17=0,0,(VLOOKUP($L$17,Tablas!$A$320:$H$322,8,TRUE))) -> 1380
F38: Rider: Complicación de Maternidad | G38: =+IF($G$2=FALSE,0,Tablas!C$323) -> 0 | H38: =+IF($G$2=FALSE,0,Tablas!D$323) -> 0 | I38: =+IF($G$2=FALSE,0,Tablas!E$323) -> 0 | J38: =+IF($G$2=FALSE,0,Tablas!F$323) -> 0 | K38: =+IF($G$2=FALSE,0,Tablas!G$323) -> 0 | L38: =+IF($G$2=FALSE,0,Tablas!H$323) -> 0
F39: TOTAL PRIMA NETA | G39: =SUM(G35:G38) -> 33436 | H39: 20467 | I39: 15149 | J39: 10892 | K39: 7667 | L39: 5817
F40: Contrib. 3.5% Super. Bancos : | G40: =G39*3.5% -> 1170.26 | H40: =H39*3.5% -> 716.345 | I40: 530.215 | J40: 381.22 | K40: 268.345 | L40: 203.595
F41: Contrib 0.5% Seg.Soc.Campes: | G41: =G39*0.5% -> 167.18 | H41: =H39*0.5% -> 102.335 | I41: 75.745 | J41: 54.46 | K41: 38.335 | L41: 29.085
F42: GRAN TOTAL: | G42: =SUM(G39:G41) -> 34773.44 | H42: =SUM(H39:H41) -> 21285.68 | I42: 15754.96 | J42: 11327.68 | K42: 7973.68 | L42: =SUM(L39:L41) -> 6049.68
F45: TARIFAS SEMESTRALES
F46: Prima de Titular | G46: =VLOOKUP($G$19,Tablas!$A$331:$H$354,3,TRUE)+75 -> 13916.48 | H46: =VLOOKUP($G$19,Tablas!$A$331:$H$354,4,TRUE)+75 -> 8492.99 | I46: =VLOOKUP($G$19,Tablas!$A$331:$H$354,5,TRUE)+75 -> 6326.35 | J46: =VLOOKUP($G$19,Tablas!$A$331:$H$354,6,TRUE)+75 -> 4508.45 | K46: =VLOOKUP($G$19,Tablas!$A$331:$H$354,7,TRUE)+75 -> 3114.02 | L46: =VLOOKUP($G$19,Tablas!$A$331:$H$354,8,TRUE)+75 -> 2386.86
F47: Prima de Cónyuge | G47: =IF($G$17=1,0,(VLOOKUP($L$19,Tablas!$A$331:$H$354,3,TRUE))) -> 0 | H47: =IF($G$17=1,0,(VLOOKUP($L$19,Tablas!$A$331:$H$354,4,TRUE))) -> 0 | I47: =IF($G$17=1,0,(VLOOKUP($L$19,Tablas!$A$331:$H$354,5,TRUE))) -> 0 | J47: =IF($G$17=1,0,(VLOOKUP($L$19,Tablas!$A$331:$H$354,6,TRUE))) -> 0 | K47: =IF($G$17=1,0,(VLOOKUP($L$19,Tablas!$A$331:$H$354,7,TRUE))) -> 0 | L47: =IF($G$17=1,0,(VLOOKUP($L$19,Tablas!$A$331:$H$354,8,TRUE))) -> 0
F48: Primas Hijos | G48: =IF($L$17=0,0,(VLOOKUP($L$17,Tablas!$A$355:$H$357,3,TRUE))) -> 3839.85 | H48: =IF($L$17=0,0,(VLOOKUP($L$17,Tablas!$A$355:$H$357,4,TRUE))) -> 2389.77 | I48: =IF($L$17=0,0,(VLOOKUP($L$17,Tablas!$A$355:$H$357,5,TRUE))) -> 1737.87 | J48: =IF($L$17=0,0,(VLOOKUP($L$17,Tablas!$A$355:$H$357,6,TRUE))) -> 1299.56 | K48: =IF($L$17=0,0,(VLOOKUP($L$17,Tablas!$A$355:$H$357,7,TRUE))) -> 984.74 | L48: =IF($L$17=0,0,(VLOOKUP($L$17,Tablas!$A$355:$H$357,8,TRUE))) -> 731.4
F49: Rider: Complicación de Maternidad | G49: =+IF($G$2=FALSE,0,Tablas!C$358) -> 0 | H49: =+IF($G$2=FALSE,0,Tablas!D$358) -> 0 | I49: =+IF($G$2=FALSE,0,Tablas!E$358) -> 0 | J49: =+IF($G$2=FALSE,0,Tablas!F$358) -> 0 | K49: =+IF($G$2=FALSE,0,Tablas!G$358) -> 0 | L49: =+IF($G$2=FALSE,0,Tablas!H$358) -> 0
F50: TOTAL PRIMA NETA | G50: =SUM(G46:G49) -> 17756.33 | H50: 10882.76 | I50: 8064.22 | J50: 5808.01 | K50: 4098.76 | L50: 3118.26
F51: Contrib. 3.5% Super. Bancos : | G51: =G50*3.5% -> 621.47155 | H51: =H50*3.5% -> 380.8966 | I51: 282.2477 | J51: 203.28035 | K51: 143.4566 | L51: 109.1391
F52: Contrib 0.5% Seg.Soc.Campes: | G52: =G50*0.5% -> 88.78165 | H52: =H50*0.5% -> 54.4138 | I52: 40.3211 | J52: 29.04005 | K52: 20.4938 | L52: 15.5913
F53: GRAN TOTAL (1ra Cuota) | G53: =SUM(G50:G52) -> 18466.5832 | H53: =SUM(H50:H52) -> 11318.0704 | I53: 8386.7888 | J53: 6040.3304 | K53: 4262.7104 | L53: =SUM(L50:L52) -> 3242.9904
F54: GRAN TOTAL (2da Cuota) | G54: =(G50+G51+G52)*1-78 -> 18388.5832 | H54: =(H50+H51+H52)*1-78 -> 11240.0704 | I54: 8308.7888 | J54: 5962.3304 | K54: 4184.7104 | L54: =(L50+L51+L52)*1-78 -> 3164.9904
F56: Este presupuesto solamente tiene carácter informativo y en ningún momento expresa compromiso legal para suministrarle cobertura de seguro. La emisión de una póliza de seguro Bupa está sujeta a todas las evaluaciones de riesgo por parte de Bupa y a la recepción de todos los pagos de prima requeridos.

Sheet Bupa Advantage Care (Mundial)
C1: FALSE | D1: TRUE | I1: RESUMEN DE BENEFICIOS | V1: RESUMEN DE BENEFICIOS
A5: Cotización de Seguro Médico Internacional Bupa Advantage Care (Mundial) Tarifas en US$ | Validas: 1 de enero de 2025 | G5: REGIÓN
G7: ='INGRESO DE DATOS'!W14 -> Resto de Ecuador
A13: Nombre del asegurado principal | B13: =+'INGRESO DE DATOS'!$C$36 -> John Doe
A15: Broker/Agente | B15: =+'INGRESO DE DATOS'!$C$44 -> Agencia
A17: Número de Adultos en la Póliza | B17: =+'INGRESO DE DATOS'!$C$38 -> 1 | D17: Dependientes (menores de 24 años) | G17: =+'INGRESO DE DATOS'!$G$38 -> 1
D18: =IF('INGRESO DE DATOS'!$P$2=TRUE, "Cotización para dependiente de 24 años","") -> 
A19: Edad del Titular | B19: =+'INGRESO DE DATOS'!$C$40 -> 36 | D19: Edad del Cónyuge | G19: =+'INGRESO DE DATOS'!$G$40 -> 32
D21: Fecha de Cotización: | F21: =NOW() -> 2025-04-10T15:01:19.660
A25: DEDUCIBLES | B25: PLAN 1 | C25: PLAN 2 | D25: PLAN 3 | E25: PLAN 4 | F25: PLAN 5 | G25: PLAN 6
A26: Dentro del pais de residencia | B26: 0 | C26: 1000 | D26: 2000 | E26: 5000 | F26: 10000 | G26: 20000
A27: Fuera del pais de residencia | B27: 1000 | C27: 2000 | D27: 3000 | E27: 5000 | F27: 10000 | G27: 20000
A30: TARIFAS ANUALES
A31: Prima de Titular | B31: =VLOOKUP($B$19,Tablas!$A$440:$H$463,3,TRUE)+75 -> 22099 | C31: =VLOOKUP($B$19,Tablas!$A$440:$H$463,4,TRUE)+75 -> 15333 | D31: =VLOOKUP($B$19,Tablas!$A$440:$H$463,5,TRUE)+75 -> 11826 | E31: =VLOOKUP($B$19,Tablas!$A$440:$H$463,6,TRUE)+75 -> 8013 | F31: =VLOOKUP($B$19,Tablas!$A$440:$H$463,7,TRUE)+75 -> 6157 | G31: =VLOOKUP($B$19,Tablas!$A$440:$H$463,8,TRUE)+75 -> 4673
A32: Prima de Cónyuge | B32: =IF($B$17=1,0,(VLOOKUP($G$19,Tablas!$A$440:$H$463,3,TRUE))) -> 0 | C32: =IF($B$17=1,0,(VLOOKUP($G$19,Tablas!$A$440:$H$463,4,TRUE))) -> 0 | D32: =IF($B$17=1,0,(VLOOKUP($G$19,Tablas!$A$440:$H$463,5,TRUE))) -> 0 | E32: =IF($B$17=1,0,(VLOOKUP($G$19,Tablas!$A$440:$H$463,6,TRUE))) -> 0 | F32: =IF($B$17=1,0,(VLOOKUP($G$19,Tablas!$A$440:$H$463,7,TRUE))) -> 0 | G32: =IF($B$17=1,0,(VLOOKUP($G$19,Tablas!$A$440:$H$463,8,TRUE))) -> 0
A33: Primas Hijos | B33: =IF($G$17=0,0,(VLOOKUP($G$17,Tablas!$A$464:$H$466,3,TRUE))) -> 6124 | C33: =IF($G$17=0,0,(VLOOKUP($G$17,Tablas!$A$464:$H$466,4,TRUE))) -> 4728 | D33: =IF($G$17=0,0,(VLOOKUP($G$17,Tablas!$A$464:$H$466,5,TRUE))) -> 3365 | E33: =IF($G$17=0,0,(VLOOKUP($G$17,Tablas!$A$464:$H$466,6,TRUE))) -> 1751 | F33: =IF($G$17=0,0,(VLOOKUP($G$17,Tablas!$A$464:$H$466,7,TRUE))) -> 1606 | G33: =IF($G$17=0,0,(VLOOKUP($G$17,Tablas!$A$464:$H$466,8,TRUE))) -> 1431
A34: Rider: Complicaciones de Maternidad | B34: =+IF($C$1=FALSE,0,Tablas!C$467) -> 0 | C34: =+IF($C$1=FALSE,0,Tablas!D$467) -> 0 | D34: =+IF($C$1=FALSE,0,Tablas!E$467) -> 0 | E34: =+IF($C$1=FALSE,0,Tablas!F$467) -> 0 | F34: =+IF($C$1=FALSE,0,Tablas!G$467) -> 0 | G34: =+IF($C$1=FALSE,0,Tablas!H$467) -> 0
A35: Rider: Trasplante Organos | B35: =IF($D$1=FALSE,0,Tablas!C$468) -> 300 | C35: =IF($D$1=FALSE,0,Tablas!D$468) -> 300 | D35: =IF($D$1=FALSE,0,Tablas!E$468) -> 300 | E35: =IF($D$1=FALSE,0,Tablas!F$468) -> 300 | F35: =IF($D$1=FALSE,0,Tablas!G$468) -> 300 | G35: =IF($D$1=FALSE,0,Tablas!H$468) -> 300
A36: TOTAL PRIMA NETA | B36: =SUM(B31:B35) -> 28523 | C36: 20361 | D36: 15491 | E36: 10064 | F36: 8063 | G36: 6404
A37: Contrib. 3.5% Super. Bancos : | B37: =B36*3.5% -> 998.305 | C37: =C36*3.5% -> 712.635 | D37: 542.185 | E37: 352.24 | F37: 282.205 | G37: 224.14
A38: Contrib 0.5% Seg.Soc.Campes: | B38: =B36*0.5% -> 142.615 | C38: =C36*0.5% -> 101.805 | D38: 77.455 | E38: 50.32 | F38: 40.315 | G38: 32.02
A39: GRAN TOTAL : | B39: =SUM(B36:B38) -> 29663.92 | C39: =SUM(C36:C38) -> 21175.44 | D39: 16110.64 | E39: 10466.56 | F39: 8385.52 | G39: =SUM(G36:G38) -> 6660.16
A42: TARIFAS SEMESTRALES
A43: Prima de Titular | B43: =VLOOKUP($B$19,Tablas!$A$475:$H$498,3,TRUE)+75 -> 11747.72 | C43: =VLOOKUP($B$19,Tablas!$A$475:$H$498,4,TRUE)+75 -> 8161.74 | D43: =VLOOKUP($B$19,Tablas!$A$475:$H$498,5,TRUE)+75 -> 6303.03 | E43: =VLOOKUP($B$19,Tablas!$A$475:$H$498,6,TRUE)+75 -> 4282.14 | F43: =VLOOKUP($B$19,Tablas!$A$475:$H$498,7,TRUE)+75 -> 3298.46 | G43: =VLOOKUP($B$19,Tablas!$A$475:$H$498,8,TRUE)+75 -> 2511.94
A44: Prima de Cónyuge | B44: =IF($B$17=1,0,(VLOOKUP($G$19,Tablas!$A$475:$H$498,3,TRUE))) -> 0 | C44: =IF($B$17=1,0,(VLOOKUP($G$19,Tablas!$A$475:$H$498,4,TRUE))) -> 0 | D44: =IF($B$17=1,0,(VLOOKUP($G$19,Tablas!$A$475:$H$498,5,TRUE))) -> 0 | E44: =IF($B$17=1,0,(VLOOKUP($G$19,Tablas!$A$475:$H$498,6,TRUE))) -> 0 | F44: =IF($B$17=1,0,(VLOOKUP($G$19,Tablas!$A$475:$H$498,7,TRUE))) -> 0 | G44: =IF($B$17=1,0,(VLOOKUP($G$19,Tablas!$A$475:$H$498,8,TRUE))) -> 0
A45: Primas Hijos | B45: =IF($G$17=0,0,(VLOOKUP($G$17,Tablas!$A$499:$H$501,3,TRUE))) -> 3245.72 | C45: =IF($G$17=0,0,(VLOOKUP($G$17,Tablas!$A$499:$H$501,4,TRUE))) -> 2505.84 | D45: =IF($G$17=0,0,(VLOOKUP($G$17,Tablas!$A$499:$H$501,5,TRUE))) -> 1783.45 | E45: =IF($G$17=0,0,(VLOOKUP($G$17,Tablas!$A$499:$H$501,6,TRUE))) -> 928.03 | F45: =IF($G$17=0,0,(VLOOKUP($G$17,Tablas!$A$499:$H$501,7,TRUE))) -> 851.18 | G45: =IF($G$17=0,0,(VLOOKUP($G$17,Tablas!$A$499:$H$501,8,TRUE))) -> 758.43
A46: Rider: Complicaciones de Maternidad | B46: =+IF($C$1=FALSE,0,Tablas!C$502) -> 0 | C46: =+IF($C$1=FALSE,0,Tablas!D$502) -> 0 | D46: =+IF($C$1=FALSE,0,Tablas!E$502) -> 0 | E46: =+IF($C$1=FALSE,0,Tablas!F$502) -> 0 | F46: =+IF($C$1=FALSE,0,Tablas!G$502) -> 0 | G46: =+IF($C$1=FALSE,0,Tablas!H$502) -> 0
A47: Rider: Trasplante Organos | B47: =IF($D$1=FALSE,0,Tablas!C$503) -> 159 | C47: =IF($D$1=FALSE,0,Tablas!D$503) -> 159 | D47: =IF($D$1=FALSE,0,Tablas!E$503) -> 159 | E47: =IF($D$1=FALSE,0,Tablas!F$503) -> 159 | F47: =IF($D$1=FALSE,0,Tablas!G$503) -> 159 | G47: =IF($D$1=FALSE,0,Tablas!H$503) -> 159
A48: TOTAL PRIMA NETA | B48: =SUM(B43:B47) -> 15152.44 | C48: 10826.58 | D48: 8245.48 | E48: 5369.17 | F48: 4308.64 | G48: 3429.37
A49: Contrib. 3.5% Super. Bancos : | B49: =B48*3.5% -> 530.3354 | C49: =C48*3.5% -> 378.9303 | D49: 288.5918 | E49: 187.92095 | F49: 150.8024 | G49: 120.02795
A50: Contrib 0.5% Seg.Soc.Campes: | B50: =B48*0.5% -> 75.7622 | C50: =C48*0.5% -> 54.1329 | D50: 41.2274 | E50: 26.84585 | F50: 21.5432 | G50: 17.14685
A51: GRAN TOTAL (1ra Cuota) | B51: =SUM(B48:B50) -> 15758.5376 | C51: =SUM(C48:C50) -> 11259.6432 | D51: 8575.2992 | E51: 5583.9368 | F51: 4480.9856 | G51: =SUM(G48:G50) -> 3566.5448
A52: GRAN TOTAL (2da Cuota) | B52: =(B48+B49+B50)*1-78 -> 15680.5376 | C52: =(C48+C49+C50)*1-78 -> 11181.6432 | D52: 8497.2992 | E52: 5505.9368 | F52: 4402.9856 | G52: =(G48+G49+G50)*1-78 -> 3488.5448
A54: Este presupuesto solamente tiene carácter informativo y en ningún momento expresa compromiso legal para suministrarle cobertura de seguro. La emisión de una póliza de seguro Bupa está sujeta a todas las evaluaciones de riesgo por parte de Bupa y a la recepción de todos los pagos de prima requeridos.

Sheet Advantage (LA) (hidden)
A10: Cotización de Seguro Médico Internacional - Bupa ADVANTAGE Care (cobertura solo Latinoamérica)
A12: Bupa Advantage Care (cobertura solo en Latinoamérica) | H12: =+'INGRESO DE DATOS'!$C$36 -> John Doe
A13: Cobertura Máxima anual | C13: US $ 3,500,000
A14: Cobertura Geografica | C14: Limitada a Latinoamérica excluyendo México | H14: =+'INGRESO DE DATOS'!$C$44 -> Agencia
A15: Condiciones médicas cubiertas | C15: Todas las condiciones médicas
A16: Redes de proveedores | C16: Red de Proveedores "Bupa Advantage" | J16: =+'INGRESO DE DATOS'!$C$38 -> 1 | M16: =+'INGRESO DE DATOS'!$C$40 -> 36
A17: Opciones fuera de la Red | C17: NO, solo en casos de emergencia | F17: FECHA DE COTIZACION :
A18: Requiere preautorización | C18: SI, 30% de penalización por omitir prenotificación | F18: =NOW() -> 2025-04-10T15:01:19.660 | J18: =+'INGRESO DE DATOS'!$G$38 -> 1 | M18: =+'INGRESO DE DATOS'!$G$40 -> 32
A20: Número máximo de días de hospitalización | C20: Ilimitado | I20: TRUE | K20: COMPLICACIONES DE MATERNIDAD
A21: Habitación y alimentación | C21: 100% dentro de Red Bupa
C22: "UCR" para L.A. en emergencias fuera de Red Bupa | I22: TRUE | K22: TRASPLANTE DE ORGANOS
A23: Cuidados Intensivos | C23: 100% dentro de Red Bupa
C24: "UCR" para L.A. en emergencias fuera de Red Bupa
A25: Cobertura de Maternidad | C25: $5,000 (Excepto planes 4,5, y 6) | F25: Deducibles | H25: PLAN 1 | I25: PLAN 2 | J25: PLAN 3 | K25: PLAN 4 | L25: PLAN 5 | M25: PLAN 6
A26: Cobertura Provisional de Recién Nacido | C26: $30,000 por los primeros 90 días | F26: Dentro del pais de residencia | H26: n/a | I26: 1000 | J26: 2000 | K26: 5000 | L26: 10000 | M26: 20000
A27: Cuidado del Recién Nacido saludable | C27: Ya incluída dentro del beneficio de Maternidad | F27: Fuera del pais de residencia | H27: n/a | I27: 2000 | J27: 3000 | K27: 5000 | L27: 10000 | M27: 20000
A28: Cobertura de Complicaciones de Maternidad | C28: Disponible a través de cobertura opcional adicional
A29: Trasplante de Organos | C29: $1,000,000 de por vida, por diagnóstico
A30: Condiciones congénitas y hereditarias | C30: <18 años $300,000 de por vida; >=18 al 100% | F30: Tarifas Anuales
A31: Coberturas opcionales (Riders) | C31: Complicaciones de Maternidad por $500,000 | F31: Prima de Titular : | H31: n/a | I31: =VLOOKUP($M$16,Tablas!$A$582:$H$605,4,TRUE) -> 16068 | J31: =VLOOKUP($M$16,Tablas!$A$582:$H$605,5,TRUE) -> 12342 | K31: =VLOOKUP($M$16,Tablas!$A$582:$H$605,6,TRUE) -> 8853 | L31: =VLOOKUP($M$16,Tablas!$A$582:$H$605,7,TRUE) -> 6822 | M31: =VLOOKUP($M$16,Tablas!$A$582:$H$605,8,TRUE) -> 5116
C32: Trasplante de órganos por $ 300,000 adicionales | F32: Prima de Cónyuge | H32: n/a | I32: =IF($J$16=1,0,(VLOOKUP($M$18,Tablas!$A$582:$H$605,4,TRUE))) -> 0 | J32: =IF($J$16=1,0,(VLOOKUP($M$18,Tablas!$A$582:$H$605,5,TRUE))) -> 0 | K32: =IF($J$16=1,0,(VLOOKUP($M$18,Tablas!$A$582:$H$605,6,TRUE))) -> 0 | L32: =IF($J$16=1,0,(VLOOKUP($M$18,Tablas!$A$582:$H$605,7,TRUE))) -> 0 | M32: =IF($J$16=1,0,(VLOOKUP($M$18,Tablas!$A$582:$H$605,8,TRUE))) -> 0
A33: Acompañamiento de menores hospitalizados | C33: $300 por día | F33: Primas Hijos : | H33: n/a | I33: =IF($J$18=0,0,(VLOOKUP($J$18,Tablas!$A$606:$H$608,4,TRUE))) -> 5009 | J33: =IF($J$18=0,0,(VLOOKUP($J$18,Tablas!$A$606:$H$608,5,TRUE))) -> 3572 | K33: =IF($J$18=0,0,(VLOOKUP($J$18,Tablas!$A$606:$H$608,6,TRUE))) -> 2624 | L33: =IF($J$18=0,0,(VLOOKUP($J$18,Tablas!$A$606:$H$608,7,TRUE))) -> 2281 | M33: =IF($J$18=0,0,(VLOOKUP($J$18,Tablas!$A$606:$H$608,8,TRUE))) -> 1656
A34: Ambulancia aérea | C34: $100,000 por año y ticket aéreo de retorno | F34: Prima Rider Complic. Maternidad | H34: n/a | I34: =+IF($I$20=FALSE,0,Tablas!D$609) -> 0 | J34: =+IF($I$20=FALSE,0,Tablas!E$609) -> 0 | K34: =+IF($I$20=FALSE,0,Tablas!F$609) -> 0 | L34: =+IF($I$20=FALSE,0,Tablas!G$609) -> 0 | M34: =+IF($I$20=FALSE,0,Tablas!H$609) -> 0
A35: Repatriación restos mortales | C35: 1 | F35: Prima Rider Trasplante Organos | H35: n/a | I35: =IF($I$22=FALSE,0,Tablas!D$610) -> 0 | J35: =IF($I$22=FALSE,0,Tablas!E$610) -> 0 | K35: =IF($I$22=FALSE,0,Tablas!F$610) -> 0 | L35: =IF($I$22=FALSE,0,Tablas!G$610) -> 0 | M35: =IF($I$22=FALSE,0,Tablas!H$610) -> 0
A36: Medicamentos por receta | C36: $6,000 por Asegurado, por año póliza | F36: TOTAL PRIMA NETA : | H36: n/a | I36: =SUM(I31:I35) -> 21077 | J36: 15914 | K36: 11477 | L36: 9103 | M36: 6772
A37: Almacenamiento de sangre de cordon umbilical | C37: $500 (Excepto planes 4,5, y 6) | F37: Costo Administrativo Anual : | H37: n/a | I37: 75 | J37: 75 | K37: 75 | L37: 75 | M37: 75
F38: GRAN TOTAL : | H38: n/a | I38: =SUM(I36:I37) -> 21152 | J38: =SUM(J36:J37) -> 15989 | K38: =SUM(K36:K37) -> 11552 | L38: =SUM(L36:L37) -> 9178 | M38: =SUM(M36:M37) -> 6847
A39: Atención médica en el hogar | C39: 100% de usual/acostumbrado y razonable
A40: Rehabilitación | C40: 100% de usual/acostumbrado y razonable | F40: Tarifas Semestrales
A41: Residencia y cuidados paliativos | C41: 100% de usual/acostumbrado y razonable | F41: Prima de Titular : | H41: n/a | I41: =VLOOKUP($M$16,Tablas!$A$615:$H$638,4,TRUE) -> 8516.04 | J41: =VLOOKUP($M$16,Tablas!$A$615:$H$638,5,TRUE) -> 6541.26 | K41: =VLOOKUP($M$16,Tablas!$A$615:$H$638,6,TRUE) -> 4692.09 | L41: =VLOOKUP($M$16,Tablas!$A$615:$H$638,7,TRUE) -> 3615.66 | M41: =VLOOKUP($M$16,Tablas!$A$615:$H$638,8,TRUE) -> 2711.48
A42: Cobertura de actividades peligrosas | C42: 1 | F42: Prima de Cónyuge | H42: n/a | I42: =IF($J$16=1,0,(VLOOKUP($M$18,Tablas!$A$615:$H$638,4,TRUE))) -> 0 | J42: =IF($J$16=1,0,(VLOOKUP($M$18,Tablas!$A$615:$H$638,5,TRUE))) -> 0 | K42: =IF($J$16=1,0,(VLOOKUP($M$18,Tablas!$A$615:$H$638,6,TRUE))) -> 0 | L42: =IF($J$16=1,0,(VLOOKUP($M$18,Tablas!$A$615:$H$638,7,TRUE))) -> 0 | M42: =IF($J$16=1,0,(VLOOKUP($M$18,Tablas!$A$615:$H$638,8,TRUE))) -> 0
A43: Chequeos generales de rutina | C43: Hasta US$150 por año póliza.Sin deducible | F43: Primas Hijos : | H43: n/a | I43: =IF($J$18=0,0,(VLOOKUP($J$18,Tablas!$A$639:$H$641,4,TRUE))) -> 2654.77 | J43: =IF($J$18=0,0,(VLOOKUP($J$18,Tablas!$A$639:$H$641,5,TRUE))) -> 1893.16 | K43: =IF($J$18=0,0,(VLOOKUP($J$18,Tablas!$A$639:$H$641,6,TRUE))) -> 1390.72 | L43: =IF($J$18=0,0,(VLOOKUP($J$18,Tablas!$A$639:$H$641,7,TRUE))) -> 1208.93 | M43: =IF($J$18=0,0,(VLOOKUP($J$18,Tablas!$A$639:$H$641,8,TRUE))) -> 877.68
A44: Cobertura de VIH, SIDA, CAS | C44: Solo como efecto de transfusión de sangre | F44: Prima Rider Complic. Maternidad | H44: n/a | I44: =+IF($I$20=FALSE,0,Tablas!D$642) -> 0 | J44: =+IF($I$20=FALSE,0,Tablas!E$642) -> 0 | K44: =+IF($I$20=FALSE,0,Tablas!F$642) -> 0 | L44: =+IF($I$20=FALSE,0,Tablas!G$642) -> 0 | M44: =+IF($I$20=FALSE,0,Tablas!H$642) -> 0
A45: Cobertura de brazos y piernas artificiales | C45: $30,000 por año y hasta $120,000 de por vida | F45: Prima Rider Trasplante Organos | H45: n/a | I45: =IF($I$22=FALSE,0,Tablas!D$643) -> 0 | J45: =IF($I$22=FALSE,0,Tablas!E$643) -> 0 | K45: =IF($I$22=FALSE,0,Tablas!F$643) -> 0 | L45: =IF($I$22=FALSE,0,Tablas!G$643) -> 0 | M45: =IF($I$22=FALSE,0,Tablas!H$643) -> 0
A46: Cobertura extendida para dependientes en caso de muerte de asegurado principal | C46: 2 años sin costo | F46: TOTAL PRIMA NETA : | H46: n/a | I46: =SUM(I41:I45) -> 11170.81 | J46: 8434.42 | K46: 6082.81 | L46: 4824.59 | M46: 3589.16
F47: Costo Administrativo Anual : | H47: n/a | I47: 75 | J47: 75 | K47: 75 | L47: 75 | M47: 75
F48: GRAN TOTAL (1ra Cuota) : | H48: n/a | I48: =SUM(I46:I47) -> 11245.81 | J48: =SUM(J46:J47) -> 8509.42 | K48: =SUM(K46:K47) -> 6157.81 | L48: =SUM(L46:L47) -> 4899.59 | M48: =SUM(M46:M47) -> 3664.16
F49: GRAN TOTAL (2da Cuota) : | H49: n/a | I49: =I46 -> 11170.81 | J49: =J46 -> 8434.42 | K49: 6082.81 | L49: 4824.59 | M49: 3589.16
F50: Tarifas en US $ - Válidas desde 01 Ene 2013

Sheet Bupa Advantage Care (LA)
C1: FALSE | D1: FALSE | I1: RESUMEN DE BENEFICIOS | V1: RESUMEN DE BENEFICIOS
A5: Cotización de Seguro Médico Internacional Bupa Advantage Care (Latinoamérica) Tarifas en US$ | Validas: 1 de enero de 2025 | G5: REGIÓN
G7: ='INGRESO DE DATOS'!W14 -> Resto de Ecuador
A13: Nombre del asegurado principal | B13: =+'INGRESO DE DATOS'!$C$36 -> John Doe
A15: Broker/Agente | B15: =+'INGRESO DE DATOS'!$C$44 -> Agencia
A17: Número de Adultos en la Póliza | B17: =+'INGRESO DE DATOS'!$C$38 -> 1 | D17: Dependientes (menores de 24 años) | G17: =+'INGRESO DE DATOS'!$G$38 -> 1
D18: =IF('INGRESO DE DATOS'!$P$2=TRUE, "Cotización para dependiente de 24 años","") -> 
A19: Edad del Titular | B19: =+'INGRESO DE DATOS'!$C$40 -> 36 | D19: Edad del Cónyuge | G19: =+'INGRESO DE DATOS'!$G$40 -> 32
D21: Fecha de Cotización: | F21: =NOW() -> 2025-04-10T15:01:19.660
A25: DEDUCIBLES | B25: PLAN 1 | C25: PLAN 2 | D25: PLAN 3 | E25: PLAN 4 | F25: PLAN 5 | G25: PLAN 6
A26: Dentro del pais de residencia | B26: 0 | C26: 1000 | D26: 2000 | E26: 5000 | F26: 10000 | G26: 20000
A27: Fuera del pais de residencia | B27: 1000 | C27: 2000 | D27: 3000 | E27: 5000 | F27: 10000 | G27: 20000
A30: TARIFAS ANUALES
A31: Prima de Titular | B31: =VLOOKUP($B$19,Tablas!$A$510:$H$533,3,TRUE)+75 -> 17531 | C31: =VLOOKUP($B$19,Tablas!$A$510:$H$533,4,TRUE)+75 -> 12133 | D31: =VLOOKUP($B$19,Tablas!$A$510:$H$533,5,TRUE)+75 -> 9332 | E31: =VLOOKUP($B$19,Tablas!$A$510:$H$533,6,TRUE)+75 -> 6823 | F31: =VLOOKUP($B$19,Tablas!$A$510:$H$533,7,TRUE)+75 -> 4824 | G31: =VLOOKUP($B$19,Tablas!$A$510:$H$533,8,TRUE)+75 -> 3640
A32: Prima de Cónyuge | B32: =IF($B$17=1,0,(VLOOKUP($G$19,Tablas!$A$510:$H$533,3,TRUE))) -> 0 | C32: =IF($B$17=1,0,(VLOOKUP($G$19,Tablas!$A$510:$H$533,4,TRUE))) -> 0 | D32: =IF($B$17=1,0,(VLOOKUP($G$19,Tablas!$A$510:$H$533,5,TRUE))) -> 0 | E32: =IF($B$17=1,0,(VLOOKUP($G$19,Tablas!$A$510:$H$533,6,TRUE))) -> 0 | F32: =IF($B$17=1,0,(VLOOKUP($G$19,Tablas!$A$510:$H$533,7,TRUE))) -> 0 | G32: =IF($B$17=1,0,(VLOOKUP($G$19,Tablas!$A$510:$H$533,8,TRUE))) -> 0
A33: Primas Hijos | B33: =IF($G$17=0,0,(VLOOKUP($G$17,Tablas!$A$534:$H$536,3,TRUE))) -> 4897 | C33: =IF($G$17=0,0,(VLOOKUP($G$17,Tablas!$A$534:$H$536,4,TRUE))) -> 3767 | D33: =IF($G$17=0,0,(VLOOKUP($G$17,Tablas!$A$534:$H$536,5,TRUE))) -> 2688 | E33: =IF($G$17=0,0,(VLOOKUP($G$17,Tablas!$A$534:$H$536,6,TRUE))) -> 2013 | F33: =IF($G$17=0,0,(VLOOKUP($G$17,Tablas!$A$534:$H$536,7,TRUE))) -> 1604 | G33: =IF($G$17=0,0,(VLOOKUP($G$17,Tablas!$A$534:$H$536,8,TRUE))) -> 1159
A34: Rider: Complicaciones de Maternidad | B34: =+IF($C$1=FALSE,0,Tablas!C$537) -> 0 | C34: =+IF($C$1=FALSE,0,Tablas!D$537) -> 0 | D34: =+IF($C$1=FALSE,0,Tablas!E$537) -> 0 | E34: =+IF($C$1=FALSE,0,Tablas!F$537) -> 0 | F34: =+IF($C$1=FALSE,0,Tablas!G$537) -> 0 | G34: =+IF($C$1=FALSE,0,Tablas!H$537) -> 0
A35: Rider: Trasplante Organos | B35: =IF($D$1=FALSE,0,Tablas!C$538) -> 0 | C35: =IF($D$1=FALSE,0,Tablas!D$538) -> 0 | D35: =IF($D$1=FALSE,0,Tablas!E$538) -> 0 | E35: =IF($D$1=FALSE,0,Tablas!F$538) -> 0 | F35: =IF($D$1=FALSE,0,Tablas!G$538) -> 0 | G35: =IF($D$1=FALSE,0,Tablas!H$538) -> 0
A36: TOTAL PRIMA NETA | B36: =SUM(B31:B35) -> 22428 | C36: =SUM(C31:C35) -> 15900 | D36: 12020 | E36: 8836 | F36: 6428 | G36: 4799
A37: Contrib. 3.5% Super. Bancos : | B37: =B36*3.5% -> 784.98 | C37: =C36*3.5% -> 556.5 | D37: 420.7 | E37: 309.26 | F37: 224.98 | G37: 167.965
A38: Contrib 0.5% Seg.Soc.Campes: | B38: =B36*0.5% -> 112.14 | C38: =C36*0.5% -> 79.5 | D38: 60.1 | E38: 44.18 | F38: 32.14 | G38: 23.995
A39: GRAN TOTAL : | B39: =SUM(B36:B38) -> 23325.12 | C39: =SUM(C36:C38) -> 16536 | D39: 12500.8 | E39: 9189.44 | F39: 6685.12 | G39: =SUM(G36:G38) -> 4990.96
A42: TARIFAS SEMESTRALES
A43: Prima de Titular | B43: =VLOOKUP($B$19,Tablas!$A$545:$H$568,3,TRUE)+75 -> 9326.68 | C43: =VLOOKUP($B$19,Tablas!$A$545:$H$568,4,TRUE)+75 -> 6465.74 | D43: =VLOOKUP($B$19,Tablas!$A$545:$H$568,5,TRUE)+75 -> 4981.21 | E43: =VLOOKUP($B$19,Tablas!$A$545:$H$568,6,TRUE)+75 -> 3651.44 | F43: =VLOOKUP($B$19,Tablas!$A$545:$H$568,7,TRUE)+75 -> 2591.97 | G43: =VLOOKUP($B$19,Tablas!$A$545:$H$568,8,TRUE)+57 -> 1946.45
A44: Prima de Cónyuge | B44: =IF($B$17=1,0,(VLOOKUP($G$19,Tablas!$A$545:$H$568,3,TRUE))) -> 0 | C44: =IF($B$17=1,0,(VLOOKUP($G$19,Tablas!$A$545:$H$568,4,TRUE))) -> 0 | D44: =IF($B$17=1,0,(VLOOKUP($G$19,Tablas!$A$545:$H$568,5,TRUE))) -> 0 | E44: =IF($B$17=1,0,(VLOOKUP($G$19,Tablas!$A$545:$H$568,6,TRUE))) -> 0 | F44: =IF($B$17=1,0,(VLOOKUP($G$19,Tablas!$A$545:$H$568,7,TRUE))) -> 0 | G44: =IF($B$17=1,0,(VLOOKUP($G$19,Tablas!$A$545:$H$568,8,TRUE))) -> 0
A45: Primas Hijos | B45: =IF($G$17=0,0,(VLOOKUP($G$17,Tablas!$A$569:$H$571,3,TRUE))) -> 2595.41 | C45: =IF($G$17=0,0,(VLOOKUP($G$17,Tablas!$A$569:$H$571,4,TRUE))) -> 1996.51 | D45: =IF($G$17=0,0,(VLOOKUP($G$17,Tablas!$A$569:$H$571,5,TRUE))) -> 1424.64 | E45: =IF($G$17=0,0,(VLOOKUP($G$17,Tablas!$A$569:$H$571,6,TRUE))) -> 1066.89 | F45: =IF($G$17=0,0,(VLOOKUP($G$17,Tablas!$A$569:$H$571,7,TRUE))) -> 850.12 | G45: =IF($G$17=0,0,(VLOOKUP($G$17,Tablas!$A$569:$H$571,8,TRUE))) -> 614.27
A46: Rider: Complicaciones de Maternidad | B46: =+IF($C$1=FALSE,0,Tablas!C$572) -> 0 | C46: =+IF($C$1=FALSE,0,Tablas!D$572) -> 0 | D46: =+IF($C$1=FALSE,0,Tablas!E$572) -> 0 | E46: =+IF($C$1=FALSE,0,Tablas!F$572) -> 0 | F46: =+IF($C$1=FALSE,0,Tablas!G$572) -> 0 | G46: =+IF($C$1=FALSE,0,Tablas!H$572) -> 0
A47: Rider: Trasplante Organos | B47: =IF($D$1=FALSE,0,Tablas!C$573) -> 0 | C47: =IF($D$1=FALSE,0,Tablas!D$573) -> 0 | D47: =IF($D$1=FALSE,0,Tablas!E$573) -> 0 | E47: =IF($D$1=FALSE,0,Tablas!F$573) -> 0 | F47: =IF($D$1=FALSE,0,Tablas!G$573) -> 0 | G47: =IF($D$1=FALSE,0,Tablas!H$573) -> 0
A48: TOTAL PRIMA NETA | B48: =SUM(B43:B47) -> 11922.09 | C48: =SUM(C43:C47) -> 8462.25 | D48: 6405.85 | E48: 4718.33 | F48: 3442.09 | G48: 2560.72
A49: Contrib. 3.5% Super. Bancos : | B49: =B48*3.5% -> 417.27315 | C49: =C48*3.5% -> 296.17875 | D49: 224.20475 | E49: 165.14155 | F49: 120.47315 | G49: 89.6252
A50: Contrib 0.5% Seg.Soc.Campes: | B50: =B48*0.5% -> 59.61045 | C50: =C48*0.5% -> 42.31125 | D50: 32.02925 | E50: 23.59165 | F50: 17.21045 | G50: 12.8036
A51: GRAN TOTAL (1ra Cuota) | B51: =SUM(B48:B50) -> 12398.9736 | C51: =SUM(C48:C50) -> 8800.74 | D51: 6662.084 | E51: 4907.0632 | F51: 3579.7736 | G51: =SUM(G48:G50) -> 2663.1488
A52: GRAN TOTAL (2da Cuota) | B52: =(B48+B49+B50)*1-78 -> 12320.9736 | C52: =(C48+C49+C50)*1-78 -> 8722.74 | D52: 6584.084 | E52: 4829.0632 | F52: 3501.7736 | G52: =(G48+G49+G50)*1-78 -> 2585.1488
A54: Este presupuesto solamente tiene carácter informativo y en ningún momento expresa compromiso legal para suministrarle cobertura de seguro. La emisión de una póliza de seguro Bupa está sujeta a todas las evaluaciones de riesgo por parte de Bupa y a la recepción de todos los pagos de prima requeridos.

Sheet Bupa Secure Care
B1: FALSE | C1: FALSE | I1: RESUMEN DE BENEFICIOS | V1: RESUMEN DE BENEFICIOS
A5: Cotización de Seguro Médico Internacional Bupa Secure Care Tarifas en US$ | Validas: 1 de enero de 2025 | G5: REGIÓN
G7: ='INGRESO DE DATOS'!W14 -> Resto de Ecuador
A13: Nombre del asegurado principal | B13: =+'INGRESO DE DATOS'!$C$36 -> John Doe
A15: Broker/Agente | B15: =+'INGRESO DE DATOS'!$C$44 -> Agencia
A17: Número de Adultos en la Póliza | B17: =+'INGRESO DE DATOS'!$C$38 -> 1 | D17: Dependientes (menores de 24 años) | G17: =+'INGRESO DE DATOS'!$G$38 -> 1
D18: =IF('INGRESO DE DATOS'!$P$2=TRUE, "Cotización para dependiente de 24 años","") -> 
A19: Edad del Titular | B19: =+'INGRESO DE DATOS'!$C$40 -> 36 | D19: Edad del Cónyuge | G19: =+'INGRESO DE DATOS'!$G$40 -> 32
D21: Fecha de Cotización: | F21: =NOW() -> 2025-04-10T15:01:19.660
A25: DEDUCIBLES | B25: PLAN 1 | C25: PLAN 2 | D25: PLAN 3 | E25: PLAN 4 | F25: PLAN 5 | G25: PLAN 6
A26: Dentro del pais de residencia | B26: 0 | C26: 1000 | D26: 2000 | E26: 5000 | F26: 10000 | G26: 20000
A27: Fuera del pais de residencia | B27: 1000 | C27: 2000 | D27: 3000 | E27: 5000 | F27: 10000 | G27: 20000
A30: TARIFAS ANUALES
A31: Prima de Titular | B31: =VLOOKUP($B$19,Tablas!$A$652:$H$675,3,TRUE)+75 -> 13667 | C31: =VLOOKUP($B$19,Tablas!$A$652:$H$675,4,TRUE)+75 -> 10204 | D31: =VLOOKUP($B$19,Tablas!$A$652:$H$675,5,TRUE)+75 -> 9518 | E31: =VLOOKUP($B$19,Tablas!$A$652:$H$675,6,TRUE)+75 -> 5405 | F31: =VLOOKUP($B$19,Tablas!$A$652:$H$675,7,TRUE)+75 -> 5281 | G31: =VLOOKUP($B$19,Tablas!$A$652:$H$675,8,TRUE)+75 -> 4029
A32: Prima de Cónyuge | B32: =IF($B$17=1,0,(VLOOKUP($G$19,Tablas!$A$652:$H$675,3,TRUE))) -> 0 | C32: =IF($B$17=1,0,(VLOOKUP($G$19,Tablas!$A$652:$H$675,4,TRUE))) -> 0 | D32: =IF($B$17=1,0,(VLOOKUP($G$19,Tablas!$A$652:$H$675,5,TRUE))) -> 0 | E32: =IF($B$17=1,0,(VLOOKUP($G$19,Tablas!$A$652:$H$675,6,TRUE))) -> 0 | F32: =IF($B$17=1,0,(VLOOKUP($G$19,Tablas!$A$652:$H$675,7,TRUE))) -> 0 | G32: =IF($B$17=1,0,(VLOOKUP($G$19,Tablas!$A$652:$H$675,8,TRUE))) -> 0
A33: Primas Hijos | B33: =IF($G$17=0,0,(VLOOKUP($G$17,Tablas!$A$676:$H$678,3,TRUE))) -> 2078 | C33: =IF($G$17=0,0,(VLOOKUP($G$17,Tablas!$A$676:$H$678,4,TRUE))) -> 1778 | D33: =IF($G$17=0,0,(VLOOKUP($G$17,Tablas!$A$676:$H$678,5,TRUE))) -> 1277 | E33: =IF($G$17=0,0,(VLOOKUP($G$17,Tablas!$A$676:$H$678,6,TRUE))) -> 946 | F33: =IF($G$17=0,0,(VLOOKUP($G$17,Tablas!$A$676:$H$678,7,TRUE))) -> 713 | G33: =IF($G$17=0,0,(VLOOKUP($G$17,Tablas!$A$676:$H$678,8,TRUE))) -> 728
A34: Rider: Complicaciones de Maternidad | B34: =+IF($B$1=FALSE,0,Tablas!C$679) -> 0 | C34: =+IF($B$1=FALSE,0,Tablas!D$679) -> 0 | D34: =+IF($B$1=FALSE,0,Tablas!E$679) -> 0 | E34: =+IF($B$1=FALSE,0,Tablas!F$679) -> 0 | F34: =+IF($B$1=FALSE,0,Tablas!G$679) -> 0 | G34: =+IF($B$1=FALSE,0,Tablas!H$679) -> 0
A35: Rider: Trasplante Organos | B35: =IF($C$1=FALSE,0,Tablas!C$680) -> 0 | C35: =IF($C$1=FALSE,0,Tablas!D$680) -> 0 | D35: =IF($C$1=FALSE,0,Tablas!E$680) -> 0 | E35: =IF($C$1=FALSE,0,Tablas!F$680) -> 0 | F35: =IF($C$1=FALSE,0,Tablas!G$680) -> 0 | G35: =IF($C$1=FALSE,0,Tablas!H$680) -> 0
A36: TOTAL PRIMA NETA | B36: =SUM(B31:B35) -> 15745 | C36: =SUM(C31:C35) -> 11982 | D36: 10795 | E36: 6351 | F36: 5994 | G36: 4757
A37: Contrib. 3.5% Super. Bancos : | B37: =B36*3.5% -> 551.075 | C37: =C36*3.5% -> 419.37 | D37: 377.825 | E37: 222.285 | F37: 209.79 | G37: 166.495
A38: Contrib 0.5% Seg.Soc.Campes: | B38: =B36*0.5% -> 78.725 | C38: =C36*0.5% -> 59.91 | D38: 53.975 | E38: 31.755 | F38: =F36*0.5% -> 29.97 | G38: 23.785
A39: GRAN TOTAL : | B39: =SUM(B36:B38) -> 16374.8 | C39: =SUM(C36:C38) -> 12461.28 | D39: 11226.8 | E39: 6605.04 | F39: 6233.76 | G39: =SUM(G36:G38) -> 4947.28
A41: TARIFAS SEMESTRALES
A42: Prima de Titular | B42: =VLOOKUP($B$19,Tablas!$A$688:$H$711,3,TRUE)+75 -> 7278.76 | C42: =VLOOKUP($B$19,Tablas!$A$688:$H$711,4,TRUE)+75 -> 5443.37 | D42: =VLOOKUP($B$19,Tablas!$A$688:$H$711,5,TRUE)+75 -> 5079.79 | E42: =VLOOKUP($B$19,Tablas!$A$688:$H$711,6,TRUE)+75 -> 2899.9 | F42: =VLOOKUP($B$19,Tablas!$A$688:$H$711,7,TRUE)+75 -> 2834.18 | G42: =VLOOKUP($B$19,Tablas!$A$688:$H$711,8,TRUE)+75 -> 2170.62
A43: Prima de Cónyuge | B43: =IF($B$17=1,0,(VLOOKUP($G$19,Tablas!$A$688:$H$711,3,TRUE))) -> 0 | C43: =IF($B$17=1,0,(VLOOKUP($G$19,Tablas!$A$688:$H$711,4,TRUE))) -> 0 | D43: =IF($B$17=1,0,(VLOOKUP($G$19,Tablas!$A$688:$H$711,5,TRUE))) -> 0 | E43: =IF($B$17=1,0,(VLOOKUP($G$19,Tablas!$A$688:$H$711,6,TRUE))) -> 0 | F43: =IF($B$17=1,0,(VLOOKUP($G$19,Tablas!$A$688:$H$711,7,TRUE))) -> 0 | G43: =IF($B$17=1,0,(VLOOKUP($G$19,Tablas!$A$688:$H$711,8,TRUE))) -> 0
A44: Primas Hijos | B44: =IF($G$17=0,0,(VLOOKUP($G$17,Tablas!$A$712:$H$714,3,TRUE))) -> 1101.34 | C44: =IF($G$17=0,0,(VLOOKUP($G$17,Tablas!$A$712:$H$714,4,TRUE))) -> 942.34 | D44: =IF($G$17=0,0,(VLOOKUP($G$17,Tablas!$A$712:$H$714,5,TRUE))) -> 676.81 | E44: =IF($G$17=0,0,(VLOOKUP($G$17,Tablas!$A$712:$H$714,6,TRUE))) -> 501.38 | F44: =IF($G$17=0,0,(VLOOKUP($G$17,Tablas!$A$712:$H$714,7,TRUE))) -> 377.89 | G44: =IF($G$17=0,0,(VLOOKUP($G$17,Tablas!$A$712:$H$714,8,TRUE))) -> 385.84
A45: Rider: Complicaciones de Maternidad | B45: =+IF($B$1=FALSE,0,Tablas!C$715) -> 0 | C45: =+IF($B$1=FALSE,0,Tablas!D$715) -> 0 | D45: =+IF($B$1=FALSE,0,Tablas!E$715) -> 0 | E45: =+IF($B$1=FALSE,0,Tablas!F$715) -> 0 | F45: =+IF($B$1=FALSE,0,Tablas!G$715) -> 0 | G45: =+IF($B$1=FALSE,0,Tablas!H$715) -> 0
A46: Rider: Trasplante Organos | B46: =IF($C$1=FALSE,0,Tablas!C$716) -> 0 | C46: =IF($C$1=FALSE,0,Tablas!D$716) -> 0 | D46: =IF($C$1=FALSE,0,Tablas!E$716) -> 0 | E46: =IF($C$1=FALSE,0,Tablas!F$716) -> 0 | F46: =IF($C$1=FALSE,0,Tablas!G$716) -> 0 | G46: =IF($C$1=FALSE,0,Tablas!H$716) -> 0
A47: TOTAL PRIMA NETA | B47: =SUM(B42:B46) -> 8380.1 | C47: =SUM(C42:C46) -> 6385.71 | D47: 5756.6 | E47: 3401.28 | F47: 3212.07 | G47: 2556.46
A48: Contrib. 3.5% Super. Bancos : | B48: =B47*3.5% -> 293.3035 | C48: =C47*3.5% -> 223.49985 | D48: 201.481 | E48: 119.0448 | F48: 112.42245 | G48: 89.4761
A49: Contrib 0.5% Seg.Soc.Campes: | B49: =B47*0.5% -> 41.9005 | C49: =C47*0.5% -> 31.92855 | D49: 28.783 | E49: 17.0064 | F49: 16.06035 | G49: 12.7823
A50: GRAN TOTAL (1ra Cuota) | B50: =SUM(B47:B49) -> 8715.304 | C50: =SUM(C47:C49) -> 6641.1384 | D50: 5986.864 | E50: 3537.3312 | F50: 3340.5528 | G50: =SUM(G47:G49) -> 2658.7184
A51: GRAN TOTAL (2da Cuota) | B51: =(B47+B48+B49)*1-78 -> 8637.304 | C51: =(C47+C48+C49)*1-78 -> 6563.1384 | D51: 5908.864 | E51: 3459.3312 | F51: 3262.5528 | G51: =(G47+G48+G49)*1-78 -> 2580.7184
A53: Este presupuesto solamente tiene carácter informativo y en ningún momento expresa compromiso legal para suministrarle cobertura de seguro. La emisión de una póliza de seguro Bupa está sujeta a todas las evaluaciones de riesgo por parte de Bupa y a la recepción de todos los pagos de prima requeridos.

Sheet Bupa Essential Care
B1: FALSE | C1: FALSE | I1: RESUMEN DE BENEFICIOS
A5: Cotización de Seguro Médico Internacional Bupa Essential Care Tarifas en US$ | Validas: 1 de enero de 2025 | G5: REGIÓN
G7: ='INGRESO DE DATOS'!W14 -> Resto de Ecuador
A13: Nombre del asegurado principal | B13: =+'INGRESO DE DATOS'!$C$36 -> John Doe
A15: Broker/Agente | B15: =+'INGRESO DE DATOS'!$C$44 -> Agencia
A17: Número de Adultos en la Póliza | B17: =+'INGRESO DE DATOS'!$C$38 -> 1 | D17: Dependientes (menores de 24 años) | G17: =+'INGRESO DE DATOS'!$G$38 -> 1
D18: =IF('INGRESO DE DATOS'!$P$2=TRUE, "Cotización para dependiente de 24 años","") -> 
A19: Edad del Titular | B19: =+'INGRESO DE DATOS'!$C$40 -> 36 | D19: Edad del Cónyuge | G19: =+'INGRESO DE DATOS'!$G$40 -> 32
D21: Fecha de Cotización: | F21: =NOW() -> 2025-04-10T15:01:19.660
A25: DEDUCIBLES | B25: PLAN 1 | C25: PLAN 2 | D25: PLAN 3 | E25: PLAN 4 | F25: PLAN 5 | G25: PLAN 6
A26: Dentro del pais de residencia | B26: 0 | C26: 1000 | D26: 2000 | E26: 5000 | F26: 10000 | G26: 20000
A27: Fuera del pais de residencia | B27: 1000 | C27: 2000 | D27: 3000 | E27: 5000 | F27: 10000 | G27: 20000
A30: TARIFAS ANUALES
A31: Prima de Titular | B31: =VLOOKUP($B$19,Tablas!$A$725:$H$748,3,TRUE)+75 -> 6994 | C31: =VLOOKUP($B$19,Tablas!$A$725:$H$748,4,TRUE)+75 -> 7230 | D31: =VLOOKUP($B$19,Tablas!$A$725:$H$748,5,TRUE)+75 -> 6320 | E31: =VLOOKUP($B$19,Tablas!$A$725:$H$748,6,TRUE)+75 -> 4505 | F31: =VLOOKUP($B$19,Tablas!$A$725:$H$748,7,TRUE)+75 -> 3537 | G31: =VLOOKUP($B$19,Tablas!$A$725:$H$748,8,TRUE)+75 -> 2711
A32: Prima de Cónyuge | B32: =IF($B$17=1,0,(VLOOKUP($G$19,Tablas!$A$725:$H$748,3,TRUE))) -> 0 | C32: =IF($B$17=1,0,(VLOOKUP($G$19,Tablas!$A$725:$H$748,4,TRUE))) -> 0 | D32: =IF($B$17=1,0,(VLOOKUP($G$19,Tablas!$A$725:$H$748,5,TRUE))) -> 0 | E32: =IF($B$17=1,0,(VLOOKUP($G$19,Tablas!$A$725:$H$748,6,TRUE))) -> 0 | F32: =IF($B$17=1,0,(VLOOKUP($G$19,Tablas!$A$725:$H$748,7,TRUE))) -> 0 | G32: =IF($B$17=1,0,(VLOOKUP($G$19,Tablas!$A$725:$H$748,8,TRUE))) -> 0
A33: Primas Hijos | B33: =IF($G$17=0,0,(VLOOKUP($G$17,Tablas!$A$749:$H$751,3,TRUE))) -> 1524 | C33: =IF($G$17=0,0,(VLOOKUP($G$17,Tablas!$A$749:$H$751,4,TRUE))) -> 1524 | D33: =IF($G$17=0,0,(VLOOKUP($G$17,Tablas!$A$749:$H$751,5,TRUE))) -> 1517 | E33: =IF($G$17=0,0,(VLOOKUP($G$17,Tablas!$A$749:$H$751,6,TRUE))) -> 1226 | F33: =IF($G$17=0,0,(VLOOKUP($G$17,Tablas!$A$749:$H$751,7,TRUE))) -> 952 | G33: =IF($G$17=0,0,(VLOOKUP($G$17,Tablas!$A$749:$H$751,8,TRUE))) -> 704
A34: Rider: Complicaciones de Maternidad | B34: =+IF($B$1=FALSE,0,Tablas!C$752) -> 0 | C34: =+IF($B$1=FALSE,0,Tablas!D$752) -> 0 | D34: =+IF($B$1=FALSE,0,Tablas!E$752) -> 0 | E34: =+IF($B$1=FALSE,0,Tablas!F$752) -> 0 | F34: =+IF($B$1=FALSE,0,Tablas!G$752) -> 0 | G34: =+IF($B$1=FALSE,0,Tablas!H$752) -> 0
A35: Rider: Trasplante Organos | B35: =IF($C$1=FALSE,0,Tablas!C$753) -> 0 | C35: =IF($C$1=FALSE,0,Tablas!D$753) -> 0 | D35: =IF($C$1=FALSE,0,Tablas!E$753) -> 0 | E35: =IF($C$1=FALSE,0,Tablas!F$753) -> 0 | F35: =IF($C$1=FALSE,0,Tablas!G$753) -> 0 | G35: =IF($C$1=FALSE,0,Tablas!H$753) -> 0
A36: TOTAL PRIMA NETA | B36: =SUM(B31:B35) -> 8518 | C36: =SUM(C31:C35) -> 8754 | D36: 7837 | E36: 5731 | F36: 4489 | G36: 3415
A37: Contrib. 3.5% Super. Bancos : | B37: =B36*3.5% -> 298.13 | C37: =C36*3.5% -> 306.39 | D37: 274.295 | E37: 200.585 | F37: 157.115 | G37: 119.525
A38: Contrib 0.5% Seg.Soc.Campes: | B38: =B36*0.5% -> 42.59 | C38: =C36*0.5% -> 43.77 | D38: 39.185 | E38: 28.655 | F38: 22.445 | G38: 17.075
A39: GRAN TOTAL : | B39: =SUM(B36:B38) -> 8858.72 | C39: =SUM(C36:C38) -> 9104.16 | D39: 8150.48 | E39: 5960.24 | F39: 4668.56 | G39: =SUM(G36:G38) -> 3551.6
A42: TARIFAS SEMESTRALES
A43: Prima de Titular | B43: =VLOOKUP($B$19,Tablas!$A$760:$H$783,3,TRUE)+75 -> 3742.07 | C43: =VLOOKUP($B$19,Tablas!$A$760:$H$783,4,TRUE)+75 -> 3867.15 | D43: =VLOOKUP($B$19,Tablas!$A$760:$H$783,5,TRUE)+75 -> 3384.85 | E43: =VLOOKUP($B$19,Tablas!$A$760:$H$783,6,TRUE)+75 -> 2422.9 | F43: =VLOOKUP($B$19,Tablas!$A$760:$H$783,7,TRUE)+75 -> 1909.86 | G43: =VLOOKUP($B$19,Tablas!$A$760:$H$783,8,TRUE)+75 -> 1472.08
A44: Prima de Cónyuge | B44: =IF($B$17=1,0,(VLOOKUP($G$19,Tablas!$A$760:$H$783,3,TRUE))) -> 0 | C44: =IF($B$17=1,0,(VLOOKUP($G$19,Tablas!$A$760:$H$783,4,TRUE))) -> 0 | D44: =IF($B$17=1,0,(VLOOKUP($G$19,Tablas!$A$760:$H$783,5,TRUE))) -> 0 | E44: =IF($B$17=1,0,(VLOOKUP($G$19,Tablas!$A$760:$H$783,6,TRUE))) -> 0 | F44: =IF($B$17=1,0,(VLOOKUP($G$19,Tablas!$A$760:$H$783,7,TRUE))) -> 0 | G44: =IF($B$17=1,0,(VLOOKUP($G$19,Tablas!$A$760:$H$783,8,TRUE))) -> 0
A45: Primas Hijos | B45: =IF($G$17=0,0,(VLOOKUP($G$17,Tablas!$A$784:$H$786,3,TRUE))) -> 807.72 | C45: =IF($G$17=0,0,(VLOOKUP($G$17,Tablas!$A$784:$H$786,4,TRUE))) -> 807.72 | D45: =IF($G$17=0,0,(VLOOKUP($G$17,Tablas!$A$784:$H$786,5,TRUE))) -> 804.01 | E45: =IF($G$17=0,0,(VLOOKUP($G$17,Tablas!$A$784:$H$786,6,TRUE))) -> 649.78 | F45: =IF($G$17=0,0,(VLOOKUP($G$17,Tablas!$A$784:$H$786,7,TRUE))) -> 504.56 | G45: =IF($G$17=0,0,(VLOOKUP($G$17,Tablas!$A$784:$H$786,8,TRUE))) -> 373.12
A46: Rider: Complicaciones de Maternidad | B46: =+IF($B$1=FALSE,0,Tablas!C$787) -> 0 | C46: =+IF($B$1=FALSE,0,Tablas!D$787) -> 0 | D46: =+IF($B$1=FALSE,0,Tablas!E$787) -> 0 | E46: =+IF($B$1=FALSE,0,Tablas!F$787) -> 0 | F46: =+IF($B$1=FALSE,0,Tablas!G$787) -> 0 | G46: =+IF($B$1=FALSE,0,Tablas!H$787) -> 0
A47: Rider: Trasplante Organos | B47: =IF($C$1=FALSE,0,Tablas!C$788) -> 0 | C47: =IF($C$1=FALSE,0,Tablas!D$788) -> 0 | D47: =IF($C$1=FALSE,0,Tablas!E$788) -> 0 | E47: =IF($C$1=FALSE,0,Tablas!F$788) -> 0 | F47: =IF($C$1=FALSE,0,Tablas!G$788) -> 0 | G47: =IF($C$1=FALSE,0,Tablas!H$788) -> 0
A48: TOTAL PRIMA NETA | B48: =SUM(B43:B47) -> 4549.79 | C48: =SUM(C43:C47) -> 4674.87 | D48: 4188.86 | E48: 3072.68 | F48: 2414.42 | G48: 1845.2
A49: Contrib. 3.5% Super. Bancos : | B49: =B48*3.5% -> 159.24265 | C49: =C48*3.5% -> 163.62045 | D49: 146.6101 | E49: 107.5438 | F49: 84.5047 | G49: 64.582
A50: Contrib 0.5% Seg.Soc.Campes: | B50: =B48*0.5% -> 22.74895 | C50: =C48*0.5% -> 23.37435 | D50: 20.9443 | E50: 15.3634 | F50: 12.0721 | G50: 9.226
A51: GRAN TOTAL (1ra Cuota) | B51: =SUM(B48:B50) -> 4731.7816 | C51: =SUM(C48:C50) -> 4861.8648 | D51: 4356.4144 | E51: 3195.5872 | F51: 2510.9968 | G51: =SUM(G48:G50) -> 1919.008
A52: GRAN TOTAL (2da Cuota) | B52: =(B48+B49+B50)*1-78 -> 4653.7816 | C52: =(C48+C49+C50)*1-78 -> 4783.8648 | D52: 4278.4144 | E52: 3117.5872 | F52: 2432.9968 | G52: =(G48+G49+G50)*1-78 -> 1841.008
A54: Este presupuesto solamente tiene carácter informativo y en ningún momento expresa compromiso legal para suministrarle cobertura de seguro. La emisión de una póliza de seguro Bupa está sujeta a todas las evaluaciones de riesgo por parte de Bupa y a la recepción de todos los pagos de prima requeridos.

Sheet Bupa Crititcal
B1: TRUE | J1: RESUMEN DE BENEFICIOS | W1: RESUMEN DE BENEFICIOS
A5: Cotización de Seguro Médico Internacional Bupa Critical Care Tarifas en US$ | Validas: 1 de enero de 2025 | H5: REGIÓN
H7: ='INGRESO DE DATOS'!W14 -> Resto de Ecuador
A13: Nombre del asegurado principal | B13: =+'INGRESO DE DATOS'!$C$36 -> John Doe
A15: Broker/Agente | B15: =+'INGRESO DE DATOS'!$C$44 -> Agencia
A17: Número de Adultos en la Póliza | B17: =+'INGRESO DE DATOS'!$C$38 -> 1 | D17: Dependientes (menores de 24 años) | H17: =+'INGRESO DE DATOS'!$G$38 -> 1
D18: =IF('INGRESO DE DATOS'!$P$2=TRUE, "Cotización para dependiente de 24 años","") -> 
A19: Edad del Titular | B19: =+'INGRESO DE DATOS'!$C$40 -> 36 | D19: Edad del Cónyuge | H19: =+'INGRESO DE DATOS'!$G$40 -> 32
D21: Edad del adulto mayor en la pareja | H21: =IF(B19>=H19,B19,H19) -> 36
A24: CONDICION CRÍTICA CUBIERTA | D24: MÁXIMO (Por asegurado, por año Póliza) | F24: TRASPLANTE DE ÓRGANOS
F26: Tipo de trasplante | H26: Máximo Vitalicio por persona
A27: Enfermedades neurológicas y accidentes cerebro-vasculares | D27: 150000
A29: Cirugías cardíacas y angioplastías | D29: 150000 | F29: Corazón | H29: 300000
F30: Corazón y Pulmón (simultáneamente) | H30: 300000
A31: Tratamiento de cáncer | D31: 200000 | F31: Pulmón | H31: 250000
F32: Pancreas | H32: 250000
A33: Trauma grave (Politraumatismos) | D33: 150000 | F33: Pancreas y Riñón (simultáneamente) | H33: 300000
F34: Riñón | H34: 200000
A35: Insuficiencia renal crónica (Diálisis) | D35: 100000 | F35: Hígado | H35: 200000
F36: Médula ósea | H36: 250000
A37: Quemaduras graves | D37: 300000 | F37: La cobertura de trasplante de órganos está limitada a la Red de Proveedores para Procedimiento de Trasplante de la Compañía y no se proporcionará cobertura en proveedores fuera de esta Red especializada.
A38: Desorden infeccioso grave (Septicemia) | D38: 150000
A41: Deducibles | C41: PLAN 1 | D41: PLAN 2 | E41: PLAN 3 | F41: PLAN 4 | G41: PLAN 5 | H41: PLAN 6
A42: Dentro del pais de residencia | C42: 2000 | D42: 3500 | E42: 5000 | F42: 10000 | G42: 20000 | H42: 50000
A43: Fuera del pais de residencia | C43: 2000 | D43: 3500 | E43: 5000 | F43: 10000 | G43: 20000 | H43: 50000
A45: TARIFAS ANUALES
A46: Prima por plan individual | C46: =IF((($B$17+$H$17)=1),(VLOOKUP($H$21,Tablas!$A$799:$T$800,3,TRUE)),0) -> 0 | D46: =IF((($B$17+$H$17)=1),(VLOOKUP($H$21,Tablas!$A$799:$T$800,6,TRUE)),0) -> 0 | E46: =IF((($B$17+$H$17)=1),(VLOOKUP($H$21,Tablas!$A$799:$T$800,9,TRUE)),0) -> 0 | F46: =IF((($B$17+$H$17)=1),(VLOOKUP($H$21,Tablas!$A$799:$T$800,12,TRUE)),0) -> 0 | G46: =IF((($B$17+$H$17)=1),(VLOOKUP($H$21,Tablas!$A$799:$T$800,15,TRUE)),0) -> 0 | H46: =IF((($B$17+$H$17)=1),(VLOOKUP($H$21,Tablas!$A$799:$T$800,18,TRUE)),0) -> 0
A47: Prima por plan para 2 personas | C47: =IF((($B$17+$H$17)=2),(VLOOKUP($H$21,Tablas!$A$799:$T$800,4,TRUE)),0) -> 9620 | D47: =IF((($B$17+$H$17)=2),(VLOOKUP($H$21,Tablas!$A$799:$T$800,7,TRUE)),0) -> 8773 | E47: =IF((($B$17+$H$17)=2),(VLOOKUP($H$21,Tablas!$A$799:$T$800,10,TRUE)),0) -> 7100 | F47: =IF((($B$17+$H$17)=2),(VLOOKUP($H$21,Tablas!$A$799:$T$800,13,TRUE)),0) -> 5208 | G47: =IF((($B$17+$H$17)=2),(VLOOKUP($H$21,Tablas!$A$799:$T$800,16,TRUE)),0) -> 3679 | H47: =IF((($B$17+$H$17)=2),(VLOOKUP($H$21,Tablas!$A$799:$T$800,19,TRUE)),0) -> 2027
A48: Prima por plan familiar | C48: =IF((($B$17+$H$17)>=3),(VLOOKUP($H$21,Tablas!$A$799:$T$800,5,TRUE)),0) -> 0 | D48: =IF((($B$17+$H$17)>=3),(VLOOKUP($H$21,Tablas!$A$799:$T$800,8,TRUE)),0) -> 0 | E48: =IF((($B$17+$H$17)>=3),(VLOOKUP($H$21,Tablas!$A$799:$T$800,11,TRUE)),0) -> 0 | F48: =IF((($B$17+$H$17)>=3),(VLOOKUP($H$21,Tablas!$A$799:$T$800,14,TRUE)),0) -> 0 | G48: =IF((($B$17+$H$17)>=3),(VLOOKUP($H$21,Tablas!$A$799:$T$800,17,TRUE)),0) -> 0 | H48: =IF((($B$17+$H$17)>=3),(VLOOKUP($H$21,Tablas!$A$799:$T$800,20,TRUE)),0) -> 0
A49: TOTAL PRIMA NETA | C49: =SUM(C46:C48) -> 9620 | D49: =SUM(D46:D48) -> 8773 | E49: 7100 | F49: 5208 | G49: 3679 | H49: 2027
A50: Contrib. 3.5% Super. Bancos : | C50: =C49*3.5% -> 336.7 | D50: =D49*3.5% -> 307.055 | E50: 248.5 | F50: 182.28 | G50: 128.765 | H50: 70.945
A51: Contrib 0.5% Seg.Soc.Campes: | C51: =C49*0.5% -> 48.1 | D51: =D49*0.5% -> 43.865 | E51: 35.5 | F51: 26.04 | G51: 18.395 | H51: 10.135
A52: GRAN TOTAL | C52: =SUM(C49:C51) -> 10004.8 | D52: =SUM(D49:D51) -> 9123.92 | E52: 7384 | F52: 5416.32 | G52: 3826.16 | H52: 2108.08
A54: Este presupuesto solamente tiene carácter informativo y en ningún momento expresa compromiso legal para suministrarle cobertura de seguro. La emisión de una póliza de seguro Bupa está sujeta a todas las evaluaciones de riesgo por parte de Bupa y a la recepción de todos los pagos de prima requeridos.

Sheet Resumen tarifas anuales
A5: Cotización de Seguro Médico Internacional Bupa Critical Care Tarifas en US$ | Validas: 1 de enero de 2025 | H5: REGIÓN
H7: ='INGRESO DE DATOS'!W14 -> Resto de Ecuador
A13: Nombre del asegurado principal | B13: =+'INGRESO DE DATOS'!$C$36 -> John Doe
A15: Broker/Agente | B15: =+'INGRESO DE DATOS'!$C$44 -> Agencia
A17: Número de Adultos en la Póliza | B17: =+'INGRESO DE DATOS'!$C$38 -> 1 | F17: Dependientes (menores de 24 años) | H17: =+'INGRESO DE DATOS'!$G$38 -> 1
F18: =IF('INGRESO DE DATOS'!$P$2=TRUE, "Cotización para dependiente de 24 años","") -> 
A19: Edad del Titular | B19: =+'INGRESO DE DATOS'!$C$40 -> 36 | F19: Edad del Cónyuge | H19: =+'INGRESO DE DATOS'!$G$40 -> 32
A22: DEDUCIBLES | C22: PLAN 1 | D22: PLAN 2 | E22: PLAN 3 | F22: PLAN 4 | G22: PLAN 5 | H22: PLAN 6
A23: Dentro del pais de residencia | C23: 0 | D23: 1000 | E23: 2000 | F23: 5000 | G23: 10000 | H23: 20000
A24: Fuera del pais de residencia | C24: 1000 | D24: 2000 | E24: 3000 | F24: 5000 | G24: 10000 | H24: 20000
A26: PRODUCTOS | C26: TARIFAS ANUALES
A27: Bupa Diamond Care (Mundial) | C27: ='Bupa Diamond Care (Mundial)'!G42 -> 47300.24 | D27: ='Bupa Diamond Care (Mundial)'!H42 -> 29702.4 | E27: ='Bupa Diamond Care (Mundial)'!I42 -> 21207.68 | F27: ='Bupa Diamond Care (Mundial)'!J42 -> 15569.84 | G27: ='Bupa Diamond Care (Mundial)'!K42 -> 11458.72 | H27: ='Bupa Diamond Care (Mundial)'!L42 -> 9324.64
A28: Bupa Diamond Care (Latino América) | C28: ='Bupa Diamond Care (LA)'!G42 -> 40625.52 | D28: ='Bupa Diamond Care (LA)'!H42 -> 25227.28 | E28: ='Bupa Diamond Care (LA)'!I42 -> 18243.68 | F28: ='Bupa Diamond Care (LA)'!J42 -> 13295.36 | G28: ='Bupa Diamond Care (LA)'!K42 -> 9304.88 | H28: ='Bupa Diamond Care (LA)'!L42 -> 7340.32
A29: Bupa Complete Care (Mundial) | C29: ='Bupa Complete Care (Mundial)'!G42 -> 44064.8 | D29: ='Bupa Complete Care (Mundial)'!H42 -> 26902.72 | E29: ='Bupa Complete Care (Mundial)'!I42 -> 19892.08 | F29: ='Bupa Complete Care (Mundial)'!J42 -> 13465.92 | G29: ='Bupa Complete Care (Mundial)'!K42 -> 10183.68 | H29: ='Bupa Complete Care (Mundial)'!L42 -> 7754.24
A30: Bupa Complete Care (Latino América) | C30: ='Bupa Complete Care (LA)'!G42 -> 34773.44 | D30: ='Bupa Complete Care (LA)'!H42 -> 21285.68 | E30: ='Bupa Complete Care (LA)'!I42 -> 15754.96 | F30: ='Bupa Complete Care (LA)'!J42 -> 11327.68 | G30: ='Bupa Complete Care (LA)'!K42 -> 7973.68 | H30: ='Bupa Complete Care (LA)'!L42 -> 6049.68
A31: Bupa Advantage Care (Mundial) | C31: ='Bupa Advantage Care (Mundial)'!B39 -> 29663.92 | D31: ='Bupa Advantage Care (Mundial)'!C39 -> 21175.44 | E31: ='Bupa Advantage Care (Mundial)'!D39 -> 16110.64 | F31: ='Bupa Advantage Care (Mundial)'!E39 -> 10466.56 | G31: ='Bupa Advantage Care (Mundial)'!F39 -> 8385.52 | H31: ='Bupa Advantage Care (Mundial)'!G39 -> 6660.16
A32: Bupa Advantage Care (Latino América) | C32: ='Bupa Advantage Care (LA)'!B39 -> 23325.12 | D32: ='Bupa Advantage Care (LA)'!C39 -> 16536 | E32: ='Bupa Advantage Care (LA)'!D39 -> 12500.8 | F32: ='Bupa Advantage Care (LA)'!E39 -> 9189.44 | G32: ='Bupa Advantage Care (LA)'!F39 -> 6685.12 | H32: ='Bupa Advantage Care (LA)'!G39 -> 4990.96
A33: Bupa Secure Care | C33: ='Bupa Secure Care'!B39 -> 16374.8 | D33: ='Bupa Secure Care'!C39 -> 12461.28 | E33: ='Bupa Secure Care'!D39 -> 11226.8 | F33: ='Bupa Secure Care'!E39 -> 6605.04 | G33: ='Bupa Secure Care'!F39 -> 6233.76 | H33: ='Bupa Secure Care'!G39 -> 4947.28
A34: Bupa Essential Care | C34: ='Bupa Essential Care'!B39 -> 8858.72 | D34: ='Bupa Essential Care'!C39 -> 9104.16 | E34: ='Bupa Essential Care'!D39 -> 8150.48 | F34: ='Bupa Essential Care'!E39 -> 5960.24 | G34: ='Bupa Essential Care'!F39 -> 4668.56 | H34: ='Bupa Essential Care'!G39 -> 3551.6
A36: BUPA CRITICAL CARE
A37: DEDUCIBLES | C37: PLAN 1 | D37: PLAN 2 | E37: PLAN 3 | F37: PLAN 4 | G37: PLAN 5 | H37: PLAN 6
A38: Dentro del pais de residencia | C38: 2000 | D38: 3500 | E38: 5000 | F38: 10000 | G38: 20000 | H38: 50000
A39: Fuera del pais de residencia | C39: 2000 | D39: 3500 | E39: 5000 | F39: 10000 | G39: 20000 | H39: 50000
C42: TARIFAS ANUALES
A43: Bupa Critical Care | C43: ='Bupa Crititcal'!C52 -> 10004.8 | D43: ='Bupa Crititcal'!D52 -> 9123.92 | E43: ='Bupa Crititcal'!E52 -> 7384 | F43: ='Bupa Crititcal'!F52 -> 5416.32 | G43: ='Bupa Crititcal'!G52 -> 3826.16 | H43: ='Bupa Crititcal'!H52 -> 2108.08

Sheet Comparacion de Beneficios (hidden)
A1: 2023 BUPA CARE COMPARACION DE BENEFICIOS

Sheet Tablas (hidden)
K1: Critical | L1: Diamond | M1: Complete | N1: Advantage | O1: Secure | P1: Essential
B2: REGIÓN | C2: ='INGRESO DE DATOS'!W14 -> Resto de Ecuador | E2: FACTOR SEMESTRAL : | G2: 0.53 | I2: TOTAL DISCOUNT | K2: ='INGRESO DE DATOS'!O42 -> 1 | L2: ='INGRESO DE DATOS'!P42 -> 1 | M2: ='INGRESO DE DATOS'!Q42 -> 1 | N2: ='INGRESO DE DATOS'!R42 -> 1 | O2: ='INGRESO DE DATOS'!S42 -> 1 | P2: ='INGRESO DE DATOS'!T42 -> 1 | T2: Impuesto (14.94%) | V2: 1
A5: BUPA DIAMOND CARE (MUNDIAL) | K5: ORIGINAL RATES | Q5: DISCOUNTS APPLIED
A6: TARIFAS ANUALES
A7: EDAD
C8: DW1 | D8: DW2 | E8: DW3 | F8: DW4 | G8: DW5 | H8: DW6
A9: 18 | B9: 18-24 | C9: =P9*$V$2 -> 31719 | D9: =Q9*$V$2 -> 19610 | E9: =R9*$V$2 -> 12204 | F9: 8880 | G9: 5699 | H9: 4509 | J9: =IF('INGRESO DE DATOS'!$W$13=1,'Tablas Guyanas y Santa Elena'!C9,'Tablas Resto de Ecuador'!C9) -> 31719 | K9: =IF('INGRESO DE DATOS'!$W$13=1,'Tablas Guyanas y Santa Elena'!D9,'Tablas Resto de Ecuador'!D9) -> 19610 | L9: =IF('INGRESO DE DATOS'!$W$13=1,'Tablas Guyanas y Santa Elena'!E9,'Tablas Resto de Ecuador'!E9) -> 12204 | M9: =IF('INGRESO DE DATOS'!$W$13=1,'Tablas Guyanas y Santa Elena'!F9,'Tablas Resto de Ecuador'!F9) -> 8880 | N9: =IF('INGRESO DE DATOS'!$W$13=1,'Tablas Guyanas y Santa Elena'!G9,'Tablas Resto de Ecuador'!G9) -> 5699 | O9: =IF('INGRESO DE DATOS'!$W$13=1,'Tablas Guyanas y Santa Elena'!H9,'Tablas Resto de Ecuador'!H9) -> 4509 | P9: =(J9-50)*$L$2+50 -> 31719 | Q9: =(K9-50)*$L$2+50 -> 19610 | R9: =(L9-50)*$L$2+50 -> 12204 | S9: 8880 | T9: 5699 | U9: 4509
A10: 25 | B10: 25-29 | C10: =P10*$V$2 -> 33285 | D10: =Q10*$V$2 -> 20562 | E10: =R10*$V$2 -> 14355 | F10: =S10*$V$2 -> 9825 | G10: =T10*$V$2 -> 6297 | H10: =U10*$V$2 -> 4979 | J10: =IF('INGRESO DE DATOS'!$W$13=1,'Tablas Guyanas y Santa Elena'!C10,'Tablas Resto de Ecuador'!C10) -> 33285 | K10: =IF('INGRESO DE DATOS'!$W$13=1,'Tablas Guyanas y Santa Elena'!D10,'Tablas Resto de Ecuador'!D10) -> 20562 | L10: =IF('INGRESO DE DATOS'!$W$13=1,'Tablas Guyanas y Santa Elena'!E10,'Tablas Resto de Ecuador'!E10) -> 14355 | M10: =IF('INGRESO DE DATOS'!$W$13=1,'Tablas Guyanas y Santa Elena'!F10,'Tablas Resto de Ecuador'!F10) -> 9825 | N10: =IF('INGRESO DE DATOS'!$W$13=1,'Tablas Guyanas y Santa Elena'!G10,'Tablas Resto de Ecuador'!G10) -> 6297 | O10: =IF('INGRESO DE DATOS'!$W$13=1,'Tablas Guyanas y Santa Elena'!H10,'Tablas Resto de Ecuador'!H10) -> 4979 | P10: =(J10-50)*$L$2+50 -> 33285 | Q10: =(K10-50)*$L$2+50 -> 20562 | R10: =(L10-50)*$L$2+50 -> 14355 | S10: =(M10-50)*$L$2+50 -> 9825 | T10: =(N10-50)*$L$2+50 -> 6297 | U10: =(O10-50)*$L$2+50 -> 4979
A11: 30 | B11: 30-34 | C11: 34404 | D11: 21387 | E11: 15387 | F11: 10984 | G11: 7520 | H11: 5954 | J11: =IF('INGRESO DE DATOS'!$W$13=1,'Tablas Guyanas y Santa Elena'!C11,'Tablas Resto de Ecuador'!C11) -> 34404 | K11: =IF('INGRESO DE DATOS'!$W$13=1,'Tablas Guyanas y Santa Elena'!D11,'Tablas Resto de Ecuador'!D11) -> 21387 | L11: =IF('INGRESO DE DATOS'!$W$13=1,'Tablas Guyanas y Santa Elena'!E11,'Tablas Resto de Ecuador'!E11) -> 15387 | M11: =IF('INGRESO DE DATOS'!$W$13=1,'Tablas Guyanas y Santa Elena'!F11,'Tablas Resto de Ecuador'!F11) -> 10984 | N11: =IF('INGRESO DE DATOS'!$W$13=1,'Tablas Guyanas y Santa Elena'!G11,'Tablas Resto de Ecuador'!G11) -> 7520 | O11: =IF('INGRESO DE DATOS'!$W$13=1,'Tablas Guyanas y Santa Elena'!H11,'Tablas Resto de Ecuador'!H11) -> 5954 | P11: 34404 | Q11: 21387 | R11: 15387 | S11: 10984 | T11: 7520 | U11: 5954
A12: 35 | B12: 35-39 | C12: 38452 | D12: 23936 | E12: 17206 | F12: 12295 | G12: 8414 | H12: 6661 | J12: =IF('INGRESO DE DATOS'!$W$13=1,'Tablas Guyanas y Santa Elena'!C12,'Tablas Resto de Ecuador'!C12) -> 38452 | K12: =IF('INGRESO DE DATOS'!$W$13=1,'Tablas Guyanas y Santa Elena'!D12,'Tablas Resto de Ecuador'!D12) -> 23936 | L12: =IF('INGRESO DE DATOS'!$W$13=1,'Tablas Guyanas y Santa Elena'!E12,'Tablas Resto de Ecuador'!E12) -> 17206 | M12: =IF('INGRESO DE DATOS'!$W$13=1,'Tablas Guyanas y Santa Elena'!F12,'Tablas Resto de Ecuador'!F12) -> 12295 | N12: =IF('INGRESO DE DATOS'!$W$13=1,'Tablas Guyanas y Santa Elena'!G12,'Tablas Resto de Ecuador'!G12) -> 8414 | O12: =IF('INGRESO DE DATOS'!$W$13=1,'Tablas Guyanas y Santa Elena'!H12,'Tablas Resto de Ecuador'!H12) -> 6661 | P12: 38452 | Q12: 23936 | R12: 17206 | S12: 12295 | T12: 8414 | U12: 6661
A13: 40 | B13: 40-44 | C13: 44490 | D13: 27720 | E13: 18808 | F13: 13630 | G13: 9233 | H13: 7304 | J13: =IF('INGRESO DE DATOS'!$W$13=1,'Tablas Guyanas y Santa Elena'!C13,'Tablas Resto de Ecuador'!C13) -> 44490 | K13: =IF('INGRESO DE DATOS'!$W$13=1,'Tablas Guyanas y Santa Elena'!D13,'Tablas Resto de Ecuador'!D13) -> 27720 | L13: =IF('INGRESO DE DATOS'!$W$13=1,'Tablas Guyanas y Santa Elena'!E13,'Tablas Resto de Ecuador'!E13) -> 18808 | M13: =IF('INGRESO DE DATOS'!$W$13=1,'Tablas Guyanas y Santa Elena'!F13,'Tablas Resto de Ecuador'!F13) -> 13630 | N13: =IF('INGRESO DE DATOS'!$W$13=1,'Tablas Guyanas y Santa Elena'!G13,'Tablas Resto de Ecuador'!G13) -> 9233 | O13: =IF('INGRESO DE DATOS'!$W$13=1,'Tablas Guyanas y Santa Elena'!H13,'Tablas Resto de Ecuador'!H13) -> 7304 | P13: 44490 | Q13: 27720 | R13: 18808 | S13: 13630 | T13: 9233 | U13: 7304
A14: 45 | B14: 45-49 | C14: 49659 | D14: 30978 | E14: 21023 | F14: 15210 | G14: 10308 | H14: 8144 | J14: =IF('INGRESO DE DATOS'!$W$13=1,'Tablas Guyanas y Santa Elena'!C14,'Tablas Resto de Ecuador'!C14) -> 49659 | K14: =IF('INGRESO DE DATOS'!$W$13=1,'Tablas Guyanas y Santa Elena'!D14,'Tablas Resto de Ecuador'!D14) -> 30978 | L14: =IF('INGRESO DE DATOS'!$W$13=1,'Tablas Guyanas y Santa Elena'!E14,'Tablas Resto de Ecuador'!E14) -> 21023 | M14: =IF('INGRESO DE DATOS'!$W$13=1,'Tablas Guyanas y Santa Elena'!F14,'Tablas Resto de Ecuador'!F14) -> 15210 | N14: =IF('INGRESO DE DATOS'!$W$13=1,'Tablas Guyanas y Santa Elena'!G14,'Tablas Resto de Ecuador'!G14) -> 10308 | O14: =IF('INGRESO DE DATOS'!$W$13=1,'Tablas Guyanas y Santa Elena'!H14,'Tablas Resto de Ecuador'!H14) -> 8144 | P14: 49659 | Q14: 30978 | R14: 21023 | S14: 15210 | T14: 10308 | U14: 8144
A15: 50 | B15: 50-54 | C15: 63729 | D15: 39619 | E15: 27529 | F15: 19822 | G15: 14503 | H15: 11467 | J15: =IF('INGRESO DE DATOS'!$W$13=1,'Tablas Guyanas y Santa Elena'!C15,'Tablas Resto de Ecuador'!C15) -> 63729 | K15: =IF('INGRESO DE DATOS'!$W$13=1,'Tablas Guyanas y Santa Elena'!D15,'Tablas Resto de Ecuador'!D15) -> 39619 | L15: =IF('INGRESO DE DATOS'!$W$13=1,'Tablas Guyanas y Santa Elena'!E15,'Tablas Resto de Ecuador'!E15) -> 27529 | M15: =IF('INGRESO DE DATOS'!$W$13=1,'Tablas Guyanas y Santa Elena'!F15,'Tablas Resto de Ecuador'!F15) -> 19822 | N15: =IF('INGRESO DE DATOS'!$W$13=1,'Tablas Guyanas y Santa Elena'!G15,'Tablas Resto de Ecuador'!G15) -> 14503 | O15: =IF('INGRESO DE DATOS'!$W$13=1,'Tablas Guyanas y Santa Elena'!H15,'Tablas Resto de Ecuador'!H15) -> 11467 | P15: 63729 | Q15: 39619 | R15: 27529 | S15: 19822 | T15: 14503 | U15: 11467
A16: 55 | B16: 55-59 | C16: 68594 | D16: 42134 | E16: 29295 | F16: 21077 | G16: 15435 | H16: 12200 | J16: =IF('INGRESO DE DATOS'!$W$13=1,'Tablas Guyanas y Santa Elena'!C16,'Tablas Resto de Ecuador'!C16) -> 68594 | K16: =IF('INGRESO DE DATOS'!$W$13=1,'Tablas Guyanas y Santa Elena'!D16,'Tablas Resto de Ecuador'!D16) -> 42134 | L16: =IF('INGRESO DE DATOS'!$W$13=1,'Tablas Guyanas y Santa Elena'!E16,'Tablas Resto de Ecuador'!E16) -> 29295 | M16: =IF('INGRESO DE DATOS'!$W$13=1,'Tablas Guyanas y Santa Elena'!F16,'Tablas Resto de Ecuador'!F16) -> 21077 | N16: =IF('INGRESO DE DATOS'!$W$13=1,'Tablas Guyanas y Santa Elena'!G16,'Tablas Resto de Ecuador'!G16) -> 15435 | O16: =IF('INGRESO DE DATOS'!$W$13=1,'Tablas Guyanas y Santa Elena'!H16,'Tablas Resto de Ecuador'!H16) -> 12200 | P16: 68594 | Q16: 42134 | R16: 29295 | S16: 21077 | T16: 15435 | U16: 12200
A17: 60 | B17: 60 | C17: 71322 | D17: 45886 | E17: 31947 | F17: 24234 | G17: 18563 | H17: 15126 | J17: =IF('INGRESO DE DATOS'!$W$13=1,'Tablas Guyanas y Santa Elena'!C17,'Tablas Resto de Ecuador'!C17) -> 71322 | K17: =IF('INGRESO DE DATOS'!$W$13=1,'Tablas Guyanas y Santa Elena'!D17,'Tablas Resto de Ecuador'!D17) -> 45886 | L17: =IF('INGRESO DE DATOS'!$W$13=1,'Tablas Guyanas y Santa Elena'!E17,'Tablas Resto de Ecuador'!E17) -> 31947 | M17: =IF('INGRESO DE DATOS'!$W$13=1,'Tablas Guyanas y Santa Elena'!F17,'Tablas Resto de Ecuador'!F17) -> 24234 | N17: =IF('INGRESO DE DATOS'!$W$13=1,'Tablas Guyanas y Santa Elena'!G17,'Tablas Resto de Ecuador'!G17) -> 18563 | O17: =IF('INGRESO DE DATOS'!$W$13=1,'Tablas Guyanas y Santa Elena'!H17,'Tablas Resto de Ecuador'!H17) -> 15126 | P17: 71322 | Q17: 45886 | R17: 31947 | S17: 24234 | T17: 18563 | U17: 15126
A18: 61 | B18: 61 | C18: 77401 | D18: 49294 | E18: 34321 | F18: 26010 | G18: 19939 | H18: 16234 | J18: =IF('INGRESO DE DATOS'!$W$13=1,'Tablas Guyanas y Santa Elena'!C18,'Tablas Resto de Ecuador'!C18) -> 77401 | K18: =IF('INGRESO DE DATOS'!$W$13=1,'Tablas Guyanas y Santa Elena'!D18,'Tablas Resto de Ecuador'!D18) -> 49294 | L18: =IF('INGRESO DE DATOS'!$W$13=1,'Tablas Guyanas y Santa Elena'!E18,'Tablas Resto de Ecuador'!E18) -> 34321 | M18: =IF('INGRESO DE DATOS'!$W$13=1,'Tablas Guyanas y Santa Elena'!F18,'Tablas Resto de Ecuador'!F18) -> 26010 | N18: =IF('INGRESO DE DATOS'!$W$13=1,'Tablas Guyanas y Santa Elena'!G18,'Tablas Resto de Ecuador'!G18) -> 19939 | O18: =IF('INGRESO DE DATOS'!$W$13=1,'Tablas Guyanas y Santa Elena'!H18,'Tablas Resto de Ecuador'!H18) -> 16234 | P18: 77401 | Q18: 49294 | R18: 34321 | S18: 26010 | T18: 19939 | U18: 16234
A19: 62 | B19: 62 | C19: 85147 | D19: 53956 | E19: 37564 | F19: 28480 | G19: 21812 | H19: 17767 | J19: =IF('INGRESO DE DATOS'!$W$13=1,'Tablas Guyanas y Santa Elena'!C19,'Tablas Resto de Ecuador'!C19) -> 85147 | K19: =IF('INGRESO DE DATOS'!$W$13=1,'Tablas Guyanas y Santa Elena'!D19,'Tablas Resto de Ecuador'!D19) -> 53956 | L19: =IF('INGRESO DE DATOS'!$W$13=1,'Tablas Guyanas y Santa Elena'!E19,'Tablas Resto de Ecuador'!E19) -> 37564 | M19: =IF('INGRESO DE DATOS'!$W$13=1,'Tablas Guyanas y Santa Elena'!F19,'Tablas Resto de Ecuador'!F19) -> 28480 | N19: =IF('INGRESO DE DATOS'!$W$13=1,'Tablas Guyanas y Santa Elena'!G19,'Tablas Resto de Ecuador'!G19) -> 21812 | O19: =IF('INGRESO DE DATOS'!$W$13=1,'Tablas Guyanas y Santa Elena'!H19,'Tablas Resto de Ecuador'!H19) -> 17767 | P19: 85147 | Q19: 53956 | R19: 37564 | S19: 28480 | T19: 21812 | U19: 17767
A20: 63 | B20: 63 | C20: 91087 | D20: 57360 | E20: 39933 | F20: 30262 | G20: 23190 | H20: 18883 | J20: =IF('INGRESO DE DATOS'!$W$13=1,'Tablas Guyanas y Santa Elena'!C20,'Tablas Resto de Ecuador'!C20) -> 91087 | K20: =IF('INGRESO DE DATOS'!$W$13=1,'Tablas Guyanas y Santa Elena'!D20,'Tablas Resto de Ecuador'!D20) -> 57360 | L20: =IF('INGRESO DE DATOS'!$W$13=1,'Tablas Guyanas y Santa Elena'!E20,'Tablas Resto de Ecuador'!E20) -> 39933 | M20: =IF('INGRESO DE DATOS'!$W$13=1,'Tablas Guyanas y Santa Elena'!F20,'Tablas Resto de Ecuador'!F20) -> 30262 | N20: =IF('INGRESO DE DATOS'!$W$13=1,'Tablas Guyanas y Santa Elena'!G20,'Tablas Resto de Ecuador'!G20) -> 23190 | O20: =IF('INGRESO DE DATOS'!$W$13=1,'Tablas Guyanas y Santa Elena'!H20,'Tablas Resto de Ecuador'!H20) -> 18883 | P20: 91087 | Q20: 57360 | R20: 39933 | S20: 30262 | T20: 23190 | U20: 18883
A21: 64 | B21: 64 | C21: 98495 | D21: 62036 | E21: 43210 | F21: 32736 | G21: 25077 | H21: 20420 | J21: =IF('INGRESO DE DATOS'!$W$13=1,'Tablas Guyanas y Santa Elena'!C21,'Tablas Resto de Ecuador'!C21) -> 98495 | K21: =IF('INGRESO DE DATOS'!$W$13=1,'Tablas Guyanas y Santa Elena'!D21,'Tablas Resto de Ecuador'!D21) -> 62036 | L21: =IF('INGRESO DE DATOS'!$W$13=1,'Tablas Guyanas y Santa Elena'!E21,'Tablas Resto de Ecuador'!E21) -> 43210 | M21: =IF('INGRESO DE DATOS'!$W$13=1,'Tablas Guyanas y Santa Elena'!F21,'Tablas Resto de Ecuador'!F21) -> 32736 | N21: =IF('INGRESO DE DATOS'!$W$13=1,'Tablas Guyanas y Santa Elena'!G21,'Tablas Resto de Ecuador'!G21) -> 25077 | O21: =IF('INGRESO DE DATOS'!$W$13=1,'Tablas Guyanas y Santa Elena'!H21,'Tablas Resto de Ecuador'!H21) -> 20420 | P21: 98495 | Q21: 62036 | R21: 43210 | S21: 32736 | T21: 25077 | U21: 20420
A22: 65 | B22: 65 | C22: 103205 | D22: 81045 | E22: 56306 | F22: 41354 | G22: 33397 | H22: 28750 | J22: =IF('INGRESO DE DATOS'!$W$13=1,'Tablas Guyanas y Santa Elena'!C22,'Tablas Resto de Ecuador'!C22) -> 103205 | K22: =IF('INGRESO DE DATOS'!$W$13=1,'Tablas Guyanas y Santa Elena'!D22,'Tablas Resto de Ecuador'!D22) -> 81045 | L22: =IF('INGRESO DE DATOS'!$W$13=1,'Tablas Guyanas y Santa Elena'!E22,'Tablas Resto de Ecuador'!E22) -> 56306 | M22: =IF('INGRESO DE DATOS'!$W$13=1,'Tablas Guyanas y Santa Elena'!F22,'Tablas Resto de Ecuador'!F22) -> 41354 | N22: =IF('INGRESO DE DATOS'!$W$13=1,'Tablas Guyanas y Santa Elena'!G22,'Tablas Resto de Ecuador'!G22) -> 33397 | O22: =IF('INGRESO DE DATOS'!$W$13=1,'Tablas Guyanas y Santa Elena'!H22,'Tablas Resto de Ecuador'!H22) -> 28750 | P22: 103205 | Q22: 81045 | R22: 56306 | S22: 41354 | T22: 33397 | U22: 28750
A23: 66 | B23: 66 | C23: 107877 | D23: 89246 | E23: 65401 | F23: 48038 | G23: 38800 | H23: 33380 | J23: =IF('INGRESO DE DATOS'!$W$13=1,'Tablas Guyanas y Santa Elena'!C23,'Tablas Resto de Ecuador'!C23) -> 107877 | K23: =IF('INGRESO DE DATOS'!$W$13=1,'Tablas Guyanas y Santa Elena'!D23,'Tablas Resto de Ecuador'!D23) -> 89246 | L23: =IF('INGRESO DE DATOS'!$W$13=1,'Tablas Guyanas y Santa Elena'!E23,'Tablas Resto de Ecuador'!E23) -> 65401 | M23: =IF('INGRESO DE DATOS'!$W$13=1,'Tablas Guyanas y Santa Elena'!F23,'Tablas Resto de Ecuador'!F23) -> 48038 | N23: =IF('INGRESO DE DATOS'!$W$13=1,'Tablas Guyanas y Santa Elena'!G23,'Tablas Resto de Ecuador'!G23) -> 38800 | O23: =IF('INGRESO DE DATOS'!$W$13=1,'Tablas Guyanas y Santa Elena'!H23,'Tablas Resto de Ecuador'!H23) -> 33380 | P23: 107877 | Q23: 89246 | R23: 65401 | S23: 48038 | T23: 38800 | U23: 33380
A24: 67 | B24: 67 | C24: 117790 | D24: 95996 | E24: 71420 | F24: 52454 | G24: 42362 | H24: 36443 | J24: =IF('INGRESO DE DATOS'!$W$13=1,'Tablas Guyanas y Santa Elena'!C24,'Tablas Resto de Ecuador'!C24) -> 117790 | K24: =IF('INGRESO DE DATOS'!$W$13=1,'Tablas Guyanas y Santa Elena'!D24,'Tablas Resto de Ecuador'!D24) -> 95996 | L24: =IF('INGRESO DE DATOS'!$W$13=1,'Tablas Guyanas y Santa Elena'!E24,'Tablas Resto de Ecuador'!E24) -> 71420 | M24: =IF('INGRESO DE DATOS'!$W$13=1,'Tablas Guyanas y Santa Elena'!F24,'Tablas Resto de Ecuador'!F24) -> 52454 | N24: =IF('INGRESO DE DATOS'!$W$13=1,'Tablas Guyanas y Santa Elena'!G24,'Tablas Resto de Ecuador'!G24) -> 42362 | O24: =IF('INGRESO DE DATOS'!$W$13=1,'Tablas Guyanas y Santa Elena'!H24,'Tablas Resto de Ecuador'!H24) -> 36443 | P24: 117790 | Q24: 95996 | R24: 71420 | S24: 52454 | T24: 42362 | U24: 36443
A25: 68 | B25: 68 | C25: 130368 | D25: 102909 | E25: 76319 | F25: 58065 | G25: 46898 | H25: 40354 | J25: =IF('INGRESO DE DATOS'!$W$13=1,'Tablas Guyanas y Santa Elena'!C25,'Tablas Resto de Ecuador'!C25) -> 130368 | K25: =IF('INGRESO DE DATOS'!$W$13=1,'Tablas Guyanas y Santa Elena'!D25,'Tablas Resto de Ecuador'!D25) -> 102909 | L25: =IF('INGRESO DE DATOS'!$W$13=1,'Tablas Guyanas y Santa Elena'!E25,'Tablas Resto de Ecuador'!E25) -> 76319 | M25: =IF('INGRESO DE DATOS'!$W$13=1,'Tablas Guyanas y Santa Elena'!F25,'Tablas Resto de Ecuador'!F25) -> 58065 | N25: =IF('INGRESO DE DATOS'!$W$13=1,'Tablas Guyanas y Santa Elena'!G25,'Tablas Resto de Ecuador'!G25) -> 46898 | O25: =IF('INGRESO DE DATOS'!$W$13=1,'Tablas Guyanas y Santa Elena'!H25,'Tablas Resto de Ecuador'!H25) -> 40354 | P25: 130368 | Q25: 102909 | R25: 76319 | S25: 58065 | T25: 46898 | U25: 40354
A26: 69 | B26: 69 | C26: 143383 | D26: 110024 | E26: 81222 | F26: 63872 | G26: 51585 | H26: 44385 | J26: =IF('INGRESO DE DATOS'!$W$13=1,'Tablas Guyanas y Santa Elena'!C26,'Tablas Resto de Ecuador'!C26) -> 143383 | K26: =IF('INGRESO DE DATOS'!$W$13=1,'Tablas Guyanas y Santa Elena'!D26,'Tablas Resto de Ecuador'!D26) -> 110024 | L26: =IF('INGRESO DE DATOS'!$W$13=1,'Tablas Guyanas y Santa Elena'!E26,'Tablas Resto de Ecuador'!E26) -> 81222 | M26: =IF('INGRESO DE DATOS'!$W$13=1,'Tablas Guyanas y Santa Elena'!F26,'Tablas Resto de Ecuador'!F26) -> 63872 | N26: =IF('INGRESO DE DATOS'!$W$13=1,'Tablas Guyanas y Santa Elena'!G26,'Tablas Resto de Ecuador'!G26) -> 51585 | O26: =IF('INGRESO DE DATOS'!$W$13=1,'Tablas Guyanas y Santa Elena'!H26,'Tablas Resto de Ecuador'!H26) -> 44385 | P26: 143383 | Q26: 110024 | R26: 81222 | S26: 63872 | T26: 51585 | U26: 44385
A27: 70 | B27: 70 | C27: 156864 | D27: 117383 | E27: 86292 | F27: 69492 | G27: 60093 | H27: 52182 | J27: =IF('INGRESO DE DATOS'!$W$13=1,'Tablas Guyanas y Santa Elena'!C27,'Tablas Resto de Ecuador'!C27) -> 156864 | K27: =IF('INGRESO DE DATOS'!$W$13=1,'Tablas Guyanas y Santa Elena'!D27,'Tablas Resto de Ecuador'!D27) -> 117383 | L27: =IF('INGRESO DE DATOS'!$W$13=1,'Tablas Guyanas y Santa Elena'!E27,'Tablas Resto de Ecuador'!E27) -> 86292 | M27: =IF('INGRESO DE DATOS'!$W$13=1,'Tablas Guyanas y Santa Elena'!F27,'Tablas Resto de Ecuador'!F27) -> 69492 | N27: =IF('INGRESO DE DATOS'!$W$13=1,'Tablas Guyanas y Santa Elena'!G27,'Tablas Resto de Ecuador'!G27) -> 60093 | O27: =IF('INGRESO DE DATOS'!$W$13=1,'Tablas Guyanas y Santa Elena'!H27,'Tablas Resto de Ecuador'!H27) -> 52182 | P27: 156864 | Q27: 117383 | R27: 86292 | S27: 69492 | T27: 60093 | U27: 52182
A28: 71 | B28: 71 | C28: 167620 | D28: 125073 | E28: 91584 | F28: 74014 | G28: 62448 | H28: 54224 | J28: =IF('INGRESO DE DATOS'!$W$13=1,'Tablas Guyanas y Santa Elena'!C28,'Tablas Resto de Ecuador'!C28) -> 167620 | K28: =IF('INGRESO DE DATOS'!$W$13=1,'Tablas Guyanas y Santa Elena'!D28,'Tablas Resto de Ecuador'!D28) -> 125073 | L28: =IF('INGRESO DE DATOS'!$W$13=1,'Tablas Guyanas y Santa Elena'!E28,'Tablas Resto de Ecuador'!E28) -> 91584 | M28: =IF('INGRESO DE DATOS'!$W$13=1,'Tablas Guyanas y Santa Elena'!F28,'Tablas Resto de Ecuador'!F28) -> 74014 | N28: =IF('INGRESO DE DATOS'!$W$13=1,'Tablas Guyanas y Santa Elena'!G28,'Tablas Resto de Ecuador'!G28) -> 62448 | O28: =IF('INGRESO DE DATOS'!$W$13=1,'Tablas Guyanas y Santa Elena'!H28,'Tablas Resto de Ecuador'!H28) -> 54224 | P28: 167620 | Q28: 125073 | R28: 91584 | S28: 74014 | T28: 62448 | U28: 54224
A29: 72 | B29: 72 | C29: 179108 | D29: 133066 | E29: 97073 | F29: 78737 | G29: 64209 | H29: 55760 | J29: =IF('INGRESO DE DATOS'!$W$13=1,'Tablas Guyanas y Santa Elena'!C29,'Tablas Resto de Ecuador'!C29) -> 179108 | K29: =IF('INGRESO DE DATOS'!$W$13=1,'Tablas Guyanas y Santa Elena'!D29,'Tablas Resto de Ecuador'!D29) -> 133066 | L29: =IF('INGRESO DE DATOS'!$W$13=1,'Tablas Guyanas y Santa Elena'!E29,'Tablas Resto de Ecuador'!E29) -> 97073 | M29: =IF('INGRESO DE DATOS'!$W$13=1,'Tablas Guyanas y Santa Elena'!F29,'Tablas Resto de Ecuador'!F29) -> 78737 | N29: =IF('INGRESO DE DATOS'!$W$13=1,'Tablas Guyanas y Santa Elena'!G29,'Tablas Resto de Ecuador'!G29) -> 64209 | O29: =IF('INGRESO DE DATOS'!$W$13=1,'Tablas Guyanas y Santa Elena'!H29,'Tablas Resto de Ecuador'!H29) -> 55760 | P29: 179108 | Q29: 133066 | R29: 97073 | S29: 78737 | T29: 64209 | U29: 55760
A30: 73 | B30: 73 | C30: 187936 | D30: 141233 | E30: 102674 | F30: 83272 | G30: 66571 | H30: 57803 | J30: =IF('INGRESO DE DATOS'!$W$13=1,'Tablas Guyanas y Santa Elena'!C30,'Tablas Resto de Ecuador'!C30) -> 187936 | K30: =IF('INGRESO DE DATOS'!$W$13=1,'Tablas Guyanas y Santa Elena'!D30,'Tablas Resto de Ecuador'!D30) -> 141233 | L30: =IF('INGRESO DE DATOS'!$W$13=1,'Tablas Guyanas y Santa Elena'!E30,'Tablas Resto de Ecuador'!E30) -> 102674 | M30: =IF('INGRESO DE DATOS'!$W$13=1,'Tablas Guyanas y Santa Elena'!F30,'Tablas Resto de Ecuador'!F30) -> 83272 | N30: =IF('INGRESO DE DATOS'!$W$13=1,'Tablas Guyanas y Santa Elena'!G30,'Tablas Resto de Ecuador'!G30) -> 66571 | O30: =IF('INGRESO DE DATOS'!$W$13=1,'Tablas Guyanas y Santa Elena'!H30,'Tablas Resto de Ecuador'!H30) -> 57803 | P30: 187936 | Q30: 141233 | R30: 102674 | S30: 83272 | T30: 66571 | U30: 57803
A31: 74 | B31: 74 | C31: 191245 | D31: 149442 | E31: 108303 | F31: 84744 | G31: 67738 | H31: 58829 | J31: =IF('INGRESO DE DATOS'!$W$13=1,'Tablas Guyanas y Santa Elena'!C31,'Tablas Resto de Ecuador'!C31) -> 191245 | K31: =IF('INGRESO DE DATOS'!$W$13=1,'Tablas Guyanas y Santa Elena'!D31,'Tablas Resto de Ecuador'!D31) -> 149442 | L31: =IF('INGRESO DE DATOS'!$W$13=1,'Tablas Guyanas y Santa Elena'!E31,'Tablas Resto de Ecuador'!E31) -> 108303 | M31: =IF('INGRESO DE DATOS'!$W$13=1,'Tablas Guyanas y Santa Elena'!F31,'Tablas Resto de Ecuador'!F31) -> 84744 | N31: =IF('INGRESO DE DATOS'!$W$13=1,'Tablas Guyanas y Santa Elena'!G31,'Tablas Resto de Ecuador'!G31) -> 67738 | O31: =IF('INGRESO DE DATOS'!$W$13=1,'Tablas Guyanas y Santa Elena'!H31,'Tablas Resto de Ecuador'!H31) -> 58829 | P31: 191245 | Q31: 149442 | R31: 108303 | S31: 84744 | T31: 67738 | U31: 58829
A32: 75 | B32: 75+ | C32: 199547 | D32: 157566 | E32: 113876 | F32: 88427 | G32: 70691 | H32: 61385 | J32: =IF('INGRESO DE DATOS'!$W$13=1,'Tablas Guyanas y Santa Elena'!C32,'Tablas Resto de Ecuador'!C32) -> 199547 | K32: =IF('INGRESO DE DATOS'!$W$13=1,'Tablas Guyanas y Santa Elena'!D32,'Tablas Resto de Ecuador'!D32) -> 157566 | L32: =IF('INGRESO DE DATOS'!$W$13=1,'Tablas Guyanas y Santa Elena'!E32,'Tablas Resto de Ecuador'!E32) -> 113876 | M32: =IF('INGRESO DE DATOS'!$W$13=1,'Tablas Guyanas y Santa Elena'!F32,'Tablas Resto de Ecuador'!F32) -> 88427 | N32: =IF('INGRESO DE DATOS'!$W$13=1,'Tablas Guyanas y Santa Elena'!G32,'Tablas Resto de Ecuador'!G32) -> 70691 | O32: =IF('INGRESO DE DATOS'!$W$13=1,'Tablas Guyanas y Santa Elena'!H32,'Tablas Resto de Ecuador'!H32) -> 61385 | P32: 199547 | Q32: 157566 | R32: 113876 | S32: 88427 | T32: 70691 | U32: 61385
A33: 1 | B33: 1 Child | C33: 6954 | D33: 4549 | E33: 3111 | F33: 2376 | G33: 2304 | H33: 2005 | J33: =IF('INGRESO DE DATOS'!$W$13=1,'Tablas Guyanas y Santa Elena'!C33,'Tablas Resto de Ecuador'!C33) -> 6954 | K33: =IF('INGRESO DE DATOS'!$W$13=1,'Tablas Guyanas y Santa Elena'!D33,'Tablas Resto de Ecuador'!D33) -> 4549 | L33: =IF('INGRESO DE DATOS'!$W$13=1,'Tablas Guyanas y Santa Elena'!E33,'Tablas Resto de Ecuador'!E33) -> 3111 | M33: =IF('INGRESO DE DATOS'!$W$13=1,'Tablas Guyanas y Santa Elena'!F33,'Tablas Resto de Ecuador'!F33) -> 2376 | N33: =IF('INGRESO DE DATOS'!$W$13=1,'Tablas Guyanas y Santa Elena'!G33,'Tablas Resto de Ecuador'!G33) -> 2304 | O33: =IF('INGRESO DE DATOS'!$W$13=1,'Tablas Guyanas y Santa Elena'!H33,'Tablas Resto de Ecuador'!H33) -> 2005 | P33: =(J33)*$L$2 -> 6954 | Q33: =(K33)*$L$2 -> 4549 | R33: 3111 | S33: 2376 | T33: 2304 | U33: 2005
A34: 2 | B34: 2 Children | C34: 11533 | D34: 7606 | E34: 5355 | F34: 4104 | G34: 3978 | H34: 3436 | J34: =IF('INGRESO DE DATOS'!$W$13=1,'Tablas Guyanas y Santa Elena'!C34,'Tablas Resto de Ecuador'!C34) -> 11533 | K34: =IF('INGRESO DE DATOS'!$W$13=1,'Tablas Guyanas y Santa Elena'!D34,'Tablas Resto de Ecuador'!D34) -> 7606 | L34: =IF('INGRESO DE DATOS'!$W$13=1,'Tablas Guyanas y Santa Elena'!E34,'Tablas Resto de Ecuador'!E34) -> 5355 | M34: =IF('INGRESO DE DATOS'!$W$13=1,'Tablas Guyanas y Santa Elena'!F34,'Tablas Resto de Ecuador'!F34) -> 4104 | N34: =IF('INGRESO DE DATOS'!$W$13=1,'Tablas Guyanas y Santa Elena'!G34,'Tablas Resto de Ecuador'!G34) -> 3978 | O34: =IF('INGRESO DE DATOS'!$W$13=1,'Tablas Guyanas y Santa Elena'!H34,'Tablas Resto de Ecuador'!H34) -> 3436 | P34: =(J34)*$L$2 -> 11533 | Q34: =(K34)*$L$2 -> 7606 | R34: =(L34)*$L$2 -> 5355 | S34: =(M34)*$L$2 -> 4104 | T34: =(N34)*$L$2 -> 3978 | U34: =(O34)*$L$2 -> 3436
A35: 3 | B35: 3+ Children | C35: 15658 | D35: =Q35*$V$2 -> 10421 | E35: 7437 | F35: 5726 | G35: 5533 | H35: 4763 | J35: =IF('INGRESO DE DATOS'!$W$13=1,'Tablas Guyanas y Santa Elena'!C35,'Tablas Resto de Ecuador'!C35) -> 15658 | K35: =IF('INGRESO DE DATOS'!$W$13=1,'Tablas Guyanas y Santa Elena'!D35,'Tablas Resto de Ecuador'!D35) -> 10421 | L35: =IF('INGRESO DE DATOS'!$W$13=1,'Tablas Guyanas y Santa Elena'!E35,'Tablas Resto de Ecuador'!E35) -> 7437 | M35: =IF('INGRESO DE DATOS'!$W$13=1,'Tablas Guyanas y Santa Elena'!F35,'Tablas Resto de Ecuador'!F35) -> 5726 | N35: =IF('INGRESO DE DATOS'!$W$13=1,'Tablas Guyanas y Santa Elena'!G35,'Tablas Resto de Ecuador'!G35) -> 5533 | O35: =IF('INGRESO DE DATOS'!$W$13=1,'Tablas Guyanas y Santa Elena'!H35,'Tablas Resto de Ecuador'!H35) -> 4763 | P35: 15658 | Q35: 10421 | R35: 7437 | S35: 5726 | T35: 5533 | U35: 4763
A36: 1 | B36: Rider Comp. Maternidad | C36: =J36*$V$2 -> 0 | D36: =K36*$V$2 -> 0 | E36: =L36*$V$2 -> 0 | F36: 225 | G36: 225 | H36: 225 | J36: =IF('INGRESO DE DATOS'!$W$13=1,'Tablas Guyanas y Santa Elena'!C36,'Tablas Resto de Ecuador'!C36) -> 0 | K36: 0 | L36: 0 | M36: 225 | N36: 225 | O36: 225
A37: 1 | B37: Transplante de organos | C37: =J37*$V$2 -> 0 | D37: =K37*$V$2 -> 0 | E37: =L37*$V$2 -> 0 | F37: =M37*$V$2 -> 0 | G37: =N37*$V$2 -> 0 | H37: =O37*$V$2 -> 0 | J37: =IF('INGRESO DE DATOS'!$W$13=1,'Tablas Guyanas y Santa Elena'!C37,'Tablas Resto de Ecuador'!C37) -> 0 | K37: 0 | L37: 0 | M37: 0 | N37: 0 | O37: 0
C38: 0 | D38: 0 | E38: 0 | F38: 0 | G38: 0 | H38: 0 | J38: =IF('INGRESO DE DATOS'!$W$13=1,'Tablas Guyanas y Santa Elena'!C38,'Tablas Resto de Ecuador'!C38) -> 0
A41: TARIFAS SEMESTRALES
A42: EDAD
C43: DW1 | D43: DW2 | E43: DW3 | F43: DW4 | G43: DW5 | H43: DW6
A44: 18 | B44: 18-24 | C44: =$G$2*C9 -> 16811.07 | D44: 10393.3 | E44: 6468.12 | F44: 4706.4 | G44: 3020.47 | H44: 2389.77
A45: 25 | B45: 25-29 | C45: =$G$2*C10 -> 17641.05 | D45: 10897.86 | E45: 7608.15 | F45: 5207.25 | G45: 3337.41 | H45: 2638.87
A46: 30 | B46: 30-34 | C46: =$G$2*C11 -> 18234.12 | D46: 11335.11 | E46: 8155.11 | F46: 5821.52 | G46: 3985.6 | H46: 3155.62
A47: 35 | B47: 35-39 | C47: =$G$2*C12 -> 20379.56 | D47: 12686.08 | E47: 9119.18 | F47: 6516.35 | G47: 4459.42 | H47: 3530.33
A48: 40 | B48: 40-44 | C48: =$G$2*C13 -> 23579.7 | D48: 14691.6 | E48: 9968.24 | F48: 7223.9 | G48: 4893.49 | H48: 3871.12
A49: 45 | B49: 45-49 | C49: =$G$2*C14 -> 26319.27 | D49: 16418.34 | E49: 11142.19 | F49: 8061.3 | G49: 5463.24 | H49: 4316.32
A50: 50 | B50: 50-54 | C50: =$G$2*C15 -> 33776.37 | D50: 20998.07 | E50: 14590.37 | F50: 10505.66 | G50: 7686.59 | H50: 6077.51
A51: 55 | B51: 55-59 | C51: =$G$2*C16 -> 36354.82 | D51: 22331.02 | E51: 15526.35 | F51: 11170.81 | G51: 8180.55 | H51: 6466
A52: 60 | B52: 60 | C52: =$G$2*C17 -> 37800.66 | D52: 24319.58 | E52: 16931.91 | F52: 12844.02 | G52: 9838.39 | H52: 8016.78
A53: 61 | B53: 61 | C53: =$G$2*C18 -> 41022.53 | D53: 26125.82 | E53: 18190.13 | F53: 13785.3 | G53: 10567.67 | H53: 8604.02
A54: 62 | B54: 62 | C54: =$G$2*C19 -> 45127.91 | D54: =$G$2*D19 -> 28596.68 | E54: 19908.92 | F54: 15094.4 | G54: 11560.36 | H54: 9416.51
A55: 63 | B55: 63 | C55: =$G$2*C20 -> 48276.11 | D55: 30400.8 | E55: 21164.49 | F55: 16038.86 | G55: 12290.7 | H55: 10007.99
A56: 64 | B56: 64 | C56: =$G$2*C21 -> 52202.35 | D56: 32879.08 | E56: 22901.3 | F56: 17350.08 | G56: 13290.81 | H56: 10822.6
A57: 65 | B57: 65 | C57: =$G$2*C22 -> 54698.65 | D57: 42953.85 | E57: 29842.18 | F57: 21917.62 | G57: 17700.41 | H57: 15237.5
A58: 66 | B58: 66 | C58: =$G$2*C23 -> 57174.81 | D58: 47300.38 | E58: 34662.53 | F58: 25460.14 | G58: 20564 | H58: 17691.4
A59: 67 | B59: 67 | C59: =$G$2*C24 -> 62428.7 | D59: 50877.88 | E59: 37852.6 | F59: 27800.62 | G59: 22451.86 | H59: 19314.79
A60: 68 | B60: 68 | C60: =$G$2*C25 -> 69095.04 | D60: 54541.77 | E60: 40449.07 | F60: 30774.45 | G60: 24855.94 | H60: 21387.62
A61: 69 | B61: 69 | C61: =$G$2*C26 -> 75992.99 | D61: 58312.72 | E61: 43047.66 | F61: 33852.16 | G61: 27340.05 | H61: 23524.05
A62: 70 | B62: 70 | C62: =$G$2*C27 -> 83137.92 | D62: 62212.99 | E62: 45734.76 | F62: 36830.76 | G62: 31849.29 | H62: 27656.46
A63: 71 | B63: 71 | C63: =$G$2*C28 -> 88838.6 | D63: 66288.69 | E63: 48539.52 | F63: 39227.42 | G63: 33097.44 | H63: 28738.72
A64: 72 | B64: 72 | C64: =$G$2*C29 -> 94927.24 | D64: =$G$2*D29 -> 70524.98 | E64: 51448.69 | F64: 41730.61 | G64: 34030.77 | H64: 29552.8
A65: 73 | B65: 73 | C65: =$G$2*C30 -> 99606.08 | D65: 74853.49 | E65: 54417.22 | F65: 44134.16 | G65: 35282.63 | H65: 30635.59
A66: 74 | B66: 74 | C66: =$G$2*C31 -> 101359.85 | D66: 79204.26 | E66: 57400.59 | F66: 44914.32 | G66: 35901.14 | H66: 31179.37
A67: 75 | B67: 75+ | C67: =$G$2*C32 -> 105759.91 | D67: 83509.98 | E67: 60354.28 | F67: 46866.31 | G67: 37466.23 | H67: 32534.05
A68: 1 | B68: 1 Child | C68: =$G$2*C33 -> 3685.62 | D68: 2410.97 | E68: 1648.83 | F68: 1259.28 | G68: 1221.12 | H68: 1062.65
A69: 2 | B69: 2 Children | C69: =$G$2*C34 -> 6112.49 | D69: 4031.18 | E69: 2838.15 | F69: 2175.12 | G69: 2108.34 | H69: 1821.08
A70: 3 | B70: 3+ Children | C70: =$G$2*C35 -> 8298.74 | D70: 5523.13 | E70: 3941.61 | F70: 3034.78 | G70: 2932.49 | H70: 2524.39
A71: 1 | B71: Rider Comp. Maternidad | C71: =$G$2*C36 -> 0 | D71: =+D36*$G$2 -> 0 | E71: 0 | F71: 119.25 | G71: 119.25 | H71: 119.25
A72: 1 | B72: Transplante de organos | C72: =$G$2*C37 -> 0 | D72: 0 | E72: 0 | F72: 0 | G72: 0 | H72: 0
A78: BUPA DIAMOND CARE (LATIN AMERICA) | K78: ORIGINAL RATES | Q78: DISCOUNTS APPLIED
A79: TARIFAS ANUALES
A80: EDAD
C81: DW1 | D81: DW2 | E81: DW3 | F81: DW4 | G81: DW5 | H81: DW6
A82: 18 | B82: 18-24 | C82: =P82*$V$2 -> 24996 | D82: =Q82*$V$2 -> 15396 | E82: =R82*$V$2 -> 10167 | F82: 6905 | G82: 4389 | H82: 3445 | J82: =IF('INGRESO DE DATOS'!$W$13=1,'Tablas Guyanas y Santa Elena'!C79,'Tablas Resto de Ecuador'!C79) -> 24996 | K82: =IF('INGRESO DE DATOS'!$W$13=1,'Tablas Guyanas y Santa Elena'!D79,'Tablas Resto de Ecuador'!D79) -> 15396 | L82: =IF('INGRESO DE DATOS'!$W$13=1,'Tablas Guyanas y Santa Elena'!E79,'Tablas Resto de Ecuador'!E79) -> 10167 | M82: =IF('INGRESO DE DATOS'!$W$13=1,'Tablas Guyanas y Santa Elena'!F79,'Tablas Resto de Ecuador'!F79) -> 6905 | N82: =IF('INGRESO DE DATOS'!$W$13=1,'Tablas Guyanas y Santa Elena'!G79,'Tablas Resto de Ecuador'!G79) -> 4389 | O82: =IF('INGRESO DE DATOS'!$W$13=1,'Tablas Guyanas y Santa Elena'!H79,'Tablas Resto de Ecuador'!H79) -> 3445 | P82: =(J82-50)*$L$2+50 -> 24996 | Q82: =(K82-50)*$L$2+50 -> 15396 | R82: =(L82-50)*$L$2+50 -> 10167 | S82: =(M82-50)*$L$2+50 -> 6905 | T82: =(N82-50)*$L$2+50 -> 4389 | U82: =(O82-50)*$L$2+50 -> 3445
A83: 25 | B83: 25-29 | C83: =P83*$V$2 -> 26219 | D83: =Q83*$V$2 -> 16147 | E83: =R83*$V$2 -> 11248 | F83: =S83*$V$2 -> 7657 | G83: =T83*$V$2 -> 4872 | H83: =U83*$V$2 -> 3833 | J83: =IF('INGRESO DE DATOS'!$W$13=1,'Tablas Guyanas y Santa Elena'!C80,'Tablas Resto de Ecuador'!C80) -> 26219 | K83: =IF('INGRESO DE DATOS'!$W$13=1,'Tablas Guyanas y Santa Elena'!D80,'Tablas Resto de Ecuador'!D80) -> 16147 | L83: =IF('INGRESO DE DATOS'!$W$13=1,'Tablas Guyanas y Santa Elena'!E80,'Tablas Resto de Ecuador'!E80) -> 11248 | M83: =IF('INGRESO DE DATOS'!$W$13=1,'Tablas Guyanas y Santa Elena'!F80,'Tablas Resto de Ecuador'!F80) -> 7657 | N83: =IF('INGRESO DE DATOS'!$W$13=1,'Tablas Guyanas y Santa Elena'!G80,'Tablas Resto de Ecuador'!G80) -> 4872 | O83: =IF('INGRESO DE DATOS'!$W$13=1,'Tablas Guyanas y Santa Elena'!H80,'Tablas Resto de Ecuador'!H80) -> 3833 | P83: =(J83-50)*$L$2+50 -> 26219 | Q83: =(K83-50)*$L$2+50 -> 16147 | R83: 11248 | S83: 7657 | T83: 4872 | U83: 3833
A84: 30 | B84: 30-34 | C84: 27114 | D84: 16816 | E84: 12058 | F84: 8593 | G84: 5843 | H84: 4597 | J84: =IF('INGRESO DE DATOS'!$W$13=1,'Tablas Guyanas y Santa Elena'!C81,'Tablas Resto de Ecuador'!C81) -> 27114 | K84: =IF('INGRESO DE DATOS'!$W$13=1,'Tablas Guyanas y Santa Elena'!D81,'Tablas Resto de Ecuador'!D81) -> 16816 | L84: =IF('INGRESO DE DATOS'!$W$13=1,'Tablas Guyanas y Santa Elena'!E81,'Tablas Resto de Ecuador'!E81) -> 12058 | M84: =IF('INGRESO DE DATOS'!$W$13=1,'Tablas Guyanas y Santa Elena'!F81,'Tablas Resto de Ecuador'!F81) -> 8593 | N84: =IF('INGRESO DE DATOS'!$W$13=1,'Tablas Guyanas y Santa Elena'!G81,'Tablas Resto de Ecuador'!G81) -> 5843 | O84: =IF('INGRESO DE DATOS'!$W$13=1,'Tablas Guyanas y Santa Elena'!H81,'Tablas Resto de Ecuador'!H81) -> 4597 | P84: 27114 | Q84: 16816 | R84: 12058 | S84: 8593 | T84: 5843 | U84: 4597
A85: 35 | B85: 35-39 | C85: 30321 | D85: 18821 | E85: 13510 | F85: 9612 | G85: 6545 | H85: 5154 | J85: =IF('INGRESO DE DATOS'!$W$13=1,'Tablas Guyanas y Santa Elena'!C82,'Tablas Resto de Ecuador'!C82) -> 30321 | K85: =IF('INGRESO DE DATOS'!$W$13=1,'Tablas Guyanas y Santa Elena'!D82,'Tablas Resto de Ecuador'!D82) -> 18821 | L85: =IF('INGRESO DE DATOS'!$W$13=1,'Tablas Guyanas y Santa Elena'!E82,'Tablas Resto de Ecuador'!E82) -> 13510 | M85: =IF('INGRESO DE DATOS'!$W$13=1,'Tablas Guyanas y Santa Elena'!F82,'Tablas Resto de Ecuador'!F82) -> 9612 | N85: =IF('INGRESO DE DATOS'!$W$13=1,'Tablas Guyanas y Santa Elena'!G82,'Tablas Resto de Ecuador'!G82) -> 6545 | O85: =IF('INGRESO DE DATOS'!$W$13=1,'Tablas Guyanas y Santa Elena'!H82,'Tablas Resto de Ecuador'!H82) -> 5154 | P85: 30321 | Q85: 18821 | R85: 13510 | S85: 9612 | T85: 6545 | U85: 5154
A86: 40 | B86: 40-44 | C86: 35108 | D86: 21822 | E86: 14763 | F86: 10682 | G86: 7195 | H86: 5674 | J86: =IF('INGRESO DE DATOS'!$W$13=1,'Tablas Guyanas y Santa Elena'!C83,'Tablas Resto de Ecuador'!C83) -> 35108 | K86: =IF('INGRESO DE DATOS'!$W$13=1,'Tablas Guyanas y Santa Elena'!D83,'Tablas Resto de Ecuador'!D83) -> 21822 | L86: =IF('INGRESO DE DATOS'!$W$13=1,'Tablas Guyanas y Santa Elena'!E83,'Tablas Resto de Ecuador'!E83) -> 14763 | M86: =IF('INGRESO DE DATOS'!$W$13=1,'Tablas Guyanas y Santa Elena'!F83,'Tablas Resto de Ecuador'!F83) -> 10682 | N86: =IF('INGRESO DE DATOS'!$W$13=1,'Tablas Guyanas y Santa Elena'!G83,'Tablas Resto de Ecuador'!G83) -> 7195 | O86: =IF('INGRESO DE DATOS'!$W$13=1,'Tablas Guyanas y Santa Elena'!H83,'Tablas Resto de Ecuador'!H83) -> 5674 | P86: 35108 | Q86: 21822 | R86: 14763 | S86: 10682 | T86: 7195 | U86: 5674
A87: 45 | B87: 45-49 | C87: 39199 | D87: 24405 | E87: 16520 | F87: 11952 | G87: 8049 | H87: 6340 | J87: =IF('INGRESO DE DATOS'!$W$13=1,'Tablas Guyanas y Santa Elena'!C84,'Tablas Resto de Ecuador'!C84) -> 39199 | K87: =IF('INGRESO DE DATOS'!$W$13=1,'Tablas Guyanas y Santa Elena'!D84,'Tablas Resto de Ecuador'!D84) -> 24405 | L87: =IF('INGRESO DE DATOS'!$W$13=1,'Tablas Guyanas y Santa Elena'!E84,'Tablas Resto de Ecuador'!E84) -> 16520 | M87: =IF('INGRESO DE DATOS'!$W$13=1,'Tablas Guyanas y Santa Elena'!F84,'Tablas Resto de Ecuador'!F84) -> 11952 | N87: =IF('INGRESO DE DATOS'!$W$13=1,'Tablas Guyanas y Santa Elena'!G84,'Tablas Resto de Ecuador'!G84) -> 8049 | O87: =IF('INGRESO DE DATOS'!$W$13=1,'Tablas Guyanas y Santa Elena'!H84,'Tablas Resto de Ecuador'!H84) -> 6340 | P87: 39199 | Q87: 24405 | R87: 16520 | S87: 11952 | T87: 8049 | U87: 6340
A88: 50 | B88: 50-54 | C88: 50951 | D88: 31243 | E88: 21680 | F88: 15595 | G88: 11380 | H88: 8974 | J88: =IF('INGRESO DE DATOS'!$W$13=1,'Tablas Guyanas y Santa Elena'!C85,'Tablas Resto de Ecuador'!C85) -> 50951 | K88: =IF('INGRESO DE DATOS'!$W$13=1,'Tablas Guyanas y Santa Elena'!D85,'Tablas Resto de Ecuador'!D85) -> 31243 | L88: =IF('INGRESO DE DATOS'!$W$13=1,'Tablas Guyanas y Santa Elena'!E85,'Tablas Resto de Ecuador'!E85) -> 21680 | M88: =IF('INGRESO DE DATOS'!$W$13=1,'Tablas Guyanas y Santa Elena'!F85,'Tablas Resto de Ecuador'!F85) -> 15595 | N88: =IF('INGRESO DE DATOS'!$W$13=1,'Tablas Guyanas y Santa Elena'!G85,'Tablas Resto de Ecuador'!G85) -> 11380 | O88: =IF('INGRESO DE DATOS'!$W$13=1,'Tablas Guyanas y Santa Elena'!H85,'Tablas Resto de Ecuador'!H85) -> 8974 | P88: 50951 | Q88: 31243 | R88: 21680 | S88: 15595 | T88: 11380 | U88: 8974
A89: 55 | B89: 55-59 | C89: 54196 | D89: 33229 | E89: 23079 | F89: 16579 | G89: 12111 | H89: 9551 | J89: =IF('INGRESO DE DATOS'!$W$13=1,'Tablas Guyanas y Santa Elena'!C86,'Tablas Resto de Ecuador'!C86) -> 54196 | K89: =IF('INGRESO DE DATOS'!$W$13=1,'Tablas Guyanas y Santa Elena'!D86,'Tablas Resto de Ecuador'!D86) -> 33229 | L89: =IF('INGRESO DE DATOS'!$W$13=1,'Tablas Guyanas y Santa Elena'!E86,'Tablas Resto de Ecuador'!E86) -> 23079 | M89: =IF('INGRESO DE DATOS'!$W$13=1,'Tablas Guyanas y Santa Elena'!F86,'Tablas Resto de Ecuador'!F86) -> 16579 | N89: =IF('INGRESO DE DATOS'!$W$13=1,'Tablas Guyanas y Santa Elena'!G86,'Tablas Resto de Ecuador'!G86) -> 12111 | O89: =IF('INGRESO DE DATOS'!$W$13=1,'Tablas Guyanas y Santa Elena'!H86,'Tablas Resto de Ecuador'!H86) -> 9551 | P89: 54196 | Q89: 33229 | R89: 23079 | S89: 16579 | T89: 12111 | U89: 9551
A90: 60 | B90: 60 | C90: 57649 | D90: 36207 | E90: 25175 | F90: 19075 | G90: 14600 | H90: 11866 | J90: =IF('INGRESO DE DATOS'!$W$13=1,'Tablas Guyanas y Santa Elena'!C87,'Tablas Resto de Ecuador'!C87) -> 57649 | K90: =IF('INGRESO DE DATOS'!$W$13=1,'Tablas Guyanas y Santa Elena'!D87,'Tablas Resto de Ecuador'!D87) -> 36207 | L90: =IF('INGRESO DE DATOS'!$W$13=1,'Tablas Guyanas y Santa Elena'!E87,'Tablas Resto de Ecuador'!E87) -> 25175 | M90: =IF('INGRESO DE DATOS'!$W$13=1,'Tablas Guyanas y Santa Elena'!F87,'Tablas Resto de Ecuador'!F87) -> 19075 | N90: =IF('INGRESO DE DATOS'!$W$13=1,'Tablas Guyanas y Santa Elena'!G87,'Tablas Resto de Ecuador'!G87) -> 14600 | O90: =IF('INGRESO DE DATOS'!$W$13=1,'Tablas Guyanas y Santa Elena'!H87,'Tablas Resto de Ecuador'!H87) -> 11866 | P90: 57649 | Q90: 36207 | R90: 25175 | S90: 19075 | T90: 14600 | U90: 11866
A91: 61 | B91: 61 | C91: 61922 | D91: 38912 | E91: 27048 | F91: 20487 | G91: 15690 | H91: 12738 | J91: =IF('INGRESO DE DATOS'!$W$13=1,'Tablas Guyanas y Santa Elena'!C88,'Tablas Resto de Ecuador'!C88) -> 61922 | K91: =IF('INGRESO DE DATOS'!$W$13=1,'Tablas Guyanas y Santa Elena'!D88,'Tablas Resto de Ecuador'!D88) -> 38912 | L91: =IF('INGRESO DE DATOS'!$W$13=1,'Tablas Guyanas y Santa Elena'!E88,'Tablas Resto de Ecuador'!E88) -> 27048 | M91: =IF('INGRESO DE DATOS'!$W$13=1,'Tablas Guyanas y Santa Elena'!F88,'Tablas Resto de Ecuador'!F88) -> 20487 | N91: =IF('INGRESO DE DATOS'!$W$13=1,'Tablas Guyanas y Santa Elena'!G88,'Tablas Resto de Ecuador'!G88) -> 15690 | O91: =IF('INGRESO DE DATOS'!$W$13=1,'Tablas Guyanas y Santa Elena'!H88,'Tablas Resto de Ecuador'!H88) -> 12738 | P91: 61922 | Q91: 38912 | R91: 27048 | S91: 20487 | T91: 15690 | U91: 12738
A92: 62 | B92: 62 | C92: 67740 | D92: 42608 | E92: 29635 | F92: 22453 | G92: 17179 | H92: 13951 | J92: =IF('INGRESO DE DATOS'!$W$13=1,'Tablas Guyanas y Santa Elena'!C89,'Tablas Resto de Ecuador'!C89) -> 67740 | K92: =IF('INGRESO DE DATOS'!$W$13=1,'Tablas Guyanas y Santa Elena'!D89,'Tablas Resto de Ecuador'!D89) -> 42608 | L92: =IF('INGRESO DE DATOS'!$W$13=1,'Tablas Guyanas y Santa Elena'!E89,'Tablas Resto de Ecuador'!E89) -> 29635 | M92: =IF('INGRESO DE DATOS'!$W$13=1,'Tablas Guyanas y Santa Elena'!F89,'Tablas Resto de Ecuador'!F89) -> 22453 | N92: =IF('INGRESO DE DATOS'!$W$13=1,'Tablas Guyanas y Santa Elena'!G89,'Tablas Resto de Ecuador'!G89) -> 17179 | O92: =IF('INGRESO DE DATOS'!$W$13=1,'Tablas Guyanas y Santa Elena'!H89,'Tablas Resto de Ecuador'!H89) -> 13951 | P92: 67740 | Q92: 42608 | R92: 29635 | S92: 22453 | T92: 17179 | U92: 13951
A93: 63 | B93: 63 | C93: 72008 | D93: 45294 | E93: 31503 | F93: 23865 | G93: 18266 | H93: 14840 | J93: =IF('INGRESO DE DATOS'!$W$13=1,'Tablas Guyanas y Santa Elena'!C90,'Tablas Resto de Ecuador'!C90) -> 72008 | K93: =IF('INGRESO DE DATOS'!$W$13=1,'Tablas Guyanas y Santa Elena'!D90,'Tablas Resto de Ecuador'!D90) -> 45294 | L93: =IF('INGRESO DE DATOS'!$W$13=1,'Tablas Guyanas y Santa Elena'!E90,'Tablas Resto de Ecuador'!E90) -> 31503 | M93: =IF('INGRESO DE DATOS'!$W$13=1,'Tablas Guyanas y Santa Elena'!F90,'Tablas Resto de Ecuador'!F90) -> 23865 | N93: =IF('INGRESO DE DATOS'!$W$13=1,'Tablas Guyanas y Santa Elena'!G90,'Tablas Resto de Ecuador'!G90) -> 18266 | O93: =IF('INGRESO DE DATOS'!$W$13=1,'Tablas Guyanas y Santa Elena'!H90,'Tablas Resto de Ecuador'!H90) -> 14840 | P93: 72008 | Q93: 45294 | R93: 31503 | S93: 23865 | T93: 18266 | U93: 14840
A94: 64 | B94: 64 | C94: 77878 | D94: 48988 | E94: 34098 | F94: 25826 | G94: 19748 | H94: 16065 | J94: =IF('INGRESO DE DATOS'!$W$13=1,'Tablas Guyanas y Santa Elena'!C91,'Tablas Resto de Ecuador'!C91) -> 77878 | K94: =IF('INGRESO DE DATOS'!$W$13=1,'Tablas Guyanas y Santa Elena'!D91,'Tablas Resto de Ecuador'!D91) -> 48988 | L94: =IF('INGRESO DE DATOS'!$W$13=1,'Tablas Guyanas y Santa Elena'!E91,'Tablas Resto de Ecuador'!E91) -> 34098 | M94: =IF('INGRESO DE DATOS'!$W$13=1,'Tablas Guyanas y Santa Elena'!F91,'Tablas Resto de Ecuador'!F91) -> 25826 | N94: =IF('INGRESO DE DATOS'!$W$13=1,'Tablas Guyanas y Santa Elena'!G91,'Tablas Resto de Ecuador'!G91) -> 19748 | O94: =IF('INGRESO DE DATOS'!$W$13=1,'Tablas Guyanas y Santa Elena'!H91,'Tablas Resto de Ecuador'!H91) -> 16065 | P94: 77878 | Q94: 48988 | R94: 34098 | S94: 25826 | T94: 19748 | U94: 16065
A95: 65 | B95: 65 | C95: 81599 | D95: 64067 | E95: 44479 | F95: 32656 | G95: 26361 | H95: 22677 | J95: =IF('INGRESO DE DATOS'!$W$13=1,'Tablas Guyanas y Santa Elena'!C92,'Tablas Resto de Ecuador'!C92) -> 81599 | K95: =IF('INGRESO DE DATOS'!$W$13=1,'Tablas Guyanas y Santa Elena'!D92,'Tablas Resto de Ecuador'!D92) -> 64067 | L95: =IF('INGRESO DE DATOS'!$W$13=1,'Tablas Guyanas y Santa Elena'!E92,'Tablas Resto de Ecuador'!E92) -> 44479 | M95: =IF('INGRESO DE DATOS'!$W$13=1,'Tablas Guyanas y Santa Elena'!F92,'Tablas Resto de Ecuador'!F92) -> 32656 | N95: =IF('INGRESO DE DATOS'!$W$13=1,'Tablas Guyanas y Santa Elena'!G92,'Tablas Resto de Ecuador'!G92) -> 26361 | O95: =IF('INGRESO DE DATOS'!$W$13=1,'Tablas Guyanas y Santa Elena'!H92,'Tablas Resto de Ecuador'!H92) -> 22677 | P95: 81599 | Q95: 64067 | R95: 44479 | S95: 32656 | T95: 26361 | U95: 22677
A96: 66 | B96: 66 | C96: 85312 | D96: 74428 | E96: 51674 | F96: 37949 | G96: 30638 | H96: 26334 | J96: =IF('INGRESO DE DATOS'!$W$13=1,'Tablas Guyanas y Santa Elena'!C93,'Tablas Resto de Ecuador'!C93) -> 85312 | K96: =IF('INGRESO DE DATOS'!$W$13=1,'Tablas Guyanas y Santa Elena'!D93,'Tablas Resto de Ecuador'!D93) -> 74428 | L96: =IF('INGRESO DE DATOS'!$W$13=1,'Tablas Guyanas y Santa Elena'!E93,'Tablas Resto de Ecuador'!E93) -> 51674 | M96: =IF('INGRESO DE DATOS'!$W$13=1,'Tablas Guyanas y Santa Elena'!F93,'Tablas Resto de Ecuador'!F93) -> 37949 | N96: =IF('INGRESO DE DATOS'!$W$13=1,'Tablas Guyanas y Santa Elena'!G93,'Tablas Resto de Ecuador'!G93) -> 30638 | O96: =IF('INGRESO DE DATOS'!$W$13=1,'Tablas Guyanas y Santa Elena'!H93,'Tablas Resto de Ecuador'!H93) -> 26334 | P96: 85312 | Q96: 74428 | R96: 51674 | S96: 37949 | T96: 30638 | U96: 26334
A97: 67 | B97: 67 | C97: 93155 | D97: 81308 | E97: 56449 | F97: 41456 | G97: 33455 | H97: 28776 | J97: =IF('INGRESO DE DATOS'!$W$13=1,'Tablas Guyanas y Santa Elena'!C94,'Tablas Resto de Ecuador'!C94) -> 93155 | K97: =IF('INGRESO DE DATOS'!$W$13=1,'Tablas Guyanas y Santa Elena'!D94,'Tablas Resto de Ecuador'!D94) -> 81308 | L97: =IF('INGRESO DE DATOS'!$W$13=1,'Tablas Guyanas y Santa Elena'!E94,'Tablas Resto de Ecuador'!E94) -> 56449 | M97: =IF('INGRESO DE DATOS'!$W$13=1,'Tablas Guyanas y Santa Elena'!F94,'Tablas Resto de Ecuador'!F94) -> 41456 | N97: =IF('INGRESO DE DATOS'!$W$13=1,'Tablas Guyanas y Santa Elena'!G94,'Tablas Resto de Ecuador'!G94) -> 33455 | O97: =IF('INGRESO DE DATOS'!$W$13=1,'Tablas Guyanas y Santa Elena'!H94,'Tablas Resto de Ecuador'!H94) -> 28776 | P97: 93155 | Q97: 81308 | R97: 56449 | S97: 41456 | T97: 33455 | U97: 28776
A98: 68 | B98: 68 | C98: 103126 | D98: 90031 | E98: 62492 | F98: 45911 | G98: 37059 | H98: 31862 | J98: =IF('INGRESO DE DATOS'!$W$13=1,'Tablas Guyanas y Santa Elena'!C95,'Tablas Resto de Ecuador'!C95) -> 103126 | K98: =IF('INGRESO DE DATOS'!$W$13=1,'Tablas Guyanas y Santa Elena'!D95,'Tablas Resto de Ecuador'!D95) -> 90031 | L98: =IF('INGRESO DE DATOS'!$W$13=1,'Tablas Guyanas y Santa Elena'!E95,'Tablas Resto de Ecuador'!E95) -> 62492 | M98: =IF('INGRESO DE DATOS'!$W$13=1,'Tablas Guyanas y Santa Elena'!F95,'Tablas Resto de Ecuador'!F95) -> 45911 | N98: =IF('INGRESO DE DATOS'!$W$13=1,'Tablas Guyanas y Santa Elena'!G95,'Tablas Resto de Ecuador'!G95) -> 37059 | O98: =IF('INGRESO DE DATOS'!$W$13=1,'Tablas Guyanas y Santa Elena'!H95,'Tablas Resto de Ecuador'!H95) -> 31862 | P98: 103126 | Q98: 90031 | R98: 62492 | S98: 45911 | T98: 37059 | U98: 31862
A99: 69 | B99: 69 | C99: 113437 | D99: 99057 | E99: 68777 | F99: 50510 | G99: 40772 | H99: 35058 | J99: =IF('INGRESO DE DATOS'!$W$13=1,'Tablas Guyanas y Santa Elena'!C96,'Tablas Resto de Ecuador'!C96) -> 113437 | K99: =IF('INGRESO DE DATOS'!$W$13=1,'Tablas Guyanas y Santa Elena'!D96,'Tablas Resto de Ecuador'!D96) -> 99057 | L99: =IF('INGRESO DE DATOS'!$W$13=1,'Tablas Guyanas y Santa Elena'!E96,'Tablas Resto de Ecuador'!E96) -> 68777 | M99: =IF('INGRESO DE DATOS'!$W$13=1,'Tablas Guyanas y Santa Elena'!F96,'Tablas Resto de Ecuador'!F96) -> 50510 | N99: =IF('INGRESO DE DATOS'!$W$13=1,'Tablas Guyanas y Santa Elena'!G96,'Tablas Resto de Ecuador'!G96) -> 40772 | O99: =IF('INGRESO DE DATOS'!$W$13=1,'Tablas Guyanas y Santa Elena'!H96,'Tablas Resto de Ecuador'!H96) -> 35058 | P99: 113437 | Q99: 99057 | R99: 68777 | S99: 50510 | T99: 40772 | U99: 35058
A100: 70 | B100: 70 | C100: 134235 | D100: 121916 | E100: 83740 | F100: 59461 | G100: 47513 | H100: 41236 | J100: =IF('INGRESO DE DATOS'!$W$13=1,'Tablas Guyanas y Santa Elena'!C97,'Tablas Resto de Ecuador'!C97) -> 134235 | K100: =IF('INGRESO DE DATOS'!$W$13=1,'Tablas Guyanas y Santa Elena'!D97,'Tablas Resto de Ecuador'!D97) -> 121916 | L100: =IF('INGRESO DE DATOS'!$W$13=1,'Tablas Guyanas y Santa Elena'!E97,'Tablas Resto de Ecuador'!E97) -> 83740 | M100: =IF('INGRESO DE DATOS'!$W$13=1,'Tablas Guyanas y Santa Elena'!F97,'Tablas Resto de Ecuador'!F97) -> 59461 | N100: =IF('INGRESO DE DATOS'!$W$13=1,'Tablas Guyanas y Santa Elena'!G97,'Tablas Resto de Ecuador'!G97) -> 47513 | O100: =IF('INGRESO DE DATOS'!$W$13=1,'Tablas Guyanas y Santa Elena'!H97,'Tablas Resto de Ecuador'!H97) -> 41236 | P100: 134235 | Q100: 121916 | R100: 83740 | S100: 59461 | T100: 47513 | U100: 41236
A101: 71 | B101: 71 | C101: 139510 | D101: 126706 | E101: 87018 | F101: 61799 | G101: 49374 | H101: 42874 | J101: =IF('INGRESO DE DATOS'!$W$13=1,'Tablas Guyanas y Santa Elena'!C98,'Tablas Resto de Ecuador'!C98) -> 139510 | K101: =IF('INGRESO DE DATOS'!$W$13=1,'Tablas Guyanas y Santa Elena'!D98,'Tablas Resto de Ecuador'!D98) -> 126706 | L101: =IF('INGRESO DE DATOS'!$W$13=1,'Tablas Guyanas y Santa Elena'!E98,'Tablas Resto de Ecuador'!E98) -> 87018 | M101: =IF('INGRESO DE DATOS'!$W$13=1,'Tablas Guyanas y Santa Elena'!F98,'Tablas Resto de Ecuador'!F98) -> 61799 | N101: =IF('INGRESO DE DATOS'!$W$13=1,'Tablas Guyanas y Santa Elena'!G98,'Tablas Resto de Ecuador'!G98) -> 49374 | O101: =IF('INGRESO DE DATOS'!$W$13=1,'Tablas Guyanas y Santa Elena'!H98,'Tablas Resto de Ecuador'!H98) -> 42874 | P101: 139510 | Q101: 126706 | R101: 87018 | S101: 61799 | T101: 49374 | U101: 42874
A102: 72 | B102: 72 | C102: 143438 | D102: 130289 | E102: 89486 | F102: 63545 | G102: 50778 | H102: 44067 | J102: =IF('INGRESO DE DATOS'!$W$13=1,'Tablas Guyanas y Santa Elena'!C99,'Tablas Resto de Ecuador'!C99) -> 143438 | K102: =IF('INGRESO DE DATOS'!$W$13=1,'Tablas Guyanas y Santa Elena'!D99,'Tablas Resto de Ecuador'!D99) -> 130289 | L102: =IF('INGRESO DE DATOS'!$W$13=1,'Tablas Guyanas y Santa Elena'!E99,'Tablas Resto de Ecuador'!E99) -> 89486 | M102: =IF('INGRESO DE DATOS'!$W$13=1,'Tablas Guyanas y Santa Elena'!F99,'Tablas Resto de Ecuador'!F99) -> 63545 | N102: =IF('INGRESO DE DATOS'!$W$13=1,'Tablas Guyanas y Santa Elena'!G99,'Tablas Resto de Ecuador'!G99) -> 50778 | O102: =IF('INGRESO DE DATOS'!$W$13=1,'Tablas Guyanas y Santa Elena'!H99,'Tablas Resto de Ecuador'!H99) -> 44067 | P102: 143438 | Q102: 130289 | R102: 89486 | S102: 63545 | T102: 50778 | U102: 44067
A103: 73 | B103: 73 | C103: 148713 | D103: 135087 | E103: 92769 | F103: 65884 | G103: 52642 | H103: 45703 | J103: =IF('INGRESO DE DATOS'!$W$13=1,'Tablas Guyanas y Santa Elena'!C100,'Tablas Resto de Ecuador'!C100) -> 148713 | K103: =IF('INGRESO DE DATOS'!$W$13=1,'Tablas Guyanas y Santa Elena'!D100,'Tablas Resto de Ecuador'!D100) -> 135087 | L103: =IF('INGRESO DE DATOS'!$W$13=1,'Tablas Guyanas y Santa Elena'!E100,'Tablas Resto de Ecuador'!E100) -> 92769 | M103: =IF('INGRESO DE DATOS'!$W$13=1,'Tablas Guyanas y Santa Elena'!F100,'Tablas Resto de Ecuador'!F100) -> 65884 | N103: =IF('INGRESO DE DATOS'!$W$13=1,'Tablas Guyanas y Santa Elena'!G100,'Tablas Resto de Ecuador'!G100) -> 52642 | O103: =IF('INGRESO DE DATOS'!$W$13=1,'Tablas Guyanas y Santa Elena'!H100,'Tablas Resto de Ecuador'!H100) -> 45703 | P103: 148713 | Q103: 135087 | R103: 92769 | S103: 65884 | T103: 52642 | U103: 45703
A104: 74 | B104: 74 | C104: 151323 | D104: 137464 | E104: 94423 | F104: 67034 | G104: 53581 | H104: 46504 | J104: =IF('INGRESO DE DATOS'!$W$13=1,'Tablas Guyanas y Santa Elena'!C101,'Tablas Resto de Ecuador'!C101) -> 151323 | K104: =IF('INGRESO DE DATOS'!$W$13=1,'Tablas Guyanas y Santa Elena'!D101,'Tablas Resto de Ecuador'!D101) -> 137464 | L104: =IF('INGRESO DE DATOS'!$W$13=1,'Tablas Guyanas y Santa Elena'!E101,'Tablas Resto de Ecuador'!E101) -> 94423 | M104: =IF('INGRESO DE DATOS'!$W$13=1,'Tablas Guyanas y Santa Elena'!F101,'Tablas Resto de Ecuador'!F101) -> 67034 | N104: =IF('INGRESO DE DATOS'!$W$13=1,'Tablas Guyanas y Santa Elena'!G101,'Tablas Resto de Ecuador'!G101) -> 53581 | O104: =IF('INGRESO DE DATOS'!$W$13=1,'Tablas Guyanas y Santa Elena'!H101,'Tablas Resto de Ecuador'!H101) -> 46504 | P104: 151323 | Q104: 137464 | R104: 94423 | S104: 67034 | T104: 53581 | U104: 46504
A105: 75 | B105: 75+ | C105: 157905 | D105: 143449 | E105: 98525 | F105: 69971 | G105: 55906 | H105: 48547 | J105: =IF('INGRESO DE DATOS'!$W$13=1,'Tablas Guyanas y Santa Elena'!C102,'Tablas Resto de Ecuador'!C102) -> 157905 | K105: =IF('INGRESO DE DATOS'!$W$13=1,'Tablas Guyanas y Santa Elena'!D102,'Tablas Resto de Ecuador'!D102) -> 143449 | L105: =IF('INGRESO DE DATOS'!$W$13=1,'Tablas Guyanas y Santa Elena'!E102,'Tablas Resto de Ecuador'!E102) -> 98525 | M105: =IF('INGRESO DE DATOS'!$W$13=1,'Tablas Guyanas y Santa Elena'!F102,'Tablas Resto de Ecuador'!F102) -> 69971 | N105: =IF('INGRESO DE DATOS'!$W$13=1,'Tablas Guyanas y Santa Elena'!G102,'Tablas Resto de Ecuador'!G102) -> 55906 | O105: =IF('INGRESO DE DATOS'!$W$13=1,'Tablas Guyanas y Santa Elena'!H102,'Tablas Resto de Ecuador'!H102) -> 48547 | P105: 157905 | Q105: 143449 | R105: 98525 | S105: 69971 | T105: 55906 | U105: 48547
A106: 1 | B106: 1 Child | C106: 8667 | D106: 5361 | E106: 3957 | F106: 3097 | G106: 2327 | H106: 1829 | J106: =IF('INGRESO DE DATOS'!$W$13=1,'Tablas Guyanas y Santa Elena'!C103,'Tablas Resto de Ecuador'!C103) -> 8667 | K106: =IF('INGRESO DE DATOS'!$W$13=1,'Tablas Guyanas y Santa Elena'!D103,'Tablas Resto de Ecuador'!D103) -> 5361 | L106: =IF('INGRESO DE DATOS'!$W$13=1,'Tablas Guyanas y Santa Elena'!E103,'Tablas Resto de Ecuador'!E103) -> 3957 | M106: =IF('INGRESO DE DATOS'!$W$13=1,'Tablas Guyanas y Santa Elena'!F103,'Tablas Resto de Ecuador'!F103) -> 3097 | N106: =IF('INGRESO DE DATOS'!$W$13=1,'Tablas Guyanas y Santa Elena'!G103,'Tablas Resto de Ecuador'!G103) -> 2327 | O106: =IF('INGRESO DE DATOS'!$W$13=1,'Tablas Guyanas y Santa Elena'!H103,'Tablas Resto de Ecuador'!H103) -> 1829 | P106: =(J106)*$L$2 -> 8667 | Q106: =(K106)*$L$2 -> 5361 | R106: 3957 | S106: 3097 | T106: 2327 | U106: 1829
A107: 2 | B107: 2 Children | C107: 13601 | D107: 8526 | E107: 6286 | F107: 4930 | G107: 3717 | H107: 2898 | J107: =IF('INGRESO DE DATOS'!$W$13=1,'Tablas Guyanas y Santa Elena'!C104,'Tablas Resto de Ecuador'!C104) -> 13601 | K107: =IF('INGRESO DE DATOS'!$W$13=1,'Tablas Guyanas y Santa Elena'!D104,'Tablas Resto de Ecuador'!D104) -> 8526 | L107: =IF('INGRESO DE DATOS'!$W$13=1,'Tablas Guyanas y Santa Elena'!E104,'Tablas Resto de Ecuador'!E104) -> 6286 | M107: =IF('INGRESO DE DATOS'!$W$13=1,'Tablas Guyanas y Santa Elena'!F104,'Tablas Resto de Ecuador'!F104) -> 4930 | N107: =IF('INGRESO DE DATOS'!$W$13=1,'Tablas Guyanas y Santa Elena'!G104,'Tablas Resto de Ecuador'!G104) -> 3717 | O107: =IF('INGRESO DE DATOS'!$W$13=1,'Tablas Guyanas y Santa Elena'!H104,'Tablas Resto de Ecuador'!H104) -> 2898 | P107: =(J107)*$L$2 -> 13601 | Q107: =(K107)*$L$2 -> 8526 | R107: =(L107)*$L$2 -> 6286 | S107: =(M107)*$L$2 -> 4930 | T107: =(N107)*$L$2 -> 3717 | U107: =(O107)*$L$2 -> 2898
A108: 3 | B108: 3+ Children | C108: 19806 | D108: 12487 | E108: 9214 | F108: 7224 | G108: 5451 | H108: 4245 | J108: =IF('INGRESO DE DATOS'!$W$13=1,'Tablas Guyanas y Santa Elena'!C105,'Tablas Resto de Ecuador'!C105) -> 19806 | K108: =IF('INGRESO DE DATOS'!$W$13=1,'Tablas Guyanas y Santa Elena'!D105,'Tablas Resto de Ecuador'!D105) -> 12487 | L108: =IF('INGRESO DE DATOS'!$W$13=1,'Tablas Guyanas y Santa Elena'!E105,'Tablas Resto de Ecuador'!E105) -> 9214 | M108: =IF('INGRESO DE DATOS'!$W$13=1,'Tablas Guyanas y Santa Elena'!F105,'Tablas Resto de Ecuador'!F105) -> 7224 | N108: =IF('INGRESO DE DATOS'!$W$13=1,'Tablas Guyanas y Santa Elena'!G105,'Tablas Resto de Ecuador'!G105) -> 5451 | O108: =IF('INGRESO DE DATOS'!$W$13=1,'Tablas Guyanas y Santa Elena'!H105,'Tablas Resto de Ecuador'!H105) -> 4245 | P108: 19806 | Q108: 12487 | R108: 9214 | S108: 7224 | T108: 5451 | U108: 4245
A109: 1 | B109: Rider Comp. Maternidad | C109: =J109*$V$2 -> 0 | D109: =K109*$V$2 -> 0 | E109: =L109*$V$2 -> 0 | F109: 225 | G109: 225 | H109: 225 | J109: =IF('INGRESO DE DATOS'!$W$13=1,'Tablas Guyanas y Santa Elena'!C106,'Tablas Resto de Ecuador'!C106) -> 0 | K109: 0 | L109: 0 | M109: 225 | N109: 225 | O109: 225
A110: 1 | B110: Transplante de organos | C110: =J110*$V$2 -> 0 | D110: =K110*$V$2 -> 0 | E110: =L110*$V$2 -> 0 | F110: =M110*$V$2 -> 0 | G110: =N110*$V$2 -> 0 | H110: =O110*$V$2 -> 0 | J110: =IF('INGRESO DE DATOS'!$W$13=1,'Tablas Guyanas y Santa Elena'!C107,'Tablas Resto de Ecuador'!C107) -> 0 | K110: 0 | L110: 0 | M110: 0 | N110: 0 | O110: 0
C111: 0 | D111: 0 | E111: 0 | F111: 0 | G111: 0 | H111: 0 | J111: =IF('INGRESO DE DATOS'!$W$13=1,'Tablas Guyanas y Santa Elena'!C108,'Tablas Resto de Ecuador'!C108) -> 0
A114: TARIFAS SEMESTRALES
A115: EDAD
C116: DW1 | D116: DW2 | E116: DW3 | F116: DW4 | G116: DW5 | H116: DW6
A117: 18 | B117: 18-24 | C117: =$G$2*C82 -> 13247.88 | D117: 8159.88 | E117: 5388.51 | F117: 3659.65 | G117: 2326.17 | H117: 1825.85
A118: 25 | B118: 25-29 | C118: =$G$2*C83 -> 13896.07 | D118: =$G$2*D83 -> 8557.91 | E118: 5961.44 | F118: 4058.21 | G118: 2582.16 | H118: 2031.49
A119: 30 | B119: 30-34 | C119: =$G$2*C84 -> 14370.42 | D119: =$G$2*D84 -> 8912.48 | E119: 6390.74 | F119: 4554.29 | G119: 3096.79 | H119: 2436.41
A120: 35 | B120: 35-39 | C120: =$G$2*C85 -> 16070.13 | D120: =$G$2*D85 -> 9975.13 | E120: 7160.3 | F120: 5094.36 | G120: 3468.85 | H120: 2731.62
A121: 40 | B121: 40-44 | C121: =$G$2*C86 -> 18607.24 | D121: =$G$2*D86 -> 11565.66 | E121: 7824.39 | F121: 5661.46 | G121: 3813.35 | H121: 3007.22
A122: 45 | B122: 45-49 | C122: =$G$2*C87 -> 20775.47 | D122: =$G$2*D87 -> 12934.65 | E122: 8755.6 | F122: 6334.56 | G122: 4265.97 | H122: 3360.2
A123: 50 | B123: 50-54 | C123: =$G$2*C88 -> 27004.03 | D123: =$G$2*D88 -> 16558.79 | E123: 11490.4 | F123: 8265.35 | G123: 6031.4 | H123: 4756.22
A124: 55 | B124: 55-59 | C124: =$G$2*C89 -> 28723.88 | D124: =$G$2*D89 -> 17611.37 | E124: 12231.87 | F124: 8786.87 | G124: 6418.83 | H124: 5062.03
A125: 60 | B125: 60 | C125: =$G$2*C90 -> 30553.97 | D125: =$G$2*D90 -> 19189.71 | E125: 13342.75 | F125: 10109.75 | G125: 7738 | H125: 6288.98
A126: 61 | B126: 61 | C126: =$G$2*C91 -> 32818.66 | D126: =$G$2*D91 -> 20623.36 | E126: 14335.44 | F126: 10858.11 | G126: 8315.7 | H126: 6751.14
A127: 62 | B127: 62 | C127: =$G$2*C92 -> 35902.2 | D127: =$G$2*D92 -> 22582.24 | E127: 15706.55 | F127: 11900.09 | G127: 9104.87 | H127: 7394.03
A128: 63 | B128: 63 | C128: =$G$2*C93 -> 38164.24 | D128: =$G$2*D93 -> 24005.82 | E128: 16696.59 | F128: 12648.45 | G128: 9680.98 | H128: 7865.2
A129: 64 | B129: 64 | C129: =$G$2*C94 -> 41275.34 | D129: =$G$2*D94 -> 25963.64 | E129: 18071.94 | F129: 13687.78 | G129: 10466.44 | H129: 8514.45
A130: 65 | B130: 65 | C130: =$G$2*C95 -> 43247.47 | D130: =$G$2*D95 -> 33955.51 | E130: 23573.87 | F130: 17307.68 | G130: 13971.33 | H130: 12018.81
A131: 66 | B131: 66 | C131: =$G$2*C96 -> 45215.36 | D131: =$G$2*D96 -> 39446.84 | E131: 27387.22 | F131: 20112.97 | G131: 16238.14 | H131: 13957.02
A132: 67 | B132: 67 | C132: =$G$2*C97 -> 49372.15 | D132: =$G$2*D97 -> 43093.24 | E132: 29917.97 | F132: 21971.68 | G132: 17731.15 | H132: 15251.28
A133: 68 | B133: 68 | C133: =$G$2*C98 -> 54656.78 | D133: =$G$2*D98 -> 47716.43 | E133: 33120.76 | F133: 24332.83 | G133: 19641.27 | H133: 16886.86
A134: 69 | B134: 69 | C134: =$G$2*C99 -> 60121.61 | D134: =$G$2*D99 -> 52500.21 | E134: 36451.81 | F134: 26770.3 | G134: 21609.16 | H134: 18580.74
A135: 70 | B135: 70 | C135: =$G$2*C100 -> 71144.55 | D135: =$G$2*D100 -> 64615.48 | E135: 44382.2 | F135: 31514.33 | G135: 25181.89 | H135: 21855.08
A136: 71 | B136: 71 | C136: =$G$2*C101 -> 73940.3 | D136: =$G$2*D101 -> 67154.18 | E136: 46119.54 | F136: 32753.47 | G136: 26168.22 | H136: 22723.22
A137: 72 | B137: 72 | C137: =$G$2*C102 -> 76022.14 | D137: =$G$2*D102 -> 69053.17 | E137: 47427.58 | F137: 33678.85 | G137: 26912.34 | H137: 23355.51
A138: 73 | B138: 73 | C138: =$G$2*C103 -> 78817.89 | D138: =$G$2*D103 -> 71596.11 | E138: 49167.57 | F138: 34918.52 | G138: 27900.26 | H138: 24222.59
A139: 74 | B139: 74 | C139: =$G$2*C104 -> 80201.19 | D139: =$G$2*D104 -> 72855.92 | E139: 50044.19 | F139: 35528.02 | G139: 28397.93 | H139: 24647.12
A140: 75 | B140: 75+ | C140: =$G$2*C105 -> 83689.65 | D140: =$G$2*D105 -> 76027.97 | E140: 52218.25 | F140: 37084.63 | G140: 29630.18 | H140: 25729.91
A141: 1 | B141: 1 Child | C141: =$G$2*C106 -> 4593.51 | D141: =$G$2*D106 -> 2841.33 | E141: 2097.21 | F141: 1641.41 | G141: 1233.31 | H141: 969.37
A142: 2 | B142: 2 Children | C142: =$G$2*C107 -> 7208.53 | D142: =$G$2*D107 -> 4518.78 | E142: 3331.58 | F142: 2612.9 | G142: 1970.01 | H142: 1535.94
A143: 3 | B143: 3+ Children | C143: =$G$2*C108 -> 10497.18 | D143: =$G$2*D108 -> 6618.11 | E143: 4883.42 | F143: 3828.72 | G143: 2889.03 | H143: 2249.85
A144: 1 | B144: Rider Comp. Maternidad | C144: =$G$2*C109 -> 0 | D144: =+D109*$G$2 -> 0 | E144: 0 | F144: 119.25 | G144: 119.25 | H144: 119.25
A145: 1 | B145: Transplante de organos | C145: =$G$2*C110 -> 0 | D145: =+D110*$G$2 -> 0 | E145: 0 | F145: 0 | G145: 0 | H145: 0
A151: DIAMOND (LATINAMERICA ONLY)
A152: TARIFAS ANUALES
A153: EDAD
C154: DL1 | D154: DL2 | E154: DL3 | F154: DL4 | G154: DL5 | H154: DL6
A155: 18 | B155: - 24
A156: 25 | B156: - 29
A157: 30 | B157: - 34
A158: 35 | B158: - 39
A159: 40 | B159: - 44
A160: 45 | B160: - 49
A161: 50 | B161: - 54
A162: 55 | B162: - 59
A163: 60
A164: 61
A165: 62
A166: 63
A167: 64
A168: 65
A169: 66
A170: 67
A171: 68
A172: 69
A173: 70
A174: 71
A175: 72
A176: 73
A177: 74
A178: 75 | B178: o más
A179: 1 | B179: Hijo
A180: 2 | B180: Hijos
A181: 3 | B181: Hijos o más
A182: 1 | B182: Rider Comp. Maternidad
A183: 1 | B183: Transplante de organos | C183: 0 | D183: 0 | E183: 0 | F183: 0 | G183: 0 | H183: 0
A185: TARIFAS SEMESTRALES
A186: EDAD
C187: DL1 | D187: DL2 | E187: DL3 | F187: DL4 | G187: DL5 | H187: DL6
A188: 18 | B188: - 24 | C188: =+C155*$G$2 -> 0 | D188: 0 | E188: 0 | F188: 0 | G188: 0 | H188: 0
A189: 25 | B189: - 29 | C189: 0 | D189: 0 | E189: 0 | F189: 0 | G189: 0 | H189: 0
A190: 30 | B190: - 34 | C190: 0 | D190: 0 | E190: 0 | F190: 0 | G190: 0 | H190: 0
A191: 35 | B191: - 39 | C191: 0 | D191: 0 | E191: 0 | F191: 0 | G191: 0 | H191: 0
A192: 40 | B192: - 44 | C192: 0 | D192: 0 | E192: 0 | F192: 0 | G192: 0 | H192: 0
A193: 45 | B193: - 49 | C193: 0 | D193: 0 | E193: 0 | F193: 0 | G193: 0 | H193: 0
A194: 50 | B194: - 54 | C194: 0 | D194: 0 | E194: 0 | F194: 0 | G194: 0 | H194: 0
A195: 55 | B195: - 59 | C195: 0 | D195: 0 | E195: 0 | F195: 0 | G195: 0 | H195: 0
A196: 60 | C196: 0 | D196: 0 | E196: 0 | F196: 0 | G196: 0 | H196: 0
A197: 61 | C197: 0 | D197: 0 | E197: 0 | F197: 0 | G197: 0 | H197: 0
A198: 62 | C198: =+C165*$G$2 -> 0 | D198: 0 | E198: 0 | F198: 0 | G198: 0 | H198: 0
A199: 63 | C199: 0 | D199: 0 | E199: 0 | F199: 0 | G199: 0 | H199: 0
A200: 64 | C200: 0 | D200: 0 | E200: 0 | F200: 0 | G200: 0 | H200: 0
A201: 65 | C201: 0 | D201: 0 | E201: 0 | F201: 0 | G201: 0 | H201: 0
A202: 66 | C202: 0 | D202: 0 | E202: 0 | F202: 0 | G202: 0 | H202: 0
A203: 67 | C203: 0 | D203: 0 | E203: 0 | F203: 0 | G203: 0 | H203: 0
A204: 68 | C204: 0 | D204: 0 | E204: 0 | F204: 0 | G204: 0 | H204: 0
A205: 69 | C205: 0 | D205: 0 | E205: 0 | F205: 0 | G205: 0 | H205: 0
A206: 70 | C206: 0 | D206: 0 | E206: 0 | F206: 0 | G206: 0 | H206: 0
A207: 71 | C207: 0 | D207: 0 | E207: 0 | F207: 0 | G207: 0 | H207: 0
A208: 72 | C208: =+C175*$G$2 -> 0 | D208: 0 | E208: 0 | F208: 0 | G208: 0 | H208: 0
A209: 73 | C209: 0 | D209: 0 | E209: 0 | F209: 0 | G209: 0 | H209: 0
A210: 74 | C210: 0 | D210: 0 | E210: 0 | F210: 0 | G210: 0 | H210: 0
A211: 75 | B211: o más | C211: 0 | D211: 0 | E211: 0 | F211: 0 | G211: 0 | H211: 0
A212: 1 | B212: Hijo | C212: 0 | D212: 0 | E212: 0 | F212: 0 | G212: 0 | H212: 0
A213: 2 | B213: Hijos | C213: 0 | D213: 0 | E213: 0 | F213: 0 | G213: 0 | H213: 0
A214: 3 | B214: Hijos o más | C214: 0 | D214: 0 | E214: 0 | F214: 0 | G214: 0 | H214: 0
A215: 1 | B215: Rider Comp. Maternidad | C215: 0 | D215: 0 | E215: 0 | F215: 0 | G215: 0 | H215: 0
A216: 1 | B216: Transplante de organos | C216: 0 | D216: 0 | E216: 0 | F216: 0 | G216: 0 | H216: 0
A221: BUPA COMPLETE CARE (MUNDIAL)
... 534 more rows

Sheet Tablas Guyanas y Santa Elena (hidden)
K1: D1 | L1: D2 | M1: D3 | N1: D4 | O1: D5 | P1: D6
B2: REGIÓN | C2: ='INGRESO DE DATOS'!W14 -> Resto de Ecuador | E2: FACTOR SEMESTRAL : | G2: 0.53 | I2: NEW BUSINESS DISCUOUNTS | K2: ='INGRESO DE DATOS'!O42 -> 1 | L2: ='INGRESO DE DATOS'!P42 -> 1 | M2: ='INGRESO DE DATOS'!Q42 -> 1 | N2: ='INGRESO DE DATOS'!R42 -> 1 | O2: ='INGRESO DE DATOS'!S42 -> 1 | P2: ='INGRESO DE DATOS'!T42 -> 1
A5: BUPA DIAMOND CARE (MUNDIAL)
A6: TARIFAS ANUALES
A7: EDAD
C8: DW1 | D8: DW2 | E8: DW3 | F8: DW4 | G8: DW5 | H8: DW6
A9: 18 | B9: 18-24 | C9: 31872 | D9: 21147 | E9: 12204 | F9: 9598 | G9: 6177 | H9: 4885
A10: 25 | B10: 25-29 | C10: 35835 | D10: 22172 | E10: 15110 | F10: 10622 | G10: 6828 | H10: 5395
A11: 30 | B11: 30-34 | C11: 37106 | D11: 23064 | E11: 16587 | F11: 11874 | G11: 8154 | H11: 6452
A12: 35 | B12: 35-39 | C12: 41470 | D12: 25811 | E12: 18553 | F12: 13293 | G12: 9124 | H12: 7221
A13: 40 | B13: 40-44 | C13: 47986 | D13: 29895 | E13: 20279 | F13: 14737 | G13: 10013 | H13: 7917
A14: 45 | B14: 45-49 | C14: 53561 | D14: 33409 | E14: 22669 | F14: 16448 | G14: 11181 | H14: 8831
A15: 50 | B15: 50-54 | C15: 63729 | D15: 42730 | E15: 29690 | F15: 21438 | G15: 15734 | H15: 12439
A16: 55 | B16: 55-59 | C16: 69390 | D16: 45443 | E16: 31593 | F16: 22796 | G16: 16746 | H16: 13233
A17: 60 | B17: 60 | C17: 71322 | D17: 49491 | E17: 34455 | F17: 26211 | G17: 20140 | H17: 16409
A18: 61 | B18: 61 | C18: 77401 | D18: 53168 | E18: 37015 | F18: 28132 | G18: 21635 | H18: 17612
A19: 62 | B19: 62 | C19: 85147 | D19: 58197 | E19: 40513 | F19: 30806 | G19: 23668 | H19: 19275
A20: 63 | B20: 63 | C20: 93920 | D20: 61868 | E20: 43068 | F20: 32735 | G20: 25165 | H20: 20487
A21: 64 | B21: 64 | C21: 103076 | D21: 66911 | E21: 46603 | F21: 35411 | G21: 27211 | H21: 22157
A22: 65 | B22: 65 | C22: 111321 | D22: 82616 | E22: 60730 | F22: 44734 | G22: 36242 | H22: 31197
A23: 66 | B23: 66 | C23: 116363 | D23: 89246 | E23: 66856 | F23: 51967 | G23: 42106 | H23: 36224
A24: 67 | B24: 67 | C24: 127056 | D24: 95996 | E24: 71543 | F24: 56743 | G24: 45972 | H24: 39550
A25: 68 | B25: 68 | C25: 137763 | D25: 102909 | E25: 76319 | F25: 60959 | G25: 50897 | H25: 43794
A26: 69 | B26: 69 | C26: 146981 | D26: 110024 | E26: 81222 | F26: 65159 | G26: 55984 | H26: 48170
A27: 70 | B27: 70 | C27: 156864 | D27: 117383 | E27: 86292 | F27: 69492 | G27: 62686 | H27: 53209
A28: 71 | B28: 71 | C28: 167620 | D28: 125073 | E28: 91584 | F28: 74014 | G28: 67244 | H28: 56776
A29: 72 | B29: 72 | C29: 179108 | D29: 133066 | E29: 97073 | F29: 78737 | G29: 69688 | H29: 60516
A30: 73 | B30: 73 | C30: 191015 | D30: 141233 | E30: 102674 | F30: 83574 | G30: 72253 | H30: 62735
A31: 74 | B31: 74 | C31: 203026 | D31: 149442 | E31: 108303 | F31: 88440 | G31: 73519 | H31: 63846
A32: 75 | B32: 75+ | C32: 214828 | D32: 157566 | E32: 113876 | F32: 93248 | G32: 76722 | H32: 66623
A33: 1 | B33: 1 Child | C33: 6954 | D33: 4549 | E33: 3111 | F33: 2376 | G33: 2304 | H33: 2005
A34: 2 | B34: 2 Children | C34: 11533 | D34: 7606 | E34: 5355 | F34: 4104 | G34: 3978 | H34: 3436
A35: 3 | B35: 3+ Children | C35: 15658 | D35: 10421 | E35: 7437 | F35: 5726 | G35: 5533 | H35: 4763
A36: 1 | B36: Rider Comp. Maternidad | C36: 0 | D36: 0 | E36: 0 | F36: 225 | G36: 225 | H36: 225
A37: 1 | B37: Transplante de organos | C37: 0 | D37: 0 | E37: 0 | F37: 0 | G37: 0 | H37: 0
A41: TARIFAS SEMESTRALES
A42: EDAD
D43: DW2 | E43: DW3 | F43: DW4 | G43: DW5 | H43: DW6
A44: 18 | B44: 18-24 | D44: =$G$2*D9 -> 11207.91 | E44: 6468.12 | F44: 5086.94 | G44: 3273.81 | H44: 2589.05
A45: 25 | B45: 25-29 | D45: 11751.16 | E45: 8008.3 | F45: 5629.66 | G45: 3618.84 | H45: 2859.35
A46: 30 | B46: 30-34 | D46: 12223.92 | E46: 8791.11 | F46: 6293.22 | G46: 4321.62 | H46: 3419.56
A47: 35 | B47: 35-39 | D47: 13679.83 | E47: 9833.09 | F47: 7045.29 | G47: 4835.72 | H47: 3827.13
A48: 40 | B48: 40-44 | D48: 15844.35 | E48: 10747.87 | F48: 7810.61 | G48: 5306.89 | H48: 4196.01
A49: 45 | B49: 45-49 | D49: 17706.77 | E49: 12014.57 | F49: 8717.44 | G49: 5925.93 | H49: 4680.43
A50: 50 | B50: 50-54 | D50: 22646.9 | E50: 15735.7 | F50: 11362.14 | G50: 8339.02 | H50: 6592.67
A51: 55 | B51: 55-59 | D51: 24084.79 | E51: 16744.29 | F51: 12081.88 | G51: 8875.38 | H51: 7013.49
A52: 60 | B52: 60 | D52: 26230.23 | E52: 18261.15 | F52: 13891.83 | G52: 10674.2 | H52: 8696.77
A53: 61 | B53: 61 | D53: 28179.04 | E53: 19617.95 | F53: 14909.96 | G53: 11466.55 | H53: 9334.36
A54: 62 | B54: 62 | D54: =$G$2*D19 -> 30844.41 | E54: 21471.89 | F54: 16327.18 | G54: 12544.04 | H54: 10215.75
A55: 63 | B55: 63 | D55: 32790.04 | E55: 22826.04 | F55: 17349.55 | G55: 13337.45 | H55: 10858.11
A56: 64 | B56: 64 | D56: 35462.83 | E56: 24699.59 | F56: 18767.83 | G56: 14421.83 | H56: 11743.21
A57: 65 | B57: 65 | D57: 43786.48 | E57: 32186.9 | F57: 23709.02 | G57: 19208.26 | H57: 16534.41
A58: 66 | B58: 66 | D58: 47300.38 | E58: 35433.68 | F58: 27542.51 | G58: 22316.18 | H58: 19198.72
A59: 67 | B59: 67 | D59: 50877.88 | E59: 37917.79 | F59: 30073.79 | G59: 24365.16 | H59: 20961.5
A60: 68 | B60: 68 | D60: 54541.77 | E60: 40449.07 | F60: 32308.27 | G60: 26975.41 | H60: 23210.82
A61: 69 | B61: 69 | D61: 58312.72 | E61: 43047.66 | F61: 34534.27 | G61: 29671.52 | H61: 25530.1
A62: 70 | B62: 70 | D62: 62212.99 | E62: 45734.76 | F62: 36830.76 | G62: 33223.58 | H62: 28200.77
A63: 71 | B63: 71 | D63: 66288.69 | E63: 48539.52 | F63: 39227.42 | G63: 35639.32 | H63: 30091.28
A64: 72 | B64: 72 | D64: =$G$2*D29 -> 70524.98 | E64: 51448.69 | F64: 41730.61 | G64: 36934.64 | H64: 32073.48
A65: 73 | B65: 73 | D65: 74853.49 | E65: 54417.22 | F65: 44294.22 | G65: 38294.09 | H65: 33249.55
A66: 74 | B66: 74 | D66: 79204.26 | E66: 57400.59 | F66: 46873.2 | G66: 38965.07 | H66: 33838.38
A67: 75 | B67: 75+ | D67: 83509.98 | E67: 60354.28 | F67: 49421.44 | G67: 40662.66 | H67: 35310.19
A68: 1 | B68: 1 Child | D68: 2410.97 | E68: 1648.83 | F68: 1259.28 | G68: 1221.12 | H68: 1062.65
A69: 2 | B69: 2 Children | D69: 4031.18 | E69: 2838.15 | F69: 2175.12 | G69: 2108.34 | H69: 1821.08
A70: 3 | B70: 3+ Children | D70: 5523.13 | E70: 3941.61 | F70: 3034.78 | G70: 2932.49 | H70: 2524.39
A71: 1 | B71: Rider Comp. Maternidad | D71: =+D36*$G$2 -> 0 | E71: 0 | F71: 119.25 | G71: 119.25 | H71: 119.25
A72: 1 | B72: Transplante de organos | D72: 0 | E72: 0 | F72: 0 | G72: 0 | H72: 0
A75: BUPA DIAMOND CARE (LATIN AMERICA)
A76: TARIFAS ANUALES
A77: EDAD
C78: DW1 | D78: DW2 | E78: DW3 | F78: DW4 | G78: DW5 | H78: DW6
A79: 18 | B79: 18-24 | C79: 26963 | D79: 16608 | E79: 10967 | F79: 7471 | G79: 4764 | H79: 3739
A80: 25 | B80: 25-29 | C80: 28282 | D80: 17419 | E80: 12134 | F80: 8284 | G80: 5287 | H80: 4160
A81: 30 | B81: 30-34 | C81: 29250 | D81: 18138 | E81: 13007 | F81: 9298 | G81: 6340 | H81: 4990
A82: 35 | B82: 35-39 | C82: 32709 | D82: 20303 | E82: 14574 | F82: 10400 | G82: 7104 | H82: 5594
A83: 40 | B83: 40-44 | C83: 37872 | D83: 23542 | E83: 15925 | F83: 11558 | G83: 7811 | H83: 6159
A84: 45 | B84: 45-49 | C84: 42285 | D84: 26327 | E84: 17820 | F84: 12931 | G84: 8737 | H84: 6883
A85: 50 | B85: 50-54 | C85: 54963 | D85: 33703 | E85: 23387 | F85: 16873 | G85: 12352 | H85: 9740
A86: 55 | B86: 55-59 | C86: 58464 | D86: 35845 | E86: 24895 | F86: 17937 | G86: 13145 | H86: 10368
A87: 60 | B87: 60 | C87: 62187 | D87: 39059 | E87: 27157 | F87: 20640 | G87: 15846 | H87: 12879
A88: 61 | B88: 61 | C88: 66796 | D88: 41978 | E88: 29179 | F88: 22166 | G88: 17031 | H88: 13826
A89: 62 | B89: 62 | C89: 73073 | D89: 45963 | E89: 31967 | F89: 24294 | G89: 18648 | H89: 15144
A90: 63 | B90: 63 | C90: 77677 | D90: 48860 | E90: 33985 | F90: 25821 | G90: 19828 | H90: 16108
A91: 64 | B91: 64 | C91: 84009 | D91: 52845 | E91: 36782 | F91: 27944 | G91: 21436 | H91: 17438
A92: 65 | B92: 65 | C92: 88022 | D92: 69112 | E92: 47981 | F92: 35333 | G92: 28613 | H92: 24615
A93: 66 | B93: 66 | C93: 92027 | D93: 80288 | E93: 55744 | F93: 41059 | G93: 33255 | H93: 28586
A94: 67 | B94: 67 | C94: 100488 | D94: 87712 | E94: 60892 | F94: 44854 | G94: 36315 | H94: 31236
A95: 68 | B95: 68 | C95: 111245 | D95: 97121 | E95: 67414 | F95: 49673 | G95: 40226 | H95: 34585
A96: 69 | B96: 69 | C96: 122369 | D96: 106855 | E96: 74191 | F96: 54651 | G96: 44256 | H96: 38054
A97: 70 | B97: 70 | C97: 144805 | D97: 131517 | E97: 90333 | F97: 64333 | G97: 51576 | H97: 44761
A98: 71 | B98: 71 | C98: 150496 | D98: 136682 | E98: 93871 | F98: 66865 | G98: 53594 | H98: 46539
A99: 72 | B99: 72 | C99: 154732 | D99: 140547 | E99: 96533 | F99: 68753 | G99: 55117 | H99: 47835
A100: 73 | B100: 73 | C100: 160422 | D100: 145725 | E100: 100073 | F100: 71284 | G100: 57143 | H100: 49609
A101: 74 | B101: 74 | C101: 163238 | D101: 148290 | E101: 101857 | F101: 72527 | G101: 58160 | H101: 50479
A102: 75 | B102: 75+ | C102: 170338 | D102: 154745 | E102: 106284 | F102: 75707 | G102: 60683 | H102: 52696
A103: 1 | B103: 1 Child | C103: 9350 | D103: 5785 | E103: 4269 | F103: 3351 | G103: 2526 | H103: 1985
A104: 2 | B104: 2 Children | C104: 14673 | D104: 9196 | E104: 6780 | F104: 5334 | G104: 4034 | H104: 3146
A105: 3 | B105: 3+ Children | C105: 21365 | D105: 13471 | E105: 9940 | F105: 7816 | G105: 5915 | H105: 4608
A106: 1 | B106: Rider Comp. Maternidad | C106: 0 | D106: 0 | E106: 0 | F106: 225 | G106: 225 | H106: 225
A107: 1 | B107: Transplante de organos | C107: 0 | D107: 0 | E107: 0 | F107: 0 | G107: 0 | H107: 0
A114: DIAMOND (LATINAMERICA ONLY)
A115: TARIFAS ANUALES
A116: EDAD
C117: DL1 | D117: DL2 | E117: DL3 | F117: DL4 | G117: DL5 | H117: DL6
A118: 18 | B118: - 24
A119: 25 | B119: - 29
A120: 30 | B120: - 34
A121: 35 | B121: - 39
A122: 40 | B122: - 44
A123: 45 | B123: - 49
A124: 50 | B124: - 54
A125: 55 | B125: - 59
A126: 60
A127: 61
A128: 62
A129: 63
A130: 64
A131: 65
A132: 66
A133: 67
A134: 68
A135: 69
A136: 70
A137: 71
A138: 72
A139: 73
A140: 74
A141: 75 | B141: o más
A142: 1 | B142: Hijo
A143: 2 | B143: Hijos
A144: 3 | B144: Hijos o más
A145: 1 | B145: Rider Comp. Maternidad
A146: 1 | B146: Transplante de organos | C146: 0 | D146: 0 | E146: 0 | F146: 0 | G146: 0 | H146: 0
A148: TARIFAS SEMESTRALES
A149: EDAD
C150: DL1 | D150: DL2 | E150: DL3 | F150: DL4 | G150: DL5 | H150: DL6
A151: 18 | B151: - 24 | C151: =+C118*$G$2 -> 0 | D151: 0 | E151: 0 | F151: 0 | G151: 0 | H151: 0
A152: 25 | B152: - 29 | C152: 0 | D152: 0 | E152: 0 | F152: 0 | G152: 0 | H152: 0
A153: 30 | B153: - 34 | C153: 0 | D153: 0 | E153: 0 | F153: 0 | G153: 0 | H153: 0
A154: 35 | B154: - 39 | C154: 0 | D154: 0 | E154: 0 | F154: 0 | G154: 0 | H154: 0
A155: 40 | B155: - 44 | C155: 0 | D155: 0 | E155: 0 | F155: 0 | G155: 0 | H155: 0
A156: 45 | B156: - 49 | C156: 0 | D156: 0 | E156: 0 | F156: 0 | G156: 0 | H156: 0
A157: 50 | B157: - 54 | C157: 0 | D157: 0 | E157: 0 | F157: 0 | G157: 0 | H157: 0
A158: 55 | B158: - 59 | C158: 0 | D158: 0 | E158: 0 | F158: 0 | G158: 0 | H158: 0
A159: 60 | C159: 0 | D159: 0 | E159: 0 | F159: 0 | G159: 0 | H159: 0
A160: 61 | C160: 0 | D160: 0 | E160: 0 | F160: 0 | G160: 0 | H160: 0
A161: 62 | C161: =+C128*$G$2 -> 0 | D161: 0 | E161: 0 | F161: 0 | G161: 0 | H161: 0
A162: 63 | C162: 0 | D162: 0 | E162: 0 | F162: 0 | G162: 0 | H162: 0
A163: 64 | C163: 0 | D163: 0 | E163: 0 | F163: 0 | G163: 0 | H163: 0
A164: 65 | C164: 0 | D164: 0 | E164: 0 | F164: 0 | G164: 0 | H164: 0
A165: 66 | C165: 0 | D165: 0 | E165: 0 | F165: 0 | G165: 0 | H165: 0
A166: 67 | C166: 0 | D166: 0 | E166: 0 | F166: 0 | G166: 0 | H166: 0
A167: 68 | C167: 0 | D167: 0 | E167: 0 | F167: 0 | G167: 0 | H167: 0
A168: 69 | C168: 0 | D168: 0 | E168: 0 | F168: 0 | G168: 0 | H168: 0
A169: 70 | C169: 0 | D169: 0 | E169: 0 | F169: 0 | G169: 0 | H169: 0
A170: 71 | C170: 0 | D170: 0 | E170: 0 | F170: 0 | G170: 0 | H170: 0
A171: 72 | C171: =+C138*$G$2 -> 0 | D171: 0 | E171: 0 | F171: 0 | G171: 0 | H171: 0
A172: 73 | C172: 0 | D172: 0 | E172: 0 | F172: 0 | G172: 0 | H172: 0
A173: 74 | C173: 0 | D173: 0 | E173: 0 | F173: 0 | G173: 0 | H173: 0
A174: 75 | B174: o más | C174: 0 | D174: 0 | E174: 0 | F174: 0 | G174: 0 | H174: 0
A175: 1 | B175: Hijo | C175: 0 | D175: 0 | E175: 0 | F175: 0 | G175: 0 | H175: 0
A176: 2 | B176: Hijos | C176: 0 | D176: 0 | E176: 0 | F176: 0 | G176: 0 | H176: 0
A177: 3 | B177: Hijos o más | C177: 0 | D177: 0 | E177: 0 | F177: 0 | G177: 0 | H177: 0
A178: 1 | B178: Rider Comp. Maternidad | C178: 0 | D178: 0 | E178: 0 | F178: 0 | G178: 0 | H178: 0
A179: 1 | B179: Transplante de organos | C179: 0 | D179: 0 | E179: 0 | F179: 0 | G179: 0 | H179: 0
A184: BUPA COMPLETE CARE (MUNDIAL)
A185: TARIFAS ANUALES
A186: EDAD
C187: CW1 | D187: CW2 | E187: CW3 | F187: CW4 | G187: CW5 | H187: CW6
A188: 18 | B188: 18-24 | C188: 27050 | D188: 14057 | E188: 8171 | F188: 4544 | G188: 3906 | H188: 4104
A189: 25 | B189: 25-29 | C189: 29422 | D189: 16092 | E189: 10410 | F189: 6345 | G189: 5236 | H189: 4542
A190: 30 | B190: 30-34 | C190: 31794 | D190: 18127 | E190: 12650 | F190: 8146 | G190: 6567 | H190: 5436
A191: 35 | B191: 35-39 | C191: 34165 | D191: 20099 | E191: 14889 | F191: 9947 | G191: 7897 | H191: 5938
A192: 40 | B192: 40-44 | C192: 34710 | D192: 22374 | E192: 16955 | F192: 10237 | G192: 8016 | H192: 6695
A193: 45 | B193: 45-49 | C193: 36759 | D193: 25728 | E193: 19858 | F193: 14337 | G193: 9820 | H193: 7534
A194: 50 | B194: 50-54 | C194: 45153 | D194: 32016 | E194: 26159 | F194: 18825 | G194: 13977 | H194: 10706
A195: 55 | B195: 55-59 | C195: 54031 | D195: 38486 | E195: 27823 | F195: 20026 | G195: 14858 | H195: 11390
A196: 60 | B196: 60 | C196: 67246 | D196: 42633 | E196: 30216 | F196: 22772 | G196: 17664 | H196: 14196
A197: 61 | B197: 61 | C197: 72215 | D197: 45802 | E197: 32436 | F197: 24453 | G197: 18963 | H197: 15249
A198: 62 | B198: 62 | C198: 79003 | D198: 50126 | E198: 35516 | F198: 26776 | G198: 20751 | H198: 16688
A199: 63 | B199: 63 | C199: 82569 | D199: 53294 | E199: 37748 | F199: 28449 | G199: 22058 | H199: 17727
A200: 64 | B200: 64 | C200: 84815 | D200: 57629 | E200: 40828 | F200: 30769 | G200: 23847 | H200: 19183
A201: 65 | B201: 65 | C201: 89126 | D201: 65223 | E201: 53220 | F201: 38873 | G201: 31761 | H201: 24360
A202: 66 | B202: 66 | C202: 95116 | D202: 68914 | E202: 58158 | F202: 44664 | G202: 36899 | H202: 25902
A203: 67 | B203: 67 | C203: 101536 | D203: 72663 | E203: 61463 | F203: 47406 | G203: 38886 | H203: 27497
A204: 68 | B204: 68 | C204: 108965 | D204: 76955 | E204: 65104 | F204: 50399 | G204: 40486 | H204: 29321
A205: 69 | B205: 69 | C205: 117982 | D205: 82272 | E205: 69347 | F205: 53817 | G205: 42529 | H205: 31553
A206: 70 | B206: 70 | C206: 129166 | D206: 89096 | E206: 74454 | F206: 57830 | G206: 45376 | H206: 34370
A207: 71 | B207: 71 | C207: 143229 | D207: 97902 | E207: 80702 | F207: 62633 | G207: 49253 | H207: 37958
A208: 72 | B208: 72 | C208: 159786 | D208: 108368 | E208: 87914 | F208: 68109 | G208: 53920 | H208: 42199
A209: 73 | B209: 73 | C209: 173157 | D209: 119782 | E209: 95678 | F209: 73971 | G209: 59038 | H209: 46813
A210: 74 | B210: 74 | C210: 176215 | D210: 131433 | E210: 103579 | F210: 79643 | G210: 64268 | H210: 51520
A211: 75 | B211: 75+ | C211: 183865 | D211: 142610 | E211: 111205 | F211: 83114 | G211: 67228 | H211: 56041
A212: 1 | B212: 1 Child | C212: 9870 | D212: 6141 | E212: 4491 | F212: 2926 | G212: 2436 | H212: 1877
A213: 2 | B213: 2 Children | C213: 15468 | D213: 9142 | E213: 6153 | F213: 3928 | G213: 3128 | H213: 2829
A214: 3 | B214: 3+ Children | C214: 22487 | D214: 11105 | E214: 7504 | F214: 4825 | G214: 3762 | H214: 3376
A215: 1 | B215: Rider Comp. Maternidad | C215: 0 | D215: 0 | E215: 0 | F215: 225 | G215: 225 | H215: 225
A216: 1 | B216: Transplante de organos | C216: 0 | D216: 0 | E216: 0 | F216: 0 | G216: 0 | H216: 0
A220: TARIFAS SEMESTRALES
A221: EDAD
... 434 more rows

Sheet Tablas Resto de Ecuador (hidden)
K1: D1 | L1: D2 | M1: D3 | N1: D4 | O1: D5 | P1: D6
B2: REGIÓN | C2: ='INGRESO DE DATOS'!W14 -> Resto de Ecuador | E2: FACTOR SEMESTRAL : | G2: 0.53 | I2: NEW BUSINESS DISCUOUNTS | K2: ='INGRESO DE DATOS'!O42 -> 1 | L2: ='INGRESO DE DATOS'!P42 -> 1 | M2: ='INGRESO DE DATOS'!Q42 -> 1 | N2: ='INGRESO DE DATOS'!R42 -> 1 | O2: ='INGRESO DE DATOS'!S42 -> 1 | P2: ='INGRESO DE DATOS'!T42 -> 1
A5: BUPA DIAMOND CARE (MUNDIAL)
A6: TARIFAS ANUALES
A7: EDAD
C8: DW1 | D8: DW2 | E8: DW3 | F8: DW4 | G8: DW5 | H8: DW6
A9: 18 | B9: 18-24 | C9: 31719 | D9: 19610 | E9: 12204 | F9: 8880 | G9: 5699 | H9: 4509
A10: 25 | B10: 25-29 | C10: 33285 | D10: 20562 | E10: 14355 | F10: 9825 | G10: 6297 | H10: 4979
A11: 30 | B11: 30-34 | C11: 34404 | D11: 21387 | E11: 15387 | F11: 10984 | G11: 7520 | H11: 5954
A12: 35 | B12: 35-39 | C12: 38452 | D12: 23936 | E12: 17206 | F12: 12295 | G12: 8414 | H12: 6661
A13: 40 | B13: 40-44 | C13: 44490 | D13: 27720 | E13: 18808 | F13: 13630 | G13: 9233 | H13: 7304
A14: 45 | B14: 45-49 | C14: 49659 | D14: 30978 | E14: 21023 | F14: 15210 | G14: 10308 | H14: 8144
A15: 50 | B15: 50-54 | C15: 63729 | D15: 39619 | E15: 27529 | F15: 19822 | G15: 14503 | H15: 11467
A16: 55 | B16: 55-59 | C16: 68594 | D16: 42134 | E16: 29295 | F16: 21077 | G16: 15435 | H16: 12200
A17: 60 | B17: 60 | C17: 71322 | D17: 45886 | E17: 31947 | F17: 24234 | G17: 18563 | H17: 15126
A18: 61 | B18: 61 | C18: 77401 | D18: 49294 | E18: 34321 | F18: 26010 | G18: 19939 | H18: 16234
A19: 62 | B19: 62 | C19: 85147 | D19: 53956 | E19: 37564 | F19: 28480 | G19: 21812 | H19: 17767
A20: 63 | B20: 63 | C20: 91087 | D20: 57360 | E20: 39933 | F20: 30262 | G20: 23190 | H20: 18883
A21: 64 | B21: 64 | C21: 98495 | D21: 62036 | E21: 43210 | F21: 32736 | G21: 25077 | H21: 20420
A22: 65 | B22: 65 | C22: 103205 | D22: 81045 | E22: 56306 | F22: 41354 | G22: 33397 | H22: 28750
A23: 66 | B23: 66 | C23: 107877 | D23: 89246 | E23: 65401 | F23: 48038 | G23: 38800 | H23: 33380
A24: 67 | B24: 67 | C24: 117790 | D24: 95996 | E24: 71420 | F24: 52454 | G24: 42362 | H24: 36443
A25: 68 | B25: 68 | C25: 130368 | D25: 102909 | E25: 76319 | F25: 58065 | G25: 46898 | H25: 40354
A26: 69 | B26: 69 | C26: 143383 | D26: 110024 | E26: 81222 | F26: 63872 | G26: 51585 | H26: 44385
A27: 70 | B27: 70 | C27: 156864 | D27: 117383 | E27: 86292 | F27: 69492 | G27: 60093 | H27: 52182
A28: 71 | B28: 71 | C28: 167620 | D28: 125073 | E28: 91584 | F28: 74014 | G28: 62448 | H28: 54224
A29: 72 | B29: 72 | C29: 179108 | D29: 133066 | E29: 97073 | F29: 78737 | G29: 64209 | H29: 55760
A30: 73 | B30: 73 | C30: 187936 | D30: 141233 | E30: 102674 | F30: 83272 | G30: 66571 | H30: 57803
A31: 74 | B31: 74 | C31: 191245 | D31: 149442 | E31: 108303 | F31: 84744 | G31: 67738 | H31: 58829
A32: 75 | B32: 75+ | C32: 199547 | D32: 157566 | E32: 113876 | F32: 88427 | G32: 70691 | H32: 61385
A33: 1 | B33: 1 Child | C33: 6954 | D33: 4549 | E33: 3111 | F33: 2376 | G33: 2304 | H33: 2005
A34: 2 | B34: 2 Children | C34: 11533 | D34: 7606 | E34: 5355 | F34: 4104 | G34: 3978 | H34: 3436
A35: 3 | B35: 3+ Children | C35: 15658 | D35: 10421 | E35: 7437 | F35: 5726 | G35: 5533 | H35: 4763
A36: 1 | B36: Rider Comp. Maternidad | C36: 0 | D36: 0 | E36: 0 | F36: 225 | G36: 225 | H36: 225
A37: 1 | B37: Transplante de organos | C37: 0 | D37: 0 | E37: 0 | F37: 0 | G37: 0 | H37: 0
A41: TARIFAS SEMESTRALES
A42: EDAD
D43: DW2 | E43: DW3 | F43: DW4 | G43: DW5 | H43: DW6
A44: 18 | B44: 18-24 | D44: =$G$2*D9 -> 10393.3 | E44: 6468.12 | F44: 4706.4 | G44: 3020.47 | H44: 2389.77
A45: 25 | B45: 25-29 | D45: 10897.86 | E45: 7608.15 | F45: 5207.25 | G45: 3337.41 | H45: 2638.87
A46: 30 | B46: 30-34 | D46: 11335.11 | E46: 8155.11 | F46: 5821.52 | G46: 3985.6 | H46: 3155.62
A47: 35 | B47: 35-39 | D47: 12686.08 | E47: 9119.18 | F47: 6516.35 | G47: 4459.42 | H47: 3530.33
A48: 40 | B48: 40-44 | D48: 14691.6 | E48: 9968.24 | F48: 7223.9 | G48: 4893.49 | H48: 3871.12
A49: 45 | B49: 45-49 | D49: 16418.34 | E49: 11142.19 | F49: 8061.3 | G49: 5463.24 | H49: 4316.32
A50: 50 | B50: 50-54 | D50: 20998.07 | E50: 14590.37 | F50: 10505.66 | G50: 7686.59 | H50: 6077.51
A51: 55 | B51: 55-59 | D51: 22331.02 | E51: 15526.35 | F51: 11170.81 | G51: 8180.55 | H51: 6466
A52: 60 | B52: 60 | D52: 24319.58 | E52: 16931.91 | F52: 12844.02 | G52: 9838.39 | H52: 8016.78
A53: 61 | B53: 61 | D53: 26125.82 | E53: 18190.13 | F53: 13785.3 | G53: 10567.67 | H53: 8604.02
A54: 62 | B54: 62 | D54: 28596.68 | E54: 19908.92 | F54: 15094.4 | G54: 11560.36 | H54: 9416.51
A55: 63 | B55: 63 | D55: 30400.8 | E55: 21164.49 | F55: 16038.86 | G55: 12290.7 | H55: 10007.99
A56: 64 | B56: 64 | D56: 32879.08 | E56: 22901.3 | F56: 17350.08 | G56: 13290.81 | H56: 10822.6
A57: 65 | B57: 65 | D57: 42953.85 | E57: 29842.18 | F57: 21917.62 | G57: 17700.41 | H57: 15237.5
A58: 66 | B58: 66 | D58: 47300.38 | E58: 34662.53 | F58: 25460.14 | G58: 20564 | H58: 17691.4
A59: 67 | B59: 67 | D59: 50877.88 | E59: 37852.6 | F59: 27800.62 | G59: 22451.86 | H59: 19314.79
A60: 68 | B60: 68 | D60: =$G$2*D25 -> 54541.77 | E60: 40449.07 | F60: 30774.45 | G60: 24855.94 | H60: 21387.62
A61: 69 | B61: 69 | D61: 58312.72 | E61: 43047.66 | F61: 33852.16 | G61: 27340.05 | H61: 23524.05
A62: 70 | B62: 70 | D62: 62212.99 | E62: 45734.76 | F62: 36830.76 | G62: 31849.29 | H62: 27656.46
A63: 71 | B63: 71 | D63: 66288.69 | E63: 48539.52 | F63: 39227.42 | G63: 33097.44 | H63: 28738.72
A64: 72 | B64: 72 | D64: 70524.98 | E64: 51448.69 | F64: 41730.61 | G64: 34030.77 | H64: 29552.8
A65: 73 | B65: 73 | D65: 74853.49 | E65: 54417.22 | F65: 44134.16 | G65: 35282.63 | H65: 30635.59
A66: 74 | B66: 74 | D66: 79204.26 | E66: 57400.59 | F66: 44914.32 | G66: 35901.14 | H66: 31179.37
A67: 75 | B67: 75+ | D67: 83509.98 | E67: 60354.28 | F67: 46866.31 | G67: 37466.23 | H67: 32534.05
A68: 1 | B68: 1 Child | D68: 2410.97 | E68: 1648.83 | F68: 1259.28 | G68: 1221.12 | H68: 1062.65
A69: 2 | B69: 2 Children | D69: 4031.18 | E69: 2838.15 | F69: 2175.12 | G69: 2108.34 | H69: 1821.08
A70: 3 | B70: 3+ Children | D70: 5523.13 | E70: 3941.61 | F70: 3034.78 | G70: 2932.49 | H70: 2524.39
A71: 1 | B71: Rider Comp. Maternidad | D71: =+D36*$G$2 -> 0 | E71: 0 | F71: 119.25 | G71: 119.25 | H71: 119.25
A72: 1 | B72: Transplante de organos | D72: 0 | E72: 0 | F72: 0 | G72: 0 | H72: 0
A75: BUPA DIAMOND CARE (LATIN AMERICA)
A76: TARIFAS ANUALES
A77: EDAD
C78: DW1 | D78: DW2 | E78: DW3 | F78: DW4 | G78: DW5 | H78: DW6
A79: 18 | B79: 18-24 | C79: 24996 | D79: 15396 | E79: 10167 | F79: 6905 | G79: 4389 | H79: 3445
A80: 25 | B80: 25-29 | C80: 26219 | D80: 16147 | E80: 11248 | F80: 7657 | G80: 4872 | H80: 3833
A81: 30 | B81: 30-34 | C81: 27114 | D81: 16816 | E81: 12058 | F81: 8593 | G81: 5843 | H81: 4597
A82: 35 | B82: 35-39 | C82: 30321 | D82: 18821 | E82: 13510 | F82: 9612 | G82: 6545 | H82: 5154
A83: 40 | B83: 40-44 | C83: 35108 | D83: 21822 | E83: 14763 | F83: 10682 | G83: 7195 | H83: 5674
A84: 45 | B84: 45-49 | C84: 39199 | D84: 24405 | E84: 16520 | F84: 11952 | G84: 8049 | H84: 6340
A85: 50 | B85: 50-54 | C85: 50951 | D85: 31243 | E85: 21680 | F85: 15595 | G85: 11380 | H85: 8974
A86: 55 | B86: 55-59 | C86: 54196 | D86: 33229 | E86: 23079 | F86: 16579 | G86: 12111 | H86: 9551
A87: 60 | B87: 60 | C87: 57649 | D87: 36207 | E87: 25175 | F87: 19075 | G87: 14600 | H87: 11866
A88: 61 | B88: 61 | C88: 61922 | D88: 38912 | E88: 27048 | F88: 20487 | G88: 15690 | H88: 12738
A89: 62 | B89: 62 | C89: 67740 | D89: 42608 | E89: 29635 | F89: 22453 | G89: 17179 | H89: 13951
A90: 63 | B90: 63 | C90: 72008 | D90: 45294 | E90: 31503 | F90: 23865 | G90: 18266 | H90: 14840
A91: 64 | B91: 64 | C91: 77878 | D91: 48988 | E91: 34098 | F91: 25826 | G91: 19748 | H91: 16065
A92: 65 | B92: 65 | C92: 81599 | D92: 64067 | E92: 44479 | F92: 32656 | G92: 26361 | H92: 22677
A93: 66 | B93: 66 | C93: 85312 | D93: 74428 | E93: 51674 | F93: 37949 | G93: 30638 | H93: 26334
A94: 67 | B94: 67 | C94: 93155 | D94: 81308 | E94: 56449 | F94: 41456 | G94: 33455 | H94: 28776
A95: 68 | B95: 68 | C95: 103126 | D95: 90031 | E95: 62492 | F95: 45911 | G95: 37059 | H95: 31862
A96: 69 | B96: 69 | C96: 113437 | D96: 99057 | E96: 68777 | F96: 50510 | G96: 40772 | H96: 35058
A97: 70 | B97: 70 | C97: 134235 | D97: 121916 | E97: 83740 | F97: 59461 | G97: 47513 | H97: 41236
A98: 71 | B98: 71 | C98: 139510 | D98: 126706 | E98: 87018 | F98: 61799 | G98: 49374 | H98: 42874
A99: 72 | B99: 72 | C99: 143438 | D99: 130289 | E99: 89486 | F99: 63545 | G99: 50778 | H99: 44067
A100: 73 | B100: 73 | C100: 148713 | D100: 135087 | E100: 92769 | F100: 65884 | G100: 52642 | H100: 45703
A101: 74 | B101: 74 | C101: 151323 | D101: 137464 | E101: 94423 | F101: 67034 | G101: 53581 | H101: 46504
A102: 75 | B102: 75+ | C102: 157905 | D102: 143449 | E102: 98525 | F102: 69971 | G102: 55906 | H102: 48547
A103: 1 | B103: 1 Child | C103: 8667 | D103: 5361 | E103: 3957 | F103: 3097 | G103: 2327 | H103: 1829
A104: 2 | B104: 2 Children | C104: 13601 | D104: 8526 | E104: 6286 | F104: 4930 | G104: 3717 | H104: 2898
A105: 3 | B105: 3+ Children | C105: 19806 | D105: 12487 | E105: 9214 | F105: 7224 | G105: 5451 | H105: 4245
A106: 1 | B106: Rider Comp. Maternidad | C106: 0 | D106: 0 | E106: 0 | F106: 225 | G106: 225 | H106: 225
A107: 1 | B107: Transplante de organos | C107: 0 | D107: 0 | E107: 0 | F107: 0 | G107: 0 | H107: 0
A114: DIAMOND (LATINAMERICA ONLY)
A115: TARIFAS ANUALES
A116: EDAD
C117: DL1 | D117: DL2 | E117: DL3 | F117: DL4 | G117: DL5 | H117: DL6
A118: 18 | B118: - 24
A119: 25 | B119: - 29
A120: 30 | B120: - 34
A121: 35 | B121: - 39
A122: 40 | B122: - 44
A123: 45 | B123: - 49
A124: 50 | B124: - 54
A125: 55 | B125: - 59
A126: 60
A127: 61
A128: 62
A129: 63
A130: 64
A131: 65
A132: 66
A133: 67
A134: 68
A135: 69
A136: 70
A137: 71
A138: 72
A139: 73
A140: 74
A141: 75 | B141: o más
A142: 1 | B142: Hijo
A143: 2 | B143: Hijos
A144: 3 | B144: Hijos o más
A145: 1 | B145: Rider Comp. Maternidad
A146: 1 | B146: Transplante de organos | C146: 0 | D146: 0 | E146: 0 | F146: 0 | G146: 0 | H146: 0
A148: TARIFAS SEMESTRALES
A149: EDAD
C150: DL1 | D150: DL2 | E150: DL3 | F150: DL4 | G150: DL5 | H150: DL6
A151: 18 | B151: - 24 | C151: =+C118*$G$2 -> 0 | D151: 0 | E151: 0 | F151: 0 | G151: 0 | H151: 0
A152: 25 | B152: - 29 | C152: 0 | D152: 0 | E152: 0 | F152: 0 | G152: 0 | H152: 0
A153: 30 | B153: - 34 | C153: 0 | D153: 0 | E153: 0 | F153: 0 | G153: 0 | H153: 0
A154: 35 | B154: - 39 | C154: 0 | D154: 0 | E154: 0 | F154: 0 | G154: 0 | H154: 0
A155: 40 | B155: - 44 | C155: 0 | D155: 0 | E155: 0 | F155: 0 | G155: 0 | H155: 0
A156: 45 | B156: - 49 | C156: 0 | D156: 0 | E156: 0 | F156: 0 | G156: 0 | H156: 0
A157: 50 | B157: - 54 | C157: 0 | D157: 0 | E157: 0 | F157: 0 | G157: 0 | H157: 0
A158: 55 | B158: - 59 | C158: 0 | D158: 0 | E158: 0 | F158: 0 | G158: 0 | H158: 0
A159: 60 | C159: 0 | D159: 0 | E159: 0 | F159: 0 | G159: 0 | H159: 0
A160: 61 | C160: 0 | D160: 0 | E160: 0 | F160: 0 | G160: 0 | H160: 0
A161: 62 | C161: 0 | D161: 0 | E161: 0 | F161: 0 | G161: 0 | H161: 0
A162: 63 | C162: 0 | D162: 0 | E162: 0 | F162: 0 | G162: 0 | H162: 0
A163: 64 | C163: 0 | D163: 0 | E163: 0 | F163: 0 | G163: 0 | H163: 0
A164: 65 | C164: 0 | D164: 0 | E164: 0 | F164: 0 | G164: 0 | H164: 0
A165: 66 | C165: 0 | D165: 0 | E165: 0 | F165: 0 | G165: 0 | H165: 0
A166: 67 | C166: 0 | D166: 0 | E166: 0 | F166: 0 | G166: 0 | H166: 0
A167: 68 | C167: =+C134*$G$2 -> 0 | D167: 0 | E167: 0 | F167: 0 | G167: 0 | H167: 0
A168: 69 | C168: 0 | D168: 0 | E168: 0 | F168: 0 | G168: 0 | H168: 0
A169: 70 | C169: 0 | D169: 0 | E169: 0 | F169: 0 | G169: 0 | H169: 0
A170: 71 | C170: 0 | D170: 0 | E170: 0 | F170: 0 | G170: 0 | H170: 0
A171: 72 | C171: 0 | D171: 0 | E171: 0 | F171: 0 | G171: 0 | H171: 0
A172: 73 | C172: 0 | D172: 0 | E172: 0 | F172: 0 | G172: 0 | H172: 0
A173: 74 | C173: 0 | D173: 0 | E173: 0 | F173: 0 | G173: 0 | H173: 0
A174: 75 | B174: o más | C174: 0 | D174: 0 | E174: 0 | F174: 0 | G174: 0 | H174: 0
A175: 1 | B175: Hijo | C175: 0 | D175: 0 | E175: 0 | F175: 0 | G175: 0 | H175: 0
A176: 2 | B176: Hijos | C176: 0 | D176: 0 | E176: 0 | F176: 0 | G176: 0 | H176: 0
A177: 3 | B177: Hijos o más | C177: 0 | D177: 0 | E177: 0 | F177: 0 | G177: 0 | H177: 0
A178: 1 | B178: Rider Comp. Maternidad | C178: 0 | D178: 0 | E178: 0 | F178: 0 | G178: 0 | H178: 0
A179: 1 | B179: Transplante de organos | C179: 0 | D179: 0 | E179: 0 | F179: 0 | G179: 0 | H179: 0
A184: BUPA COMPLETE CARE (MUNDIAL)
A185: TARIFAS ANUALES
A186: EDAD
C187: CW1 | D187: CW2 | E187: CW3 | F187: CW4 | G187: CW5 | H187: CW6
A188: 18 | B188: 18-24 | C188: 27050 | D188: 14057 | E188: 8171 | F188: 4544 | G188: 3906 | H188: 3788
A189: 25 | B189: 25-29 | C189: 28437 | D189: 16092 | E189: 10410 | F189: 6345 | G189: 5236 | H189: 4194
A190: 30 | B190: 30-34 | C190: 29659 | D190: 18091 | E190: 12650 | F190: 8146 | G190: 6567 | H190: 5051
A191: 35 | B191: 35-39 | C191: 33144 | D191: 20099 | E191: 14889 | F191: 9947 | G191: 7376 | H191: 5651
A192: 40 | B192: 40-44 | C192: 34710 | D192: 22374 | E192: 16493 | F192: 10237 | G192: 8016 | H192: 6222
A193: 45 | B193: 45-49 | C193: 36759 | D193: 25728 | E193: 18415 | F193: 13293 | G193: 9056 | H193: 6948
A194: 50 | B194: 50-54 | C194: 45153 | D194: 32016 | E194: 24257 | F194: 17406 | G194: 12884 | H194: 9872
A195: 55 | B195: 55-59 | C195: 54031 | D195: 36315 | E195: 25800 | F195: 18518 | G195: 13696 | H195: 10501
A196: 60 | B196: 60 | C196: 62344 | D196: 39530 | E196: 28017 | F196: 21055 | G196: 16281 | H196: 13084
A197: 61 | B197: 61 | C197: 66951 | D197: 42466 | E197: 30077 | F197: 22607 | G197: 17478 | H197: 14056
A198: 62 | B198: 62 | C198: 73243 | D198: 46475 | E198: 32930 | F198: 24755 | G198: 19125 | H198: 15382
A199: 63 | B199: 63 | C199: 77835 | D199: 49411 | E199: 35000 | F199: 26302 | G199: 20330 | H199: 16340
A200: 64 | B200: 64 | C200: 84163 | D200: 53432 | E200: 37856 | F200: 28445 | G200: 21978 | H200: 17681
A201: 65 | B201: 65 | C201: 88173 | D201: 65223 | E201: 49342 | F201: 35937 | G201: 29268 | H201: 24360
A202: 66 | B202: 66 | C202: 92185 | D202: 68914 | E202: 57316 | F202: 41731 | G202: 34001 | H202: 25902
A203: 67 | B203: 67 | C203: 100634 | D203: 72663 | E203: 61463 | F203: 45572 | G203: 37126 | H203: 27497
A204: 68 | B204: 68 | C204: 108965 | D204: 76955 | E204: 65104 | F204: 50399 | G204: 40486 | H204: 29321
A205: 69 | B205: 69 | C205: 117982 | D205: 82272 | E205: 69347 | F205: 53817 | G205: 42529 | H205: 31553
A206: 70 | B206: 70 | C206: 129166 | D206: 89096 | E206: 74454 | F206: 57830 | G206: 45376 | H206: 34370
A207: 71 | B207: 71 | C207: 143229 | D207: 97902 | E207: 80702 | F207: 62633 | G207: 49253 | H207: 37958
A208: 72 | B208: 72 | C208: 154846 | D208: 108368 | E208: 87914 | F208: 68109 | G208: 53920 | H208: 42199
A209: 73 | B209: 73 | C209: 160527 | D209: 119782 | E209: 95678 | F209: 72347 | G209: 58332 | H209: 46813
A210: 74 | B210: 74 | C210: 163361 | D210: 131433 | E210: 103579 | F210: 73617 | G210: 59361 | H210: 50898
A211: 75 | B211: 75+ | C211: 170452 | D211: 142610 | E211: 109138 | F211: 76824 | G211: 61942 | H211: 53108
A212: 1 | B212: 1 Child | C212: 9151 | D212: 5694 | E212: 4163 | F212: 2926 | G212: 2341 | H212: 1730
A213: 2 | B213: 2 Children | C213: 14341 | D213: 9051 | E213: 6153 | F213: 3928 | G213: 3128 | H213: 2756
A214: 3 | B214: 3+ Children | C214: 20845 | D214: 11105 | E214: 7504 | F214: 4825 | G214: 3762 | H214: 3376
A215: 1 | B215: Rider Comp. Maternidad | C215: 0 | D215: 0 | E215: 0 | F215: 225 | G215: 225 | H215: 225
A216: 1 | B216: Transplante de organos | C216: 0 | D216: 0 | E216: 0 | F216: 0 | G216: 0 | H216: 0
A220: TARIFAS SEMESTRALES
A221: EDAD
... 434 more rows
